{"text_format":"1","workbook":"xlsx","n_sheets":1,"sheets":["Solar"],"not_rendered":{"charts":5,"images":1,"macros":1,"external_links":0,"defined_names":6,"comments":0,"pivot_tables":0},"unopened":[],"bounds":{"document_bytes":16777216,"sheet_cells":100000,"rows_first":2000,"rows_last":500,"rows_between":2000,"halvings":0,"cell_chars":16384,"cell_head_chars":4096},"cells_cut":0,"cells_raw":0,"read":"whole","date_system":"1900"}

{"sheet":"Solar","index":0,"n_rows":361,"n_cols":34,"rows_kept":361,"cut":false,"hidden":false,"merged":[[28,3,28,5],[30,3,30,9],[31,3,31,11],[29,3,29,8]]}
["Mes","Ventas 2021",null,null,null,null,null,null,null,null,null,null,null,null,null,null,null,null,null,null,null,null,null,null,null,null,null,null,"Etiquetas","Puntos","360º","Valores","Valor","Separador"]
["Enero",1561.36,null,null,null,null,null,null,null,null,null,null,null,null,null,null,null,null,null,null,null,null,null,null,null,null,null,null,1,{"$f":"360/COUNT(misRayos)","v":30},{"$f":"ROW(AE1)-ROW($AE$1)","v":0},{"$f":"IFERROR(INDEX(misRayos,IF(MOD(TablaSeriesValores[[#This Row],[360º]],misPuntos)=0,NA(),INT(TablaSeriesValores[[#This Row],[360º]]/misPuntos)+1)),0)","v":0},{"$f":"IF(miFila=INT(TablaSeriesValores[[#This Row],[360º]]/misPuntos)+1,TablaSeriesValores[[#This Row],[Valores]],0)","v":0},{"$f":"IF(MOD(TablaSeriesValores[[#This Row],[360º]],misPuntos)=0,miEscala,0)","v":2419}]
["Febrero",2103.7399999999998,null,null,null,null,null,null,null,null,null,null,null,null,null,null,null,null,null,null,null,null,null,null,null,null,null,null,{"$f":"AC2","v":1},null,1,{"$f":"IFERROR(INDEX(misRayos,IF(MOD(TablaSeriesValores[[#This Row],[360º]],misPuntos)=0,NA(),INT(TablaSeriesValores[[#This Row],[360º]]/misPuntos)+1)),0)","v":1561.36},{"$f":"IF(miFila=INT(TablaSeriesValores[[#This Row],[360º]]/misPuntos)+1,TablaSeriesValores[[#This Row],[Valores]],0)","v":0},{"$f":"IF(MOD(TablaSeriesValores[[#This Row],[360º]],misPuntos)=0,miEscala,0)","v":0}]
["Marzo",1526.58,null,null,null,null,null,null,null,null,null,null,null,null,null,null,null,null,null,null,null,null,null,null,null,null,null,null,{"$f":"AC3","v":1},null,2,{"$f":"IFERROR(INDEX(misRayos,IF(MOD(TablaSeriesValores[[#This Row],[360º]],misPuntos)=0,NA(),INT(TablaSeriesValores[[#This Row],[360º]]/misPuntos)+1)),0)","v":1561.36},{"$f":"IF(miFila=INT(TablaSeriesValores[[#This Row],[360º]]/misPuntos)+1,TablaSeriesValores[[#This Row],[Valores]],0)","v":0},{"$f":"IF(MOD(TablaSeriesValores[[#This Row],[360º]],misPuntos)=0,miEscala,0)","v":0}]
["Abril",1678.48,null,null,null,null,null,null,null,null,null,null,null,null,null,null,null,null,null,null,null,null,null,null,null,null,null,null,1,null,3,{"$f":"IFERROR(INDEX(misRayos,IF(MOD(TablaSeriesValores[[#This Row],[360º]],misPuntos)=0,NA(),INT(TablaSeriesValores[[#This Row],[360º]]/misPuntos)+1)),0)","v":1561.36},{"$f":"IF(miFila=INT(TablaSeriesValores[[#This Row],[360º]]/misPuntos)+1,TablaSeriesValores[[#This Row],[Valores]],0)","v":0},{"$f":"IF(MOD(TablaSeriesValores[[#This Row],[360º]],misPuntos)=0,miEscala,0)","v":0}]
["Mayo",1978.13,null,null,null,null,null,null,null,null,null,null,null,null,null,null,null,null,null,null,null,null,null,null,null,null,null,null,1,null,4,{"$f":"IFERROR(INDEX(misRayos,IF(MOD(TablaSeriesValores[[#This Row],[360º]],misPuntos)=0,NA(),INT(TablaSeriesValores[[#This Row],[360º]]/misPuntos)+1)),0)","v":1561.36},{"$f":"IF(miFila=INT(TablaSeriesValores[[#This Row],[360º]]/misPuntos)+1,TablaSeriesValores[[#This Row],[Valores]],0)","v":0},{"$f":"IF(MOD(TablaSeriesValores[[#This Row],[360º]],misPuntos)=0,miEscala,0)","v":0}]
["Junio",1321.26,null,null,null,null,null,null,null,null,null,null,null,null,null,null,null,null,null,null,null,null,null,null,null,null,null,null,1,null,5,{"$f":"IFERROR(INDEX(misRayos,IF(MOD(TablaSeriesValores[[#This Row],[360º]],misPuntos)=0,NA(),INT(TablaSeriesValores[[#This Row],[360º]]/misPuntos)+1)),0)","v":1561.36},{"$f":"IF(miFila=INT(TablaSeriesValores[[#This Row],[360º]]/misPuntos)+1,TablaSeriesValores[[#This Row],[Valores]],0)","v":0},{"$f":"IF(MOD(TablaSeriesValores[[#This Row],[360º]],misPuntos)=0,miEscala,0)","v":0}]
["Julio",1635.96,null,null,null,null,null,null,null,null,null,null,null,null,null,null,null,null,null,null,null,null,null,null,null,null,null,null,1,null,6,{"$f":"IFERROR(INDEX(misRayos,IF(MOD(TablaSeriesValores[[#This Row],[360º]],misPuntos)=0,NA(),INT(TablaSeriesValores[[#This Row],[360º]]/misPuntos)+1)),0)","v":1561.36},{"$f":"IF(miFila=INT(TablaSeriesValores[[#This Row],[360º]]/misPuntos)+1,TablaSeriesValores[[#This Row],[Valores]],0)","v":0},{"$f":"IF(MOD(TablaSeriesValores[[#This Row],[360º]],misPuntos)=0,miEscala,0)","v":0}]
["Agosto",1682.65,null,null,null,null,null,null,null,null,null,null,null,null,null,null,null,null,null,null,null,null,null,null,null,null,null,null,1,null,7,{"$f":"IFERROR(INDEX(misRayos,IF(MOD(TablaSeriesValores[[#This Row],[360º]],misPuntos)=0,NA(),INT(TablaSeriesValores[[#This Row],[360º]]/misPuntos)+1)),0)","v":1561.36},{"$f":"IF(miFila=INT(TablaSeriesValores[[#This Row],[360º]]/misPuntos)+1,TablaSeriesValores[[#This Row],[Valores]],0)","v":0},{"$f":"IF(MOD(TablaSeriesValores[[#This Row],[360º]],misPuntos)=0,miEscala,0)","v":0}]
["Septiembre",1154.75,null,null,null,null,null,null,null,null,null,null,null,null,null,null,null,null,null,null,null,null,null,null,null,null,null,null,1,null,8,{"$f":"IFERROR(INDEX(misRayos,IF(MOD(TablaSeriesValores[[#This Row],[360º]],misPuntos)=0,NA(),INT(TablaSeriesValores[[#This Row],[360º]]/misPuntos)+1)),0)","v":1561.36},{"$f":"IF(miFila=INT(TablaSeriesValores[[#This Row],[360º]]/misPuntos)+1,TablaSeriesValores[[#This Row],[Valores]],0)","v":0},{"$f":"IF(MOD(TablaSeriesValores[[#This Row],[360º]],misPuntos)=0,miEscala,0)","v":0}]
["Octubre",1259.19,null,null,null,null,null,null,null,null,null,null,null,null,null,null,null,null,null,null,null,null,null,null,null,null,null,null,1,null,9,{"$f":"IFERROR(INDEX(misRayos,IF(MOD(TablaSeriesValores[[#This Row],[360º]],misPuntos)=0,NA(),INT(TablaSeriesValores[[#This Row],[360º]]/misPuntos)+1)),0)","v":1561.36},{"$f":"IF(miFila=INT(TablaSeriesValores[[#This Row],[360º]]/misPuntos)+1,TablaSeriesValores[[#This Row],[Valores]],0)","v":0},{"$f":"IF(MOD(TablaSeriesValores[[#This Row],[360º]],misPuntos)=0,miEscala,0)","v":0}]
["Noviembre",1145.73,null,null,null,null,null,null,null,null,null,null,null,null,null,null,null,null,null,null,null,null,null,null,null,null,null,null,1,null,10,{"$f":"IFERROR(INDEX(misRayos,IF(MOD(TablaSeriesValores[[#This Row],[360º]],misPuntos)=0,NA(),INT(TablaSeriesValores[[#This Row],[360º]]/misPuntos)+1)),0)","v":1561.36},{"$f":"IF(miFila=INT(TablaSeriesValores[[#This Row],[360º]]/misPuntos)+1,TablaSeriesValores[[#This Row],[Valores]],0)","v":0},{"$f":"IF(MOD(TablaSeriesValores[[#This Row],[360º]],misPuntos)=0,miEscala,0)","v":0}]
["Diciembre",1404.21,null,null,null,null,null,null,null,null,null,null,null,null,null,null,null,null,null,null,null,null,null,null,null,null,null,null,1,null,11,{"$f":"IFERROR(INDEX(misRayos,IF(MOD(TablaSeriesValores[[#This Row],[360º]],misPuntos)=0,NA(),INT(TablaSeriesValores[[#This Row],[360º]]/misPuntos)+1)),0)","v":1561.36},{"$f":"IF(miFila=INT(TablaSeriesValores[[#This Row],[360º]]/misPuntos)+1,TablaSeriesValores[[#This Row],[Valores]],0)","v":0},{"$f":"IF(MOD(TablaSeriesValores[[#This Row],[360º]],misPuntos)=0,miEscala,0)","v":0}]
["Total",{"$f":"SUBTOTAL(109,TablaSolar[Ventas 2021])","v":18452.04},null,null,null,null,null,null,null,null,null,null,null,null,null,null,null,null,null,null,null,null,null,null,null,null,null,null,null,null,12,{"$f":"IFERROR(INDEX(misRayos,IF(MOD(TablaSeriesValores[[#This Row],[360º]],misPuntos)=0,NA(),INT(TablaSeriesValores[[#This Row],[360º]]/misPuntos)+1)),0)","v":1561.36},{"$f":"IF(miFila=INT(TablaSeriesValores[[#This Row],[360º]]/misPuntos)+1,TablaSeriesValores[[#This Row],[Valores]],0)","v":0},{"$f":"IF(MOD(TablaSeriesValores[[#This Row],[360º]],misPuntos)=0,miEscala,0)","v":0}]
[null,null,null,null,null,null,null,null,null,null,null,null,null,null,null,null,null,null,null,null,null,null,null,null,null,null,null,null,null,null,13,{"$f":"IFERROR(INDEX(misRayos,IF(MOD(TablaSeriesValores[[#This Row],[360º]],misPuntos)=0,NA(),INT(TablaSeriesValores[[#This Row],[360º]]/misPuntos)+1)),0)","v":1561.36},{"$f":"IF(miFila=INT(TablaSeriesValores[[#This Row],[360º]]/misPuntos)+1,TablaSeriesValores[[#This Row],[Valores]],0)","v":0},{"$f":"IF(MOD(TablaSeriesValores[[#This Row],[360º]],misPuntos)=0,miEscala,0)","v":0}]
[null,null,null,null,null,null,null,null,null,null,null,null,null,null,null,null,null,null,null,null,null,null,null,null,null,null,null,null,null,null,14,{"$f":"IFERROR(INDEX(misRayos,IF(MOD(TablaSeriesValores[[#This Row],[360º]],misPuntos)=0,NA(),INT(TablaSeriesValores[[#This Row],[360º]]/misPuntos)+1)),0)","v":1561.36},{"$f":"IF(miFila=INT(TablaSeriesValores[[#This Row],[360º]]/misPuntos)+1,TablaSeriesValores[[#This Row],[Valores]],0)","v":0},{"$f":"IF(MOD(TablaSeriesValores[[#This Row],[360º]],misPuntos)=0,miEscala,0)","v":0}]
[null,null,null,null,null,null,null,null,null,null,null,null,null,null,null,null,null,null,null,null,null,null,null,null,null,null,null,null,null,null,15,{"$f":"IFERROR(INDEX(misRayos,IF(MOD(TablaSeriesValores[[#This Row],[360º]],misPuntos)=0,NA(),INT(TablaSeriesValores[[#This Row],[360º]]/misPuntos)+1)),0)","v":1561.36},{"$f":"IF(miFila=INT(TablaSeriesValores[[#This Row],[360º]]/misPuntos)+1,TablaSeriesValores[[#This Row],[Valores]],0)","v":0},{"$f":"IF(MOD(TablaSeriesValores[[#This Row],[360º]],misPuntos)=0,miEscala,0)","v":0}]
[null,null,null,null,null,null,null,null,null,null,null,null,null,null,null,null,null,null,null,null,null,null,null,null,null,null,null,null,null,null,16,{"$f":"IFERROR(INDEX(misRayos,IF(MOD(TablaSeriesValores[[#This Row],[360º]],misPuntos)=0,NA(),INT(TablaSeriesValores[[#This Row],[360º]]/misPuntos)+1)),0)","v":1561.36},{"$f":"IF(miFila=INT(TablaSeriesValores[[#This Row],[360º]]/misPuntos)+1,TablaSeriesValores[[#This Row],[Valores]],0)","v":0},{"$f":"IF(MOD(TablaSeriesValores[[#This Row],[360º]],misPuntos)=0,miEscala,0)","v":0}]
[null,null,null,null,null,null,null,null,null,null,null,null,null,null,null,null,null,null,null,null,null,null,null,null,null,null,null,null,null,null,17,{"$f":"IFERROR(INDEX(misRayos,IF(MOD(TablaSeriesValores[[#This Row],[360º]],misPuntos)=0,NA(),INT(TablaSeriesValores[[#This Row],[360º]]/misPuntos)+1)),0)","v":1561.36},{"$f":"IF(miFila=INT(TablaSeriesValores[[#This Row],[360º]]/misPuntos)+1,TablaSeriesValores[[#This Row],[Valores]],0)","v":0},{"$f":"IF(MOD(TablaSeriesValores[[#This Row],[360º]],misPuntos)=0,miEscala,0)","v":0}]
[null,null,null,null,null,null,null,null,null,null,null,null,null,null,null,null,null,null,null,null,null,null,null,null,null,null,null,null,null,null,18,{"$f":"IFERROR(INDEX(misRayos,IF(MOD(TablaSeriesValores[[#This Row],[360º]],misPuntos)=0,NA(),INT(TablaSeriesValores[[#This Row],[360º]]/misPuntos)+1)),0)","v":1561.36},{"$f":"IF(miFila=INT(TablaSeriesValores[[#This Row],[360º]]/misPuntos)+1,TablaSeriesValores[[#This Row],[Valores]],0)","v":0},{"$f":"IF(MOD(TablaSeriesValores[[#This Row],[360º]],misPuntos)=0,miEscala,0)","v":0}]
[null,null,null,null,null,null,null,null,null,null,null,null,null,null,null,null,null,null,null,null,null,null,null,null,null,null,null,null,null,null,19,{"$f":"IFERROR(INDEX(misRayos,IF(MOD(TablaSeriesValores[[#This Row],[360º]],misPuntos)=0,NA(),INT(TablaSeriesValores[[#This Row],[360º]]/misPuntos)+1)),0)","v":1561.36},{"$f":"IF(miFila=INT(TablaSeriesValores[[#This Row],[360º]]/misPuntos)+1,TablaSeriesValores[[#This Row],[Valores]],0)","v":0},{"$f":"IF(MOD(TablaSeriesValores[[#This Row],[360º]],misPuntos)=0,miEscala,0)","v":0}]
[null,null,null,null,null,null,null,null,null,null,null,null,null,null,null,null,null,null,null,null,null,null,null,null,null,null,null,null,null,null,20,{"$f":"IFERROR(INDEX(misRayos,IF(MOD(TablaSeriesValores[[#This Row],[360º]],misPuntos)=0,NA(),INT(TablaSeriesValores[[#This Row],[360º]]/misPuntos)+1)),0)","v":1561.36},{"$f":"IF(miFila=INT(TablaSeriesValores[[#This Row],[360º]]/misPuntos)+1,TablaSeriesValores[[#This Row],[Valores]],0)","v":0},{"$f":"IF(MOD(TablaSeriesValores[[#This Row],[360º]],misPuntos)=0,miEscala,0)","v":0}]
[null,null,null,null,null,null,null,null,null,null,null,null,null,null,null,null,null,null,null,null,null,null,null,null,null,null,null,null,null,null,21,{"$f":"IFERROR(INDEX(misRayos,IF(MOD(TablaSeriesValores[[#This Row],[360º]],misPuntos)=0,NA(),INT(TablaSeriesValores[[#This Row],[360º]]/misPuntos)+1)),0)","v":1561.36},{"$f":"IF(miFila=INT(TablaSeriesValores[[#This Row],[360º]]/misPuntos)+1,TablaSeriesValores[[#This Row],[Valores]],0)","v":0},{"$f":"IF(MOD(TablaSeriesValores[[#This Row],[360º]],misPuntos)=0,miEscala,0)","v":0}]
[null,null,null,null,null,null,null,null,null,null,null,null,null,null,null,null,null,null,null,null,null,null,null,null,null,null,null,null,null,null,22,{"$f":"IFERROR(INDEX(misRayos,IF(MOD(TablaSeriesValores[[#This Row],[360º]],misPuntos)=0,NA(),INT(TablaSeriesValores[[#This Row],[360º]]/misPuntos)+1)),0)","v":1561.36},{"$f":"IF(miFila=INT(TablaSeriesValores[[#This Row],[360º]]/misPuntos)+1,TablaSeriesValores[[#This Row],[Valores]],0)","v":0},{"$f":"IF(MOD(TablaSeriesValores[[#This Row],[360º]],misPuntos)=0,miEscala,0)","v":0}]
[null,null,null,null,null,null,null,null,null,null,null,null,null,null,null,null,null,null,null,null,null,null,null,null,null,null,null,null,null,null,23,{"$f":"IFERROR(INDEX(misRayos,IF(MOD(TablaSeriesValores[[#This Row],[360º]],misPuntos)=0,NA(),INT(TablaSeriesValores[[#This Row],[360º]]/misPuntos)+1)),0)","v":1561.36},{"$f":"IF(miFila=INT(TablaSeriesValores[[#This Row],[360º]]/misPuntos)+1,TablaSeriesValores[[#This Row],[Valores]],0)","v":0},{"$f":"IF(MOD(TablaSeriesValores[[#This Row],[360º]],misPuntos)=0,miEscala,0)","v":0}]
[null,null,null,null,null,null,null,null,null,null,null,null,null,null,null,null,null,null,null,null,null,null,null,null,null,null,null,null,null,null,24,{"$f":"IFERROR(INDEX(misRayos,IF(MOD(TablaSeriesValores[[#This Row],[360º]],misPuntos)=0,NA(),INT(TablaSeriesValores[[#This Row],[360º]]/misPuntos)+1)),0)","v":1561.36},{"$f":"IF(miFila=INT(TablaSeriesValores[[#This Row],[360º]]/misPuntos)+1,TablaSeriesValores[[#This Row],[Valores]],0)","v":0},{"$f":"IF(MOD(TablaSeriesValores[[#This Row],[360º]],misPuntos)=0,miEscala,0)","v":0}]
[null,null,null,null,null,null,null,null,null,null,null,null,null,null,null,null,null,null,null,null,null,null,null,null,null,null,null,null,null,null,25,{"$f":"IFERROR(INDEX(misRayos,IF(MOD(TablaSeriesValores[[#This Row],[360º]],misPuntos)=0,NA(),INT(TablaSeriesValores[[#This Row],[360º]]/misPuntos)+1)),0)","v":1561.36},{"$f":"IF(miFila=INT(TablaSeriesValores[[#This Row],[360º]]/misPuntos)+1,TablaSeriesValores[[#This Row],[Valores]],0)","v":0},{"$f":"IF(MOD(TablaSeriesValores[[#This Row],[360º]],misPuntos)=0,miEscala,0)","v":0}]
[null,null,"TÍTULO:",{"$f":"TablaSolar[[#Headers],[Ventas 2021]]","v":"Ventas 2021"},null,null,null,null,null,null,null,null,null,null,null,null,null,null,null,null,null,null,null,null,null,null,null,null,null,null,26,{"$f":"IFERROR(INDEX(misRayos,IF(MOD(TablaSeriesValores[[#This Row],[360º]],misPuntos)=0,NA(),INT(TablaSeriesValores[[#This Row],[360º]]/misPuntos)+1)),0)","v":1561.36},{"$f":"IF(miFila=INT(TablaSeriesValores[[#This Row],[360º]]/misPuntos)+1,TablaSeriesValores[[#This Row],[Valores]],0)","v":0},{"$f":"IF(MOD(TablaSeriesValores[[#This Row],[360º]],misPuntos)=0,miEscala,0)","v":0}]
[null,null,"AUTOR:","#ExcelPedroWave",null,null,null,null,null,null,null,null,null,null,null,null,null,null,null,null,null,null,null,null,null,null,null,null,null,null,27,{"$f":"IFERROR(INDEX(misRayos,IF(MOD(TablaSeriesValores[[#This Row],[360º]],misPuntos)=0,NA(),INT(TablaSeriesValores[[#This Row],[360º]]/misPuntos)+1)),0)","v":1561.36},{"$f":"IF(miFila=INT(TablaSeriesValores[[#This Row],[360º]]/misPuntos)+1,TablaSeriesValores[[#This Row],[Valores]],0)","v":0},{"$f":"IF(MOD(TablaSeriesValores[[#This Row],[360º]],misPuntos)=0,miEscala,0)","v":0}]
[null,null,"BLOG:","Cómo hacer un gráfico solar | #ExcelPedroWave",null,null,null,null,null,null,null,null,null,null,null,null,null,null,null,null,null,null,null,null,null,null,null,null,null,null,28,{"$f":"IFERROR(INDEX(misRayos,IF(MOD(TablaSeriesValores[[#This Row],[360º]],misPuntos)=0,NA(),INT(TablaSeriesValores[[#This Row],[360º]]/misPuntos)+1)),0)","v":1561.36},{"$f":"IF(miFila=INT(TablaSeriesValores[[#This Row],[360º]]/misPuntos)+1,TablaSeriesValores[[#This Row],[Valores]],0)","v":0},{"$f":"IF(MOD(TablaSeriesValores[[#This Row],[360º]],misPuntos)=0,miEscala,0)","v":0}]
[null,null,"COPYRIGHT:","Creative Commons — Atribución-NoComercial-CompartirIgual 3.0 No portada",null,null,null,null,null,null,null,null,null,null,null,null,null,null,null,null,null,null,null,null,null,null,null,null,null,null,29,{"$f":"IFERROR(INDEX(misRayos,IF(MOD(TablaSeriesValores[[#This Row],[360º]],misPuntos)=0,NA(),INT(TablaSeriesValores[[#This Row],[360º]]/misPuntos)+1)),0)","v":1561.36},{"$f":"IF(miFila=INT(TablaSeriesValores[[#This Row],[360º]]/misPuntos)+1,TablaSeriesValores[[#This Row],[Valores]],0)","v":0},{"$f":"IF(MOD(TablaSeriesValores[[#This Row],[360º]],misPuntos)=0,miEscala,0)","v":0}]
[null,null,"DATOS:","Aviso legal y política de privacidad | ESIOS electricidad · datos · transparencia (ree.es)",null,null,null,null,null,null,null,null,null,null,null,null,null,null,null,null,null,null,null,null,null,null,null,null,null,null,30,{"$f":"IFERROR(INDEX(misRayos,IF(MOD(TablaSeriesValores[[#This Row],[360º]],misPuntos)=0,NA(),INT(TablaSeriesValores[[#This Row],[360º]]/misPuntos)+1)),0)","v":0},{"$f":"IF(miFila=INT(TablaSeriesValores[[#This Row],[360º]]/misPuntos)+1,TablaSeriesValores[[#This Row],[Valores]],0)","v":0},{"$f":"IF(MOD(TablaSeriesValores[[#This Row],[360º]],misPuntos)=0,miEscala,0)","v":2419}]
[null,null,null,null,null,null,null,null,null,null,null,null,null,null,null,null,null,null,null,null,null,null,null,null,null,null,null,null,null,null,31,{"$f":"IFERROR(INDEX(misRayos,IF(MOD(TablaSeriesValores[[#This Row],[360º]],misPuntos)=0,NA(),INT(TablaSeriesValores[[#This Row],[360º]]/misPuntos)+1)),0)","v":2103.7399999999998},{"$f":"IF(miFila=INT(TablaSeriesValores[[#This Row],[360º]]/misPuntos)+1,TablaSeriesValores[[#This Row],[Valores]],0)","v":0},{"$f":"IF(MOD(TablaSeriesValores[[#This Row],[360º]],misPuntos)=0,miEscala,0)","v":0}]
[null,null,null,null,null,null,null,null,null,null,null,null,null,null,null,null,null,null,null,null,null,null,null,null,null,null,null,null,null,null,32,{"$f":"IFERROR(INDEX(misRayos,IF(MOD(TablaSeriesValores[[#This Row],[360º]],misPuntos)=0,NA(),INT(TablaSeriesValores[[#This Row],[360º]]/misPuntos)+1)),0)","v":2103.7399999999998},{"$f":"IF(miFila=INT(TablaSeriesValores[[#This Row],[360º]]/misPuntos)+1,TablaSeriesValores[[#This Row],[Valores]],0)","v":0},{"$f":"IF(MOD(TablaSeriesValores[[#This Row],[360º]],misPuntos)=0,miEscala,0)","v":0}]
[null,null,null,null,null,null,null,null,null,null,null,null,null,null,null,null,null,null,null,null,null,null,null,null,null,null,null,null,null,null,33,{"$f":"IFERROR(INDEX(misRayos,IF(MOD(TablaSeriesValores[[#This Row],[360º]],misPuntos)=0,NA(),INT(TablaSeriesValores[[#This Row],[360º]]/misPuntos)+1)),0)","v":2103.7399999999998},{"$f":"IF(miFila=INT(TablaSeriesValores[[#This Row],[360º]]/misPuntos)+1,TablaSeriesValores[[#This Row],[Valores]],0)","v":0},{"$f":"IF(MOD(TablaSeriesValores[[#This Row],[360º]],misPuntos)=0,miEscala,0)","v":0}]
[null,null,null,null,null,null,null,null,null,null,null,null,null,null,null,null,null,null,null,null,null,null,null,null,null,null,null,null,null,null,34,{"$f":"IFERROR(INDEX(misRayos,IF(MOD(TablaSeriesValores[[#This Row],[360º]],misPuntos)=0,NA(),INT(TablaSeriesValores[[#This Row],[360º]]/misPuntos)+1)),0)","v":2103.7399999999998},{"$f":"IF(miFila=INT(TablaSeriesValores[[#This Row],[360º]]/misPuntos)+1,TablaSeriesValores[[#This Row],[Valores]],0)","v":0},{"$f":"IF(MOD(TablaSeriesValores[[#This Row],[360º]],misPuntos)=0,miEscala,0)","v":0}]
[null,null,null,null,null,null,null,null,null,null,null,null,null,null,null,null,null,null,null,null,null,null,null,null,null,null,null,null,null,null,35,{"$f":"IFERROR(INDEX(misRayos,IF(MOD(TablaSeriesValores[[#This Row],[360º]],misPuntos)=0,NA(),INT(TablaSeriesValores[[#This Row],[360º]]/misPuntos)+1)),0)","v":2103.7399999999998},{"$f":"IF(miFila=INT(TablaSeriesValores[[#This Row],[360º]]/misPuntos)+1,TablaSeriesValores[[#This Row],[Valores]],0)","v":0},{"$f":"IF(MOD(TablaSeriesValores[[#This Row],[360º]],misPuntos)=0,miEscala,0)","v":0}]
[null,null,null,null,null,null,null,null,null,null,null,null,null,null,null,null,null,null,null,null,null,null,null,null,null,null,null,null,null,null,36,{"$f":"IFERROR(INDEX(misRayos,IF(MOD(TablaSeriesValores[[#This Row],[360º]],misPuntos)=0,NA(),INT(TablaSeriesValores[[#This Row],[360º]]/misPuntos)+1)),0)","v":2103.7399999999998},{"$f":"IF(miFila=INT(TablaSeriesValores[[#This Row],[360º]]/misPuntos)+1,TablaSeriesValores[[#This Row],[Valores]],0)","v":0},{"$f":"IF(MOD(TablaSeriesValores[[#This Row],[360º]],misPuntos)=0,miEscala,0)","v":0}]
[null,null,null,null,null,null,null,null,null,null,null,null,null,null,null,null,null,null,null,null,null,null,null,null,null,null,null,null,null,null,37,{"$f":"IFERROR(INDEX(misRayos,IF(MOD(TablaSeriesValores[[#This Row],[360º]],misPuntos)=0,NA(),INT(TablaSeriesValores[[#This Row],[360º]]/misPuntos)+1)),0)","v":2103.7399999999998},{"$f":"IF(miFila=INT(TablaSeriesValores[[#This Row],[360º]]/misPuntos)+1,TablaSeriesValores[[#This Row],[Valores]],0)","v":0},{"$f":"IF(MOD(TablaSeriesValores[[#This Row],[360º]],misPuntos)=0,miEscala,0)","v":0}]
[null,null,null,null,null,null,null,null,null,null,null,null,null,null,null,null,null,null,null,null,null,null,null,null,null,null,null,null,null,null,38,{"$f":"IFERROR(INDEX(misRayos,IF(MOD(TablaSeriesValores[[#This Row],[360º]],misPuntos)=0,NA(),INT(TablaSeriesValores[[#This Row],[360º]]/misPuntos)+1)),0)","v":2103.7399999999998},{"$f":"IF(miFila=INT(TablaSeriesValores[[#This Row],[360º]]/misPuntos)+1,TablaSeriesValores[[#This Row],[Valores]],0)","v":0},{"$f":"IF(MOD(TablaSeriesValores[[#This Row],[360º]],misPuntos)=0,miEscala,0)","v":0}]
[null,null,null,null,null,null,null,null,null,null,null,null,null,null,null,null,null,null,null,null,null,null,null,null,null,null,null,null,null,null,39,{"$f":"IFERROR(INDEX(misRayos,IF(MOD(TablaSeriesValores[[#This Row],[360º]],misPuntos)=0,NA(),INT(TablaSeriesValores[[#This Row],[360º]]/misPuntos)+1)),0)","v":2103.7399999999998},{"$f":"IF(miFila=INT(TablaSeriesValores[[#This Row],[360º]]/misPuntos)+1,TablaSeriesValores[[#This Row],[Valores]],0)","v":0},{"$f":"IF(MOD(TablaSeriesValores[[#This Row],[360º]],misPuntos)=0,miEscala,0)","v":0}]
[null,null,null,null,null,null,null,null,null,null,null,null,null,null,null,null,null,null,null,null,null,null,null,null,null,null,null,null,null,null,40,{"$f":"IFERROR(INDEX(misRayos,IF(MOD(TablaSeriesValores[[#This Row],[360º]],misPuntos)=0,NA(),INT(TablaSeriesValores[[#This Row],[360º]]/misPuntos)+1)),0)","v":2103.7399999999998},{"$f":"IF(miFila=INT(TablaSeriesValores[[#This Row],[360º]]/misPuntos)+1,TablaSeriesValores[[#This Row],[Valores]],0)","v":0},{"$f":"IF(MOD(TablaSeriesValores[[#This Row],[360º]],misPuntos)=0,miEscala,0)","v":0}]
[null,null,null,null,null,null,null,null,null,null,null,null,null,null,null,null,null,null,null,null,null,null,null,null,null,null,null,null,null,null,41,{"$f":"IFERROR(INDEX(misRayos,IF(MOD(TablaSeriesValores[[#This Row],[360º]],misPuntos)=0,NA(),INT(TablaSeriesValores[[#This Row],[360º]]/misPuntos)+1)),0)","v":2103.7399999999998},{"$f":"IF(miFila=INT(TablaSeriesValores[[#This Row],[360º]]/misPuntos)+1,TablaSeriesValores[[#This Row],[Valores]],0)","v":0},{"$f":"IF(MOD(TablaSeriesValores[[#This Row],[360º]],misPuntos)=0,miEscala,0)","v":0}]
[null,null,null,null,null,null,null,null,null,null,null,null,null,null,null,null,null,null,null,null,null,null,null,null,null,null,null,null,null,null,42,{"$f":"IFERROR(INDEX(misRayos,IF(MOD(TablaSeriesValores[[#This Row],[360º]],misPuntos)=0,NA(),INT(TablaSeriesValores[[#This Row],[360º]]/misPuntos)+1)),0)","v":2103.7399999999998},{"$f":"IF(miFila=INT(TablaSeriesValores[[#This Row],[360º]]/misPuntos)+1,TablaSeriesValores[[#This Row],[Valores]],0)","v":0},{"$f":"IF(MOD(TablaSeriesValores[[#This Row],[360º]],misPuntos)=0,miEscala,0)","v":0}]
[null,null,null,null,null,null,null,null,null,null,null,null,null,null,null,null,null,null,null,null,null,null,null,null,null,null,null,null,null,null,43,{"$f":"IFERROR(INDEX(misRayos,IF(MOD(TablaSeriesValores[[#This Row],[360º]],misPuntos)=0,NA(),INT(TablaSeriesValores[[#This Row],[360º]]/misPuntos)+1)),0)","v":2103.7399999999998},{"$f":"IF(miFila=INT(TablaSeriesValores[[#This Row],[360º]]/misPuntos)+1,TablaSeriesValores[[#This Row],[Valores]],0)","v":0},{"$f":"IF(MOD(TablaSeriesValores[[#This Row],[360º]],misPuntos)=0,miEscala,0)","v":0}]
[null,null,null,null,null,null,null,null,null,null,null,null,null,null,null,null,null,null,null,null,null,null,null,null,null,null,null,null,null,null,44,{"$f":"IFERROR(INDEX(misRayos,IF(MOD(TablaSeriesValores[[#This Row],[360º]],misPuntos)=0,NA(),INT(TablaSeriesValores[[#This Row],[360º]]/misPuntos)+1)),0)","v":2103.7399999999998},{"$f":"IF(miFila=INT(TablaSeriesValores[[#This Row],[360º]]/misPuntos)+1,TablaSeriesValores[[#This Row],[Valores]],0)","v":0},{"$f":"IF(MOD(TablaSeriesValores[[#This Row],[360º]],misPuntos)=0,miEscala,0)","v":0}]
[null,null,null,null,null,null,null,null,null,null,null,null,null,null,null,null,null,null,null,null,null,null,null,null,null,null,null,null,null,null,45,{"$f":"IFERROR(INDEX(misRayos,IF(MOD(TablaSeriesValores[[#This Row],[360º]],misPuntos)=0,NA(),INT(TablaSeriesValores[[#This Row],[360º]]/misPuntos)+1)),0)","v":2103.7399999999998},{"$f":"IF(miFila=INT(TablaSeriesValores[[#This Row],[360º]]/misPuntos)+1,TablaSeriesValores[[#This Row],[Valores]],0)","v":0},{"$f":"IF(MOD(TablaSeriesValores[[#This Row],[360º]],misPuntos)=0,miEscala,0)","v":0}]
[null,null,null,null,null,null,null,null,null,null,null,null,null,null,null,null,null,null,null,null,null,null,null,null,null,null,null,null,null,null,46,{"$f":"IFERROR(INDEX(misRayos,IF(MOD(TablaSeriesValores[[#This Row],[360º]],misPuntos)=0,NA(),INT(TablaSeriesValores[[#This Row],[360º]]/misPuntos)+1)),0)","v":2103.7399999999998},{"$f":"IF(miFila=INT(TablaSeriesValores[[#This Row],[360º]]/misPuntos)+1,TablaSeriesValores[[#This Row],[Valores]],0)","v":0},{"$f":"IF(MOD(TablaSeriesValores[[#This Row],[360º]],misPuntos)=0,miEscala,0)","v":0}]
[null,null,null,null,null,null,null,null,null,null,null,null,null,null,null,null,null,null,null,null,null,null,null,null,null,null,null,null,null,null,47,{"$f":"IFERROR(INDEX(misRayos,IF(MOD(TablaSeriesValores[[#This Row],[360º]],misPuntos)=0,NA(),INT(TablaSeriesValores[[#This Row],[360º]]/misPuntos)+1)),0)","v":2103.7399999999998},{"$f":"IF(miFila=INT(TablaSeriesValores[[#This Row],[360º]]/misPuntos)+1,TablaSeriesValores[[#This Row],[Valores]],0)","v":0},{"$f":"IF(MOD(TablaSeriesValores[[#This Row],[360º]],misPuntos)=0,miEscala,0)","v":0}]
[null,null,null,null,null,null,null,null,null,null,null,null,null,null,null,null,null,null,null,null,null,null,null,null,null,null,null,null,null,null,48,{"$f":"IFERROR(INDEX(misRayos,IF(MOD(TablaSeriesValores[[#This Row],[360º]],misPuntos)=0,NA(),INT(TablaSeriesValores[[#This Row],[360º]]/misPuntos)+1)),0)","v":2103.7399999999998},{"$f":"IF(miFila=INT(TablaSeriesValores[[#This Row],[360º]]/misPuntos)+1,TablaSeriesValores[[#This Row],[Valores]],0)","v":0},{"$f":"IF(MOD(TablaSeriesValores[[#This Row],[360º]],misPuntos)=0,miEscala,0)","v":0}]
[null,null,null,null,null,null,null,null,null,null,null,null,null,null,null,null,null,null,null,null,null,null,null,null,null,null,null,null,null,null,49,{"$f":"IFERROR(INDEX(misRayos,IF(MOD(TablaSeriesValores[[#This Row],[360º]],misPuntos)=0,NA(),INT(TablaSeriesValores[[#This Row],[360º]]/misPuntos)+1)),0)","v":2103.7399999999998},{"$f":"IF(miFila=INT(TablaSeriesValores[[#This Row],[360º]]/misPuntos)+1,TablaSeriesValores[[#This Row],[Valores]],0)","v":0},{"$f":"IF(MOD(TablaSeriesValores[[#This Row],[360º]],misPuntos)=0,miEscala,0)","v":0}]
[null,null,null,null,null,null,null,null,null,null,null,null,null,null,null,null,null,null,null,null,null,null,null,null,null,null,null,null,null,null,50,{"$f":"IFERROR(INDEX(misRayos,IF(MOD(TablaSeriesValores[[#This Row],[360º]],misPuntos)=0,NA(),INT(TablaSeriesValores[[#This Row],[360º]]/misPuntos)+1)),0)","v":2103.7399999999998},{"$f":"IF(miFila=INT(TablaSeriesValores[[#This Row],[360º]]/misPuntos)+1,TablaSeriesValores[[#This Row],[Valores]],0)","v":0},{"$f":"IF(MOD(TablaSeriesValores[[#This Row],[360º]],misPuntos)=0,miEscala,0)","v":0}]
[null,null,null,null,null,null,null,null,null,null,null,null,null,null,null,null,null,null,null,null,null,null,null,null,null,null,null,null,null,null,51,{"$f":"IFERROR(INDEX(misRayos,IF(MOD(TablaSeriesValores[[#This Row],[360º]],misPuntos)=0,NA(),INT(TablaSeriesValores[[#This Row],[360º]]/misPuntos)+1)),0)","v":2103.7399999999998},{"$f":"IF(miFila=INT(TablaSeriesValores[[#This Row],[360º]]/misPuntos)+1,TablaSeriesValores[[#This Row],[Valores]],0)","v":0},{"$f":"IF(MOD(TablaSeriesValores[[#This Row],[360º]],misPuntos)=0,miEscala,0)","v":0}]
[null,null,null,null,null,null,null,null,null,null,null,null,null,null,null,null,null,null,null,null,null,null,null,null,null,null,null,null,null,null,52,{"$f":"IFERROR(INDEX(misRayos,IF(MOD(TablaSeriesValores[[#This Row],[360º]],misPuntos)=0,NA(),INT(TablaSeriesValores[[#This Row],[360º]]/misPuntos)+1)),0)","v":2103.7399999999998},{"$f":"IF(miFila=INT(TablaSeriesValores[[#This Row],[360º]]/misPuntos)+1,TablaSeriesValores[[#This Row],[Valores]],0)","v":0},{"$f":"IF(MOD(TablaSeriesValores[[#This Row],[360º]],misPuntos)=0,miEscala,0)","v":0}]
[null,null,null,null,null,null,null,null,null,null,null,null,null,null,null,null,null,null,null,null,null,null,null,null,null,null,null,null,null,null,53,{"$f":"IFERROR(INDEX(misRayos,IF(MOD(TablaSeriesValores[[#This Row],[360º]],misPuntos)=0,NA(),INT(TablaSeriesValores[[#This Row],[360º]]/misPuntos)+1)),0)","v":2103.7399999999998},{"$f":"IF(miFila=INT(TablaSeriesValores[[#This Row],[360º]]/misPuntos)+1,TablaSeriesValores[[#This Row],[Valores]],0)","v":0},{"$f":"IF(MOD(TablaSeriesValores[[#This Row],[360º]],misPuntos)=0,miEscala,0)","v":0}]
[null,null,null,null,null,null,null,null,null,null,null,null,null,null,null,null,null,null,null,null,null,null,null,null,null,null,null,null,null,null,54,{"$f":"IFERROR(INDEX(misRayos,IF(MOD(TablaSeriesValores[[#This Row],[360º]],misPuntos)=0,NA(),INT(TablaSeriesValores[[#This Row],[360º]]/misPuntos)+1)),0)","v":2103.7399999999998},{"$f":"IF(miFila=INT(TablaSeriesValores[[#This Row],[360º]]/misPuntos)+1,TablaSeriesValores[[#This Row],[Valores]],0)","v":0},{"$f":"IF(MOD(TablaSeriesValores[[#This Row],[360º]],misPuntos)=0,miEscala,0)","v":0}]
[null,null,null,null,null,null,null,null,null,null,null,null,null,null,null,null,null,null,null,null,null,null,null,null,null,null,null,null,null,null,55,{"$f":"IFERROR(INDEX(misRayos,IF(MOD(TablaSeriesValores[[#This Row],[360º]],misPuntos)=0,NA(),INT(TablaSeriesValores[[#This Row],[360º]]/misPuntos)+1)),0)","v":2103.7399999999998},{"$f":"IF(miFila=INT(TablaSeriesValores[[#This Row],[360º]]/misPuntos)+1,TablaSeriesValores[[#This Row],[Valores]],0)","v":0},{"$f":"IF(MOD(TablaSeriesValores[[#This Row],[360º]],misPuntos)=0,miEscala,0)","v":0}]
[null,null,null,null,null,null,null,null,null,null,null,null,null,null,null,null,null,null,null,null,null,null,null,null,null,null,null,null,null,null,56,{"$f":"IFERROR(INDEX(misRayos,IF(MOD(TablaSeriesValores[[#This Row],[360º]],misPuntos)=0,NA(),INT(TablaSeriesValores[[#This Row],[360º]]/misPuntos)+1)),0)","v":2103.7399999999998},{"$f":"IF(miFila=INT(TablaSeriesValores[[#This Row],[360º]]/misPuntos)+1,TablaSeriesValores[[#This Row],[Valores]],0)","v":0},{"$f":"IF(MOD(TablaSeriesValores[[#This Row],[360º]],misPuntos)=0,miEscala,0)","v":0}]
[null,null,null,null,null,null,null,null,null,null,null,null,null,null,null,null,null,null,null,null,null,null,null,null,null,null,null,null,null,null,57,{"$f":"IFERROR(INDEX(misRayos,IF(MOD(TablaSeriesValores[[#This Row],[360º]],misPuntos)=0,NA(),INT(TablaSeriesValores[[#This Row],[360º]]/misPuntos)+1)),0)","v":2103.7399999999998},{"$f":"IF(miFila=INT(TablaSeriesValores[[#This Row],[360º]]/misPuntos)+1,TablaSeriesValores[[#This Row],[Valores]],0)","v":0},{"$f":"IF(MOD(TablaSeriesValores[[#This Row],[360º]],misPuntos)=0,miEscala,0)","v":0}]
[null,null,null,null,null,null,null,null,null,null,null,null,null,null,null,null,null,null,null,null,null,null,null,null,null,null,null,null,null,null,58,{"$f":"IFERROR(INDEX(misRayos,IF(MOD(TablaSeriesValores[[#This Row],[360º]],misPuntos)=0,NA(),INT(TablaSeriesValores[[#This Row],[360º]]/misPuntos)+1)),0)","v":2103.7399999999998},{"$f":"IF(miFila=INT(TablaSeriesValores[[#This Row],[360º]]/misPuntos)+1,TablaSeriesValores[[#This Row],[Valores]],0)","v":0},{"$f":"IF(MOD(TablaSeriesValores[[#This Row],[360º]],misPuntos)=0,miEscala,0)","v":0}]
[null,null,null,null,null,null,null,null,null,null,null,null,null,null,null,null,null,null,null,null,null,null,null,null,null,null,null,null,null,null,59,{"$f":"IFERROR(INDEX(misRayos,IF(MOD(TablaSeriesValores[[#This Row],[360º]],misPuntos)=0,NA(),INT(TablaSeriesValores[[#This Row],[360º]]/misPuntos)+1)),0)","v":2103.7399999999998},{"$f":"IF(miFila=INT(TablaSeriesValores[[#This Row],[360º]]/misPuntos)+1,TablaSeriesValores[[#This Row],[Valores]],0)","v":0},{"$f":"IF(MOD(TablaSeriesValores[[#This Row],[360º]],misPuntos)=0,miEscala,0)","v":0}]
[null,null,null,null,null,null,null,null,null,null,null,null,null,null,null,null,null,null,null,null,null,null,null,null,null,null,null,null,null,null,60,{"$f":"IFERROR(INDEX(misRayos,IF(MOD(TablaSeriesValores[[#This Row],[360º]],misPuntos)=0,NA(),INT(TablaSeriesValores[[#This Row],[360º]]/misPuntos)+1)),0)","v":0},{"$f":"IF(miFila=INT(TablaSeriesValores[[#This Row],[360º]]/misPuntos)+1,TablaSeriesValores[[#This Row],[Valores]],0)","v":0},{"$f":"IF(MOD(TablaSeriesValores[[#This Row],[360º]],misPuntos)=0,miEscala,0)","v":2419}]
[null,null,null,null,null,null,null,null,null,null,null,null,null,null,null,null,null,null,null,null,null,null,null,null,null,null,null,null,null,null,61,{"$f":"IFERROR(INDEX(misRayos,IF(MOD(TablaSeriesValores[[#This Row],[360º]],misPuntos)=0,NA(),INT(TablaSeriesValores[[#This Row],[360º]]/misPuntos)+1)),0)","v":1526.58},{"$f":"IF(miFila=INT(TablaSeriesValores[[#This Row],[360º]]/misPuntos)+1,TablaSeriesValores[[#This Row],[Valores]],0)","v":0},{"$f":"IF(MOD(TablaSeriesValores[[#This Row],[360º]],misPuntos)=0,miEscala,0)","v":0}]
[null,null,null,null,null,null,null,null,null,null,null,null,null,null,null,null,null,null,null,null,null,null,null,null,null,null,null,null,null,null,62,{"$f":"IFERROR(INDEX(misRayos,IF(MOD(TablaSeriesValores[[#This Row],[360º]],misPuntos)=0,NA(),INT(TablaSeriesValores[[#This Row],[360º]]/misPuntos)+1)),0)","v":1526.58},{"$f":"IF(miFila=INT(TablaSeriesValores[[#This Row],[360º]]/misPuntos)+1,TablaSeriesValores[[#This Row],[Valores]],0)","v":0},{"$f":"IF(MOD(TablaSeriesValores[[#This Row],[360º]],misPuntos)=0,miEscala,0)","v":0}]
[null,null,null,null,null,null,null,null,null,null,null,null,null,null,null,null,null,null,null,null,null,null,null,null,null,null,null,null,null,null,63,{"$f":"IFERROR(INDEX(misRayos,IF(MOD(TablaSeriesValores[[#This Row],[360º]],misPuntos)=0,NA(),INT(TablaSeriesValores[[#This Row],[360º]]/misPuntos)+1)),0)","v":1526.58},{"$f":"IF(miFila=INT(TablaSeriesValores[[#This Row],[360º]]/misPuntos)+1,TablaSeriesValores[[#This Row],[Valores]],0)","v":0},{"$f":"IF(MOD(TablaSeriesValores[[#This Row],[360º]],misPuntos)=0,miEscala,0)","v":0}]
[null,null,null,null,null,null,null,null,null,null,null,null,null,null,null,null,null,null,null,null,null,null,null,null,null,null,null,null,null,null,{"$f":"ROW(AE65)-ROW($AE$1)","v":64},{"$f":"IFERROR(INDEX(misRayos,IF(MOD(TablaSeriesValores[[#This Row],[360º]],misPuntos)=0,NA(),INT(TablaSeriesValores[[#This Row],[360º]]/misPuntos)+1)),0)","v":1526.58},{"$f":"IF(miFila=INT(TablaSeriesValores[[#This Row],[360º]]/misPuntos)+1,TablaSeriesValores[[#This Row],[Valores]],0)","v":0},{"$f":"IF(MOD(TablaSeriesValores[[#This Row],[360º]],misPuntos)=0,miEscala,0)","v":0}]
[null,null,null,null,null,null,null,null,null,null,null,null,null,null,null,null,null,null,null,null,null,null,null,null,null,null,null,null,null,null,65,{"$f":"IFERROR(INDEX(misRayos,IF(MOD(TablaSeriesValores[[#This Row],[360º]],misPuntos)=0,NA(),INT(TablaSeriesValores[[#This Row],[360º]]/misPuntos)+1)),0)","v":1526.58},{"$f":"IF(miFila=INT(TablaSeriesValores[[#This Row],[360º]]/misPuntos)+1,TablaSeriesValores[[#This Row],[Valores]],0)","v":0},{"$f":"IF(MOD(TablaSeriesValores[[#This Row],[360º]],misPuntos)=0,miEscala,0)","v":0}]
[null,null,null,null,null,null,null,null,null,null,null,null,null,null,null,null,null,null,null,null,null,null,null,null,null,null,null,null,null,null,66,{"$f":"IFERROR(INDEX(misRayos,IF(MOD(TablaSeriesValores[[#This Row],[360º]],misPuntos)=0,NA(),INT(TablaSeriesValores[[#This Row],[360º]]/misPuntos)+1)),0)","v":1526.58},{"$f":"IF(miFila=INT(TablaSeriesValores[[#This Row],[360º]]/misPuntos)+1,TablaSeriesValores[[#This Row],[Valores]],0)","v":0},{"$f":"IF(MOD(TablaSeriesValores[[#This Row],[360º]],misPuntos)=0,miEscala,0)","v":0}]
[null,null,null,null,null,null,null,null,null,null,null,null,null,null,null,null,null,null,null,null,null,null,null,null,null,null,null,null,null,null,67,{"$f":"IFERROR(INDEX(misRayos,IF(MOD(TablaSeriesValores[[#This Row],[360º]],misPuntos)=0,NA(),INT(TablaSeriesValores[[#This Row],[360º]]/misPuntos)+1)),0)","v":1526.58},{"$f":"IF(miFila=INT(TablaSeriesValores[[#This Row],[360º]]/misPuntos)+1,TablaSeriesValores[[#This Row],[Valores]],0)","v":0},{"$f":"IF(MOD(TablaSeriesValores[[#This Row],[360º]],misPuntos)=0,miEscala,0)","v":0}]
[null,null,null,null,null,null,null,null,null,null,null,null,null,null,null,null,null,null,null,null,null,null,null,null,null,null,null,null,null,null,68,{"$f":"IFERROR(INDEX(misRayos,IF(MOD(TablaSeriesValores[[#This Row],[360º]],misPuntos)=0,NA(),INT(TablaSeriesValores[[#This Row],[360º]]/misPuntos)+1)),0)","v":1526.58},{"$f":"IF(miFila=INT(TablaSeriesValores[[#This Row],[360º]]/misPuntos)+1,TablaSeriesValores[[#This Row],[Valores]],0)","v":0},{"$f":"IF(MOD(TablaSeriesValores[[#This Row],[360º]],misPuntos)=0,miEscala,0)","v":0}]
[null,null,null,null,null,null,null,null,null,null,null,null,null,null,null,null,null,null,null,null,null,null,null,null,null,null,null,null,null,null,69,{"$f":"IFERROR(INDEX(misRayos,IF(MOD(TablaSeriesValores[[#This Row],[360º]],misPuntos)=0,NA(),INT(TablaSeriesValores[[#This Row],[360º]]/misPuntos)+1)),0)","v":1526.58},{"$f":"IF(miFila=INT(TablaSeriesValores[[#This Row],[360º]]/misPuntos)+1,TablaSeriesValores[[#This Row],[Valores]],0)","v":0},{"$f":"IF(MOD(TablaSeriesValores[[#This Row],[360º]],misPuntos)=0,miEscala,0)","v":0}]
[null,null,null,null,null,null,null,null,null,null,null,null,null,null,null,null,null,null,null,null,null,null,null,null,null,null,null,null,null,null,70,{"$f":"IFERROR(INDEX(misRayos,IF(MOD(TablaSeriesValores[[#This Row],[360º]],misPuntos)=0,NA(),INT(TablaSeriesValores[[#This Row],[360º]]/misPuntos)+1)),0)","v":1526.58},{"$f":"IF(miFila=INT(TablaSeriesValores[[#This Row],[360º]]/misPuntos)+1,TablaSeriesValores[[#This Row],[Valores]],0)","v":0},{"$f":"IF(MOD(TablaSeriesValores[[#This Row],[360º]],misPuntos)=0,miEscala,0)","v":0}]
[null,null,null,null,null,null,null,null,null,null,null,null,null,null,null,null,null,null,null,null,null,null,null,null,null,null,null,null,null,null,71,{"$f":"IFERROR(INDEX(misRayos,IF(MOD(TablaSeriesValores[[#This Row],[360º]],misPuntos)=0,NA(),INT(TablaSeriesValores[[#This Row],[360º]]/misPuntos)+1)),0)","v":1526.58},{"$f":"IF(miFila=INT(TablaSeriesValores[[#This Row],[360º]]/misPuntos)+1,TablaSeriesValores[[#This Row],[Valores]],0)","v":0},{"$f":"IF(MOD(TablaSeriesValores[[#This Row],[360º]],misPuntos)=0,miEscala,0)","v":0}]
[null,null,null,null,null,null,null,null,null,null,null,null,null,null,null,null,null,null,null,null,null,null,null,null,null,null,null,null,null,null,72,{"$f":"IFERROR(INDEX(misRayos,IF(MOD(TablaSeriesValores[[#This Row],[360º]],misPuntos)=0,NA(),INT(TablaSeriesValores[[#This Row],[360º]]/misPuntos)+1)),0)","v":1526.58},{"$f":"IF(miFila=INT(TablaSeriesValores[[#This Row],[360º]]/misPuntos)+1,TablaSeriesValores[[#This Row],[Valores]],0)","v":0},{"$f":"IF(MOD(TablaSeriesValores[[#This Row],[360º]],misPuntos)=0,miEscala,0)","v":0}]
[null,null,null,null,null,null,null,null,null,null,null,null,null,null,null,null,null,null,null,null,null,null,null,null,null,null,null,null,null,null,73,{"$f":"IFERROR(INDEX(misRayos,IF(MOD(TablaSeriesValores[[#This Row],[360º]],misPuntos)=0,NA(),INT(TablaSeriesValores[[#This Row],[360º]]/misPuntos)+1)),0)","v":1526.58},{"$f":"IF(miFila=INT(TablaSeriesValores[[#This Row],[360º]]/misPuntos)+1,TablaSeriesValores[[#This Row],[Valores]],0)","v":0},{"$f":"IF(MOD(TablaSeriesValores[[#This Row],[360º]],misPuntos)=0,miEscala,0)","v":0}]
[null,null,null,null,null,null,null,null,null,null,null,null,null,null,null,null,null,null,null,null,null,null,null,null,null,null,null,null,null,null,74,{"$f":"IFERROR(INDEX(misRayos,IF(MOD(TablaSeriesValores[[#This Row],[360º]],misPuntos)=0,NA(),INT(TablaSeriesValores[[#This Row],[360º]]/misPuntos)+1)),0)","v":1526.58},{"$f":"IF(miFila=INT(TablaSeriesValores[[#This Row],[360º]]/misPuntos)+1,TablaSeriesValores[[#This Row],[Valores]],0)","v":0},{"$f":"IF(MOD(TablaSeriesValores[[#This Row],[360º]],misPuntos)=0,miEscala,0)","v":0}]
[null,null,null,null,null,null,null,null,null,null,null,null,null,null,null,null,null,null,null,null,null,null,null,null,null,null,null,null,null,null,75,{"$f":"IFERROR(INDEX(misRayos,IF(MOD(TablaSeriesValores[[#This Row],[360º]],misPuntos)=0,NA(),INT(TablaSeriesValores[[#This Row],[360º]]/misPuntos)+1)),0)","v":1526.58},{"$f":"IF(miFila=INT(TablaSeriesValores[[#This Row],[360º]]/misPuntos)+1,TablaSeriesValores[[#This Row],[Valores]],0)","v":0},{"$f":"IF(MOD(TablaSeriesValores[[#This Row],[360º]],misPuntos)=0,miEscala,0)","v":0}]
[null,null,null,null,null,null,null,null,null,null,null,null,null,null,null,null,null,null,null,null,null,null,null,null,null,null,null,null,null,null,76,{"$f":"IFERROR(INDEX(misRayos,IF(MOD(TablaSeriesValores[[#This Row],[360º]],misPuntos)=0,NA(),INT(TablaSeriesValores[[#This Row],[360º]]/misPuntos)+1)),0)","v":1526.58},{"$f":"IF(miFila=INT(TablaSeriesValores[[#This Row],[360º]]/misPuntos)+1,TablaSeriesValores[[#This Row],[Valores]],0)","v":0},{"$f":"IF(MOD(TablaSeriesValores[[#This Row],[360º]],misPuntos)=0,miEscala,0)","v":0}]
[null,null,null,null,null,null,null,null,null,null,null,null,null,null,null,null,null,null,null,null,null,null,null,null,null,null,null,null,null,null,77,{"$f":"IFERROR(INDEX(misRayos,IF(MOD(TablaSeriesValores[[#This Row],[360º]],misPuntos)=0,NA(),INT(TablaSeriesValores[[#This Row],[360º]]/misPuntos)+1)),0)","v":1526.58},{"$f":"IF(miFila=INT(TablaSeriesValores[[#This Row],[360º]]/misPuntos)+1,TablaSeriesValores[[#This Row],[Valores]],0)","v":0},{"$f":"IF(MOD(TablaSeriesValores[[#This Row],[360º]],misPuntos)=0,miEscala,0)","v":0}]
[null,null,null,null,null,null,null,null,null,null,null,null,null,null,null,null,null,null,null,null,null,null,null,null,null,null,null,null,null,null,78,{"$f":"IFERROR(INDEX(misRayos,IF(MOD(TablaSeriesValores[[#This Row],[360º]],misPuntos)=0,NA(),INT(TablaSeriesValores[[#This Row],[360º]]/misPuntos)+1)),0)","v":1526.58},{"$f":"IF(miFila=INT(TablaSeriesValores[[#This Row],[360º]]/misPuntos)+1,TablaSeriesValores[[#This Row],[Valores]],0)","v":0},{"$f":"IF(MOD(TablaSeriesValores[[#This Row],[360º]],misPuntos)=0,miEscala,0)","v":0}]
[null,null,null,null,null,null,null,null,null,null,null,null,null,null,null,null,null,null,null,null,null,null,null,null,null,null,null,null,null,null,79,{"$f":"IFERROR(INDEX(misRayos,IF(MOD(TablaSeriesValores[[#This Row],[360º]],misPuntos)=0,NA(),INT(TablaSeriesValores[[#This Row],[360º]]/misPuntos)+1)),0)","v":1526.58},{"$f":"IF(miFila=INT(TablaSeriesValores[[#This Row],[360º]]/misPuntos)+1,TablaSeriesValores[[#This Row],[Valores]],0)","v":0},{"$f":"IF(MOD(TablaSeriesValores[[#This Row],[360º]],misPuntos)=0,miEscala,0)","v":0}]
[null,null,null,null,null,null,null,null,null,null,null,null,null,null,null,null,null,null,null,null,null,null,null,null,null,null,null,null,null,null,80,{"$f":"IFERROR(INDEX(misRayos,IF(MOD(TablaSeriesValores[[#This Row],[360º]],misPuntos)=0,NA(),INT(TablaSeriesValores[[#This Row],[360º]]/misPuntos)+1)),0)","v":1526.58},{"$f":"IF(miFila=INT(TablaSeriesValores[[#This Row],[360º]]/misPuntos)+1,TablaSeriesValores[[#This Row],[Valores]],0)","v":0},{"$f":"IF(MOD(TablaSeriesValores[[#This Row],[360º]],misPuntos)=0,miEscala,0)","v":0}]
[null,null,null,null,null,null,null,null,null,null,null,null,null,null,null,null,null,null,null,null,null,null,null,null,null,null,null,null,null,null,81,{"$f":"IFERROR(INDEX(misRayos,IF(MOD(TablaSeriesValores[[#This Row],[360º]],misPuntos)=0,NA(),INT(TablaSeriesValores[[#This Row],[360º]]/misPuntos)+1)),0)","v":1526.58},{"$f":"IF(miFila=INT(TablaSeriesValores[[#This Row],[360º]]/misPuntos)+1,TablaSeriesValores[[#This Row],[Valores]],0)","v":0},{"$f":"IF(MOD(TablaSeriesValores[[#This Row],[360º]],misPuntos)=0,miEscala,0)","v":0}]
[null,null,null,null,null,null,null,null,null,null,null,null,null,null,null,null,null,null,null,null,null,null,null,null,null,null,null,null,null,null,82,{"$f":"IFERROR(INDEX(misRayos,IF(MOD(TablaSeriesValores[[#This Row],[360º]],misPuntos)=0,NA(),INT(TablaSeriesValores[[#This Row],[360º]]/misPuntos)+1)),0)","v":1526.58},{"$f":"IF(miFila=INT(TablaSeriesValores[[#This Row],[360º]]/misPuntos)+1,TablaSeriesValores[[#This Row],[Valores]],0)","v":0},{"$f":"IF(MOD(TablaSeriesValores[[#This Row],[360º]],misPuntos)=0,miEscala,0)","v":0}]
[null,null,null,null,null,null,null,null,null,null,null,null,null,null,null,null,null,null,null,null,null,null,null,null,null,null,null,null,null,null,83,{"$f":"IFERROR(INDEX(misRayos,IF(MOD(TablaSeriesValores[[#This Row],[360º]],misPuntos)=0,NA(),INT(TablaSeriesValores[[#This Row],[360º]]/misPuntos)+1)),0)","v":1526.58},{"$f":"IF(miFila=INT(TablaSeriesValores[[#This Row],[360º]]/misPuntos)+1,TablaSeriesValores[[#This Row],[Valores]],0)","v":0},{"$f":"IF(MOD(TablaSeriesValores[[#This Row],[360º]],misPuntos)=0,miEscala,0)","v":0}]
[null,null,null,null,null,null,null,null,null,null,null,null,null,null,null,null,null,null,null,null,null,null,null,null,null,null,null,null,null,null,84,{"$f":"IFERROR(INDEX(misRayos,IF(MOD(TablaSeriesValores[[#This Row],[360º]],misPuntos)=0,NA(),INT(TablaSeriesValores[[#This Row],[360º]]/misPuntos)+1)),0)","v":1526.58},{"$f":"IF(miFila=INT(TablaSeriesValores[[#This Row],[360º]]/misPuntos)+1,TablaSeriesValores[[#This Row],[Valores]],0)","v":0},{"$f":"IF(MOD(TablaSeriesValores[[#This Row],[360º]],misPuntos)=0,miEscala,0)","v":0}]
[null,null,null,null,null,null,null,null,null,null,null,null,null,null,null,null,null,null,null,null,null,null,null,null,null,null,null,null,null,null,85,{"$f":"IFERROR(INDEX(misRayos,IF(MOD(TablaSeriesValores[[#This Row],[360º]],misPuntos)=0,NA(),INT(TablaSeriesValores[[#This Row],[360º]]/misPuntos)+1)),0)","v":1526.58},{"$f":"IF(miFila=INT(TablaSeriesValores[[#This Row],[360º]]/misPuntos)+1,TablaSeriesValores[[#This Row],[Valores]],0)","v":0},{"$f":"IF(MOD(TablaSeriesValores[[#This Row],[360º]],misPuntos)=0,miEscala,0)","v":0}]
[null,null,null,null,null,null,null,null,null,null,null,null,null,null,null,null,null,null,null,null,null,null,null,null,null,null,null,null,null,null,86,{"$f":"IFERROR(INDEX(misRayos,IF(MOD(TablaSeriesValores[[#This Row],[360º]],misPuntos)=0,NA(),INT(TablaSeriesValores[[#This Row],[360º]]/misPuntos)+1)),0)","v":1526.58},{"$f":"IF(miFila=INT(TablaSeriesValores[[#This Row],[360º]]/misPuntos)+1,TablaSeriesValores[[#This Row],[Valores]],0)","v":0},{"$f":"IF(MOD(TablaSeriesValores[[#This Row],[360º]],misPuntos)=0,miEscala,0)","v":0}]
[null,null,null,null,null,null,null,null,null,null,null,null,null,null,null,null,null,null,null,null,null,null,null,null,null,null,null,null,null,null,87,{"$f":"IFERROR(INDEX(misRayos,IF(MOD(TablaSeriesValores[[#This Row],[360º]],misPuntos)=0,NA(),INT(TablaSeriesValores[[#This Row],[360º]]/misPuntos)+1)),0)","v":1526.58},{"$f":"IF(miFila=INT(TablaSeriesValores[[#This Row],[360º]]/misPuntos)+1,TablaSeriesValores[[#This Row],[Valores]],0)","v":0},{"$f":"IF(MOD(TablaSeriesValores[[#This Row],[360º]],misPuntos)=0,miEscala,0)","v":0}]
[null,null,null,null,null,null,null,null,null,null,null,null,null,null,null,null,null,null,null,null,null,null,null,null,null,null,null,null,null,null,88,{"$f":"IFERROR(INDEX(misRayos,IF(MOD(TablaSeriesValores[[#This Row],[360º]],misPuntos)=0,NA(),INT(TablaSeriesValores[[#This Row],[360º]]/misPuntos)+1)),0)","v":1526.58},{"$f":"IF(miFila=INT(TablaSeriesValores[[#This Row],[360º]]/misPuntos)+1,TablaSeriesValores[[#This Row],[Valores]],0)","v":0},{"$f":"IF(MOD(TablaSeriesValores[[#This Row],[360º]],misPuntos)=0,miEscala,0)","v":0}]
[null,null,null,null,null,null,null,null,null,null,null,null,null,null,null,null,null,null,null,null,null,null,null,null,null,null,null,null,null,null,89,{"$f":"IFERROR(INDEX(misRayos,IF(MOD(TablaSeriesValores[[#This Row],[360º]],misPuntos)=0,NA(),INT(TablaSeriesValores[[#This Row],[360º]]/misPuntos)+1)),0)","v":1526.58},{"$f":"IF(miFila=INT(TablaSeriesValores[[#This Row],[360º]]/misPuntos)+1,TablaSeriesValores[[#This Row],[Valores]],0)","v":0},{"$f":"IF(MOD(TablaSeriesValores[[#This Row],[360º]],misPuntos)=0,miEscala,0)","v":0}]
[null,null,null,null,null,null,null,null,null,null,null,null,null,null,null,null,null,null,null,null,null,null,null,null,null,null,null,null,null,null,90,{"$f":"IFERROR(INDEX(misRayos,IF(MOD(TablaSeriesValores[[#This Row],[360º]],misPuntos)=0,NA(),INT(TablaSeriesValores[[#This Row],[360º]]/misPuntos)+1)),0)","v":0},{"$f":"IF(miFila=INT(TablaSeriesValores[[#This Row],[360º]]/misPuntos)+1,TablaSeriesValores[[#This Row],[Valores]],0)","v":0},{"$f":"IF(MOD(TablaSeriesValores[[#This Row],[360º]],misPuntos)=0,miEscala,0)","v":2419}]
[null,null,null,null,null,null,null,null,null,null,null,null,null,null,null,null,null,null,null,null,null,null,null,null,null,null,null,null,null,null,91,{"$f":"IFERROR(INDEX(misRayos,IF(MOD(TablaSeriesValores[[#This Row],[360º]],misPuntos)=0,NA(),INT(TablaSeriesValores[[#This Row],[360º]]/misPuntos)+1)),0)","v":1678.48},{"$f":"IF(miFila=INT(TablaSeriesValores[[#This Row],[360º]]/misPuntos)+1,TablaSeriesValores[[#This Row],[Valores]],0)","v":0},{"$f":"IF(MOD(TablaSeriesValores[[#This Row],[360º]],misPuntos)=0,miEscala,0)","v":0}]
[null,null,null,null,null,null,null,null,null,null,null,null,null,null,null,null,null,null,null,null,null,null,null,null,null,null,null,null,null,null,92,{"$f":"IFERROR(INDEX(misRayos,IF(MOD(TablaSeriesValores[[#This Row],[360º]],misPuntos)=0,NA(),INT(TablaSeriesValores[[#This Row],[360º]]/misPuntos)+1)),0)","v":1678.48},{"$f":"IF(miFila=INT(TablaSeriesValores[[#This Row],[360º]]/misPuntos)+1,TablaSeriesValores[[#This Row],[Valores]],0)","v":0},{"$f":"IF(MOD(TablaSeriesValores[[#This Row],[360º]],misPuntos)=0,miEscala,0)","v":0}]
[null,null,null,null,null,null,null,null,null,null,null,null,null,null,null,null,null,null,null,null,null,null,null,null,null,null,null,null,null,null,93,{"$f":"IFERROR(INDEX(misRayos,IF(MOD(TablaSeriesValores[[#This Row],[360º]],misPuntos)=0,NA(),INT(TablaSeriesValores[[#This Row],[360º]]/misPuntos)+1)),0)","v":1678.48},{"$f":"IF(miFila=INT(TablaSeriesValores[[#This Row],[360º]]/misPuntos)+1,TablaSeriesValores[[#This Row],[Valores]],0)","v":0},{"$f":"IF(MOD(TablaSeriesValores[[#This Row],[360º]],misPuntos)=0,miEscala,0)","v":0}]
[null,null,null,null,null,null,null,null,null,null,null,null,null,null,null,null,null,null,null,null,null,null,null,null,null,null,null,null,null,null,94,{"$f":"IFERROR(INDEX(misRayos,IF(MOD(TablaSeriesValores[[#This Row],[360º]],misPuntos)=0,NA(),INT(TablaSeriesValores[[#This Row],[360º]]/misPuntos)+1)),0)","v":1678.48},{"$f":"IF(miFila=INT(TablaSeriesValores[[#This Row],[360º]]/misPuntos)+1,TablaSeriesValores[[#This Row],[Valores]],0)","v":0},{"$f":"IF(MOD(TablaSeriesValores[[#This Row],[360º]],misPuntos)=0,miEscala,0)","v":0}]
[null,null,null,null,null,null,null,null,null,null,null,null,null,null,null,null,null,null,null,null,null,null,null,null,null,null,null,null,null,null,95,{"$f":"IFERROR(INDEX(misRayos,IF(MOD(TablaSeriesValores[[#This Row],[360º]],misPuntos)=0,NA(),INT(TablaSeriesValores[[#This Row],[360º]]/misPuntos)+1)),0)","v":1678.48},{"$f":"IF(miFila=INT(TablaSeriesValores[[#This Row],[360º]]/misPuntos)+1,TablaSeriesValores[[#This Row],[Valores]],0)","v":0},{"$f":"IF(MOD(TablaSeriesValores[[#This Row],[360º]],misPuntos)=0,miEscala,0)","v":0}]
[null,null,null,null,null,null,null,null,null,null,null,null,null,null,null,null,null,null,null,null,null,null,null,null,null,null,null,null,null,null,96,{"$f":"IFERROR(INDEX(misRayos,IF(MOD(TablaSeriesValores[[#This Row],[360º]],misPuntos)=0,NA(),INT(TablaSeriesValores[[#This Row],[360º]]/misPuntos)+1)),0)","v":1678.48},{"$f":"IF(miFila=INT(TablaSeriesValores[[#This Row],[360º]]/misPuntos)+1,TablaSeriesValores[[#This Row],[Valores]],0)","v":0},{"$f":"IF(MOD(TablaSeriesValores[[#This Row],[360º]],misPuntos)=0,miEscala,0)","v":0}]
[null,null,null,null,null,null,null,null,null,null,null,null,null,null,null,null,null,null,null,null,null,null,null,null,null,null,null,null,null,null,97,{"$f":"IFERROR(INDEX(misRayos,IF(MOD(TablaSeriesValores[[#This Row],[360º]],misPuntos)=0,NA(),INT(TablaSeriesValores[[#This Row],[360º]]/misPuntos)+1)),0)","v":1678.48},{"$f":"IF(miFila=INT(TablaSeriesValores[[#This Row],[360º]]/misPuntos)+1,TablaSeriesValores[[#This Row],[Valores]],0)","v":0},{"$f":"IF(MOD(TablaSeriesValores[[#This Row],[360º]],misPuntos)=0,miEscala,0)","v":0}]
[null,null,null,null,null,null,null,null,null,null,null,null,null,null,null,null,null,null,null,null,null,null,null,null,null,null,null,null,null,null,98,{"$f":"IFERROR(INDEX(misRayos,IF(MOD(TablaSeriesValores[[#This Row],[360º]],misPuntos)=0,NA(),INT(TablaSeriesValores[[#This Row],[360º]]/misPuntos)+1)),0)","v":1678.48},{"$f":"IF(miFila=INT(TablaSeriesValores[[#This Row],[360º]]/misPuntos)+1,TablaSeriesValores[[#This Row],[Valores]],0)","v":0},{"$f":"IF(MOD(TablaSeriesValores[[#This Row],[360º]],misPuntos)=0,miEscala,0)","v":0}]
[null,null,null,null,null,null,null,null,null,null,null,null,null,null,null,null,null,null,null,null,null,null,null,null,null,null,null,null,null,null,99,{"$f":"IFERROR(INDEX(misRayos,IF(MOD(TablaSeriesValores[[#This Row],[360º]],misPuntos)=0,NA(),INT(TablaSeriesValores[[#This Row],[360º]]/misPuntos)+1)),0)","v":1678.48},{"$f":"IF(miFila=INT(TablaSeriesValores[[#This Row],[360º]]/misPuntos)+1,TablaSeriesValores[[#This Row],[Valores]],0)","v":0},{"$f":"IF(MOD(TablaSeriesValores[[#This Row],[360º]],misPuntos)=0,miEscala,0)","v":0}]
[null,null,null,null,null,null,null,null,null,null,null,null,null,null,null,null,null,null,null,null,null,null,null,null,null,null,null,null,null,null,100,{"$f":"IFERROR(INDEX(misRayos,IF(MOD(TablaSeriesValores[[#This Row],[360º]],misPuntos)=0,NA(),INT(TablaSeriesValores[[#This Row],[360º]]/misPuntos)+1)),0)","v":1678.48},{"$f":"IF(miFila=INT(TablaSeriesValores[[#This Row],[360º]]/misPuntos)+1,TablaSeriesValores[[#This Row],[Valores]],0)","v":0},{"$f":"IF(MOD(TablaSeriesValores[[#This Row],[360º]],misPuntos)=0,miEscala,0)","v":0}]
[null,null,null,null,null,null,null,null,null,null,null,null,null,null,null,null,null,null,null,null,null,null,null,null,null,null,null,null,null,null,101,{"$f":"IFERROR(INDEX(misRayos,IF(MOD(TablaSeriesValores[[#This Row],[360º]],misPuntos)=0,NA(),INT(TablaSeriesValores[[#This Row],[360º]]/misPuntos)+1)),0)","v":1678.48},{"$f":"IF(miFila=INT(TablaSeriesValores[[#This Row],[360º]]/misPuntos)+1,TablaSeriesValores[[#This Row],[Valores]],0)","v":0},{"$f":"IF(MOD(TablaSeriesValores[[#This Row],[360º]],misPuntos)=0,miEscala,0)","v":0}]
[null,null,null,null,null,null,null,null,null,null,null,null,null,null,null,null,null,null,null,null,null,null,null,null,null,null,null,null,null,null,102,{"$f":"IFERROR(INDEX(misRayos,IF(MOD(TablaSeriesValores[[#This Row],[360º]],misPuntos)=0,NA(),INT(TablaSeriesValores[[#This Row],[360º]]/misPuntos)+1)),0)","v":1678.48},{"$f":"IF(miFila=INT(TablaSeriesValores[[#This Row],[360º]]/misPuntos)+1,TablaSeriesValores[[#This Row],[Valores]],0)","v":0},{"$f":"IF(MOD(TablaSeriesValores[[#This Row],[360º]],misPuntos)=0,miEscala,0)","v":0}]
[null,null,null,null,null,null,null,null,null,null,null,null,null,null,null,null,null,null,null,null,null,null,null,null,null,null,null,null,null,null,103,{"$f":"IFERROR(INDEX(misRayos,IF(MOD(TablaSeriesValores[[#This Row],[360º]],misPuntos)=0,NA(),INT(TablaSeriesValores[[#This Row],[360º]]/misPuntos)+1)),0)","v":1678.48},{"$f":"IF(miFila=INT(TablaSeriesValores[[#This Row],[360º]]/misPuntos)+1,TablaSeriesValores[[#This Row],[Valores]],0)","v":0},{"$f":"IF(MOD(TablaSeriesValores[[#This Row],[360º]],misPuntos)=0,miEscala,0)","v":0}]
[null,null,null,null,null,null,null,null,null,null,null,null,null,null,null,null,null,null,null,null,null,null,null,null,null,null,null,null,null,null,104,{"$f":"IFERROR(INDEX(misRayos,IF(MOD(TablaSeriesValores[[#This Row],[360º]],misPuntos)=0,NA(),INT(TablaSeriesValores[[#This Row],[360º]]/misPuntos)+1)),0)","v":1678.48},{"$f":"IF(miFila=INT(TablaSeriesValores[[#This Row],[360º]]/misPuntos)+1,TablaSeriesValores[[#This Row],[Valores]],0)","v":0},{"$f":"IF(MOD(TablaSeriesValores[[#This Row],[360º]],misPuntos)=0,miEscala,0)","v":0}]
[null,null,null,null,null,null,null,null,null,null,null,null,null,null,null,null,null,null,null,null,null,null,null,null,null,null,null,null,null,null,105,{"$f":"IFERROR(INDEX(misRayos,IF(MOD(TablaSeriesValores[[#This Row],[360º]],misPuntos)=0,NA(),INT(TablaSeriesValores[[#This Row],[360º]]/misPuntos)+1)),0)","v":1678.48},{"$f":"IF(miFila=INT(TablaSeriesValores[[#This Row],[360º]]/misPuntos)+1,TablaSeriesValores[[#This Row],[Valores]],0)","v":0},{"$f":"IF(MOD(TablaSeriesValores[[#This Row],[360º]],misPuntos)=0,miEscala,0)","v":0}]
[null,null,null,null,null,null,null,null,null,null,null,null,null,null,null,null,null,null,null,null,null,null,null,null,null,null,null,null,null,null,106,{"$f":"IFERROR(INDEX(misRayos,IF(MOD(TablaSeriesValores[[#This Row],[360º]],misPuntos)=0,NA(),INT(TablaSeriesValores[[#This Row],[360º]]/misPuntos)+1)),0)","v":1678.48},{"$f":"IF(miFila=INT(TablaSeriesValores[[#This Row],[360º]]/misPuntos)+1,TablaSeriesValores[[#This Row],[Valores]],0)","v":0},{"$f":"IF(MOD(TablaSeriesValores[[#This Row],[360º]],misPuntos)=0,miEscala,0)","v":0}]
[null,null,null,null,null,null,null,null,null,null,null,null,null,null,null,null,null,null,null,null,null,null,null,null,null,null,null,null,null,null,107,{"$f":"IFERROR(INDEX(misRayos,IF(MOD(TablaSeriesValores[[#This Row],[360º]],misPuntos)=0,NA(),INT(TablaSeriesValores[[#This Row],[360º]]/misPuntos)+1)),0)","v":1678.48},{"$f":"IF(miFila=INT(TablaSeriesValores[[#This Row],[360º]]/misPuntos)+1,TablaSeriesValores[[#This Row],[Valores]],0)","v":0},{"$f":"IF(MOD(TablaSeriesValores[[#This Row],[360º]],misPuntos)=0,miEscala,0)","v":0}]
[null,null,null,null,null,null,null,null,null,null,null,null,null,null,null,null,null,null,null,null,null,null,null,null,null,null,null,null,null,null,108,{"$f":"IFERROR(INDEX(misRayos,IF(MOD(TablaSeriesValores[[#This Row],[360º]],misPuntos)=0,NA(),INT(TablaSeriesValores[[#This Row],[360º]]/misPuntos)+1)),0)","v":1678.48},{"$f":"IF(miFila=INT(TablaSeriesValores[[#This Row],[360º]]/misPuntos)+1,TablaSeriesValores[[#This Row],[Valores]],0)","v":0},{"$f":"IF(MOD(TablaSeriesValores[[#This Row],[360º]],misPuntos)=0,miEscala,0)","v":0}]
[null,null,null,null,null,null,null,null,null,null,null,null,null,null,null,null,null,null,null,null,null,null,null,null,null,null,null,null,null,null,109,{"$f":"IFERROR(INDEX(misRayos,IF(MOD(TablaSeriesValores[[#This Row],[360º]],misPuntos)=0,NA(),INT(TablaSeriesValores[[#This Row],[360º]]/misPuntos)+1)),0)","v":1678.48},{"$f":"IF(miFila=INT(TablaSeriesValores[[#This Row],[360º]]/misPuntos)+1,TablaSeriesValores[[#This Row],[Valores]],0)","v":0},{"$f":"IF(MOD(TablaSeriesValores[[#This Row],[360º]],misPuntos)=0,miEscala,0)","v":0}]
[null,null,null,null,null,null,null,null,null,null,null,null,null,null,null,null,null,null,null,null,null,null,null,null,null,null,null,null,null,null,110,{"$f":"IFERROR(INDEX(misRayos,IF(MOD(TablaSeriesValores[[#This Row],[360º]],misPuntos)=0,NA(),INT(TablaSeriesValores[[#This Row],[360º]]/misPuntos)+1)),0)","v":1678.48},{"$f":"IF(miFila=INT(TablaSeriesValores[[#This Row],[360º]]/misPuntos)+1,TablaSeriesValores[[#This Row],[Valores]],0)","v":0},{"$f":"IF(MOD(TablaSeriesValores[[#This Row],[360º]],misPuntos)=0,miEscala,0)","v":0}]
[null,null,null,null,null,null,null,null,null,null,null,null,null,null,null,null,null,null,null,null,null,null,null,null,null,null,null,null,null,null,111,{"$f":"IFERROR(INDEX(misRayos,IF(MOD(TablaSeriesValores[[#This Row],[360º]],misPuntos)=0,NA(),INT(TablaSeriesValores[[#This Row],[360º]]/misPuntos)+1)),0)","v":1678.48},{"$f":"IF(miFila=INT(TablaSeriesValores[[#This Row],[360º]]/misPuntos)+1,TablaSeriesValores[[#This Row],[Valores]],0)","v":0},{"$f":"IF(MOD(TablaSeriesValores[[#This Row],[360º]],misPuntos)=0,miEscala,0)","v":0}]
[null,null,null,null,null,null,null,null,null,null,null,null,null,null,null,null,null,null,null,null,null,null,null,null,null,null,null,null,null,null,112,{"$f":"IFERROR(INDEX(misRayos,IF(MOD(TablaSeriesValores[[#This Row],[360º]],misPuntos)=0,NA(),INT(TablaSeriesValores[[#This Row],[360º]]/misPuntos)+1)),0)","v":1678.48},{"$f":"IF(miFila=INT(TablaSeriesValores[[#This Row],[360º]]/misPuntos)+1,TablaSeriesValores[[#This Row],[Valores]],0)","v":0},{"$f":"IF(MOD(TablaSeriesValores[[#This Row],[360º]],misPuntos)=0,miEscala,0)","v":0}]
[null,null,null,null,null,null,null,null,null,null,null,null,null,null,null,null,null,null,null,null,null,null,null,null,null,null,null,null,null,null,113,{"$f":"IFERROR(INDEX(misRayos,IF(MOD(TablaSeriesValores[[#This Row],[360º]],misPuntos)=0,NA(),INT(TablaSeriesValores[[#This Row],[360º]]/misPuntos)+1)),0)","v":1678.48},{"$f":"IF(miFila=INT(TablaSeriesValores[[#This Row],[360º]]/misPuntos)+1,TablaSeriesValores[[#This Row],[Valores]],0)","v":0},{"$f":"IF(MOD(TablaSeriesValores[[#This Row],[360º]],misPuntos)=0,miEscala,0)","v":0}]
[null,null,null,null,null,null,null,null,null,null,null,null,null,null,null,null,null,null,null,null,null,null,null,null,null,null,null,null,null,null,114,{"$f":"IFERROR(INDEX(misRayos,IF(MOD(TablaSeriesValores[[#This Row],[360º]],misPuntos)=0,NA(),INT(TablaSeriesValores[[#This Row],[360º]]/misPuntos)+1)),0)","v":1678.48},{"$f":"IF(miFila=INT(TablaSeriesValores[[#This Row],[360º]]/misPuntos)+1,TablaSeriesValores[[#This Row],[Valores]],0)","v":0},{"$f":"IF(MOD(TablaSeriesValores[[#This Row],[360º]],misPuntos)=0,miEscala,0)","v":0}]
[null,null,null,null,null,null,null,null,null,null,null,null,null,null,null,null,null,null,null,null,null,null,null,null,null,null,null,null,null,null,115,{"$f":"IFERROR(INDEX(misRayos,IF(MOD(TablaSeriesValores[[#This Row],[360º]],misPuntos)=0,NA(),INT(TablaSeriesValores[[#This Row],[360º]]/misPuntos)+1)),0)","v":1678.48},{"$f":"IF(miFila=INT(TablaSeriesValores[[#This Row],[360º]]/misPuntos)+1,TablaSeriesValores[[#This Row],[Valores]],0)","v":0},{"$f":"IF(MOD(TablaSeriesValores[[#This Row],[360º]],misPuntos)=0,miEscala,0)","v":0}]
[null,null,null,null,null,null,null,null,null,null,null,null,null,null,null,null,null,null,null,null,null,null,null,null,null,null,null,null,null,null,116,{"$f":"IFERROR(INDEX(misRayos,IF(MOD(TablaSeriesValores[[#This Row],[360º]],misPuntos)=0,NA(),INT(TablaSeriesValores[[#This Row],[360º]]/misPuntos)+1)),0)","v":1678.48},{"$f":"IF(miFila=INT(TablaSeriesValores[[#This Row],[360º]]/misPuntos)+1,TablaSeriesValores[[#This Row],[Valores]],0)","v":0},{"$f":"IF(MOD(TablaSeriesValores[[#This Row],[360º]],misPuntos)=0,miEscala,0)","v":0}]
[null,null,null,null,null,null,null,null,null,null,null,null,null,null,null,null,null,null,null,null,null,null,null,null,null,null,null,null,null,null,117,{"$f":"IFERROR(INDEX(misRayos,IF(MOD(TablaSeriesValores[[#This Row],[360º]],misPuntos)=0,NA(),INT(TablaSeriesValores[[#This Row],[360º]]/misPuntos)+1)),0)","v":1678.48},{"$f":"IF(miFila=INT(TablaSeriesValores[[#This Row],[360º]]/misPuntos)+1,TablaSeriesValores[[#This Row],[Valores]],0)","v":0},{"$f":"IF(MOD(TablaSeriesValores[[#This Row],[360º]],misPuntos)=0,miEscala,0)","v":0}]
[null,null,null,null,null,null,null,null,null,null,null,null,null,null,null,null,null,null,null,null,null,null,null,null,null,null,null,null,null,null,118,{"$f":"IFERROR(INDEX(misRayos,IF(MOD(TablaSeriesValores[[#This Row],[360º]],misPuntos)=0,NA(),INT(TablaSeriesValores[[#This Row],[360º]]/misPuntos)+1)),0)","v":1678.48},{"$f":"IF(miFila=INT(TablaSeriesValores[[#This Row],[360º]]/misPuntos)+1,TablaSeriesValores[[#This Row],[Valores]],0)","v":0},{"$f":"IF(MOD(TablaSeriesValores[[#This Row],[360º]],misPuntos)=0,miEscala,0)","v":0}]
[null,null,null,null,null,null,null,null,null,null,null,null,null,null,null,null,null,null,null,null,null,null,null,null,null,null,null,null,null,null,119,{"$f":"IFERROR(INDEX(misRayos,IF(MOD(TablaSeriesValores[[#This Row],[360º]],misPuntos)=0,NA(),INT(TablaSeriesValores[[#This Row],[360º]]/misPuntos)+1)),0)","v":1678.48},{"$f":"IF(miFila=INT(TablaSeriesValores[[#This Row],[360º]]/misPuntos)+1,TablaSeriesValores[[#This Row],[Valores]],0)","v":0},{"$f":"IF(MOD(TablaSeriesValores[[#This Row],[360º]],misPuntos)=0,miEscala,0)","v":0}]
[null,null,null,null,null,null,null,null,null,null,null,null,null,null,null,null,null,null,null,null,null,null,null,null,null,null,null,null,null,null,120,{"$f":"IFERROR(INDEX(misRayos,IF(MOD(TablaSeriesValores[[#This Row],[360º]],misPuntos)=0,NA(),INT(TablaSeriesValores[[#This Row],[360º]]/misPuntos)+1)),0)","v":0},{"$f":"IF(miFila=INT(TablaSeriesValores[[#This Row],[360º]]/misPuntos)+1,TablaSeriesValores[[#This Row],[Valores]],0)","v":0},{"$f":"IF(MOD(TablaSeriesValores[[#This Row],[360º]],misPuntos)=0,miEscala,0)","v":2419}]
[null,null,null,null,null,null,null,null,null,null,null,null,null,null,null,null,null,null,null,null,null,null,null,null,null,null,null,null,null,null,121,{"$f":"IFERROR(INDEX(misRayos,IF(MOD(TablaSeriesValores[[#This Row],[360º]],misPuntos)=0,NA(),INT(TablaSeriesValores[[#This Row],[360º]]/misPuntos)+1)),0)","v":1978.13},{"$f":"IF(miFila=INT(TablaSeriesValores[[#This Row],[360º]]/misPuntos)+1,TablaSeriesValores[[#This Row],[Valores]],0)","v":1978.13},{"$f":"IF(MOD(TablaSeriesValores[[#This Row],[360º]],misPuntos)=0,miEscala,0)","v":0}]
[null,null,null,null,null,null,null,null,null,null,null,null,null,null,null,null,null,null,null,null,null,null,null,null,null,null,null,null,null,null,122,{"$f":"IFERROR(INDEX(misRayos,IF(MOD(TablaSeriesValores[[#This Row],[360º]],misPuntos)=0,NA(),INT(TablaSeriesValores[[#This Row],[360º]]/misPuntos)+1)),0)","v":1978.13},{"$f":"IF(miFila=INT(TablaSeriesValores[[#This Row],[360º]]/misPuntos)+1,TablaSeriesValores[[#This Row],[Valores]],0)","v":1978.13},{"$f":"IF(MOD(TablaSeriesValores[[#This Row],[360º]],misPuntos)=0,miEscala,0)","v":0}]
[null,null,null,null,null,null,null,null,null,null,null,null,null,null,null,null,null,null,null,null,null,null,null,null,null,null,null,null,null,null,123,{"$f":"IFERROR(INDEX(misRayos,IF(MOD(TablaSeriesValores[[#This Row],[360º]],misPuntos)=0,NA(),INT(TablaSeriesValores[[#This Row],[360º]]/misPuntos)+1)),0)","v":1978.13},{"$f":"IF(miFila=INT(TablaSeriesValores[[#This Row],[360º]]/misPuntos)+1,TablaSeriesValores[[#This Row],[Valores]],0)","v":1978.13},{"$f":"IF(MOD(TablaSeriesValores[[#This Row],[360º]],misPuntos)=0,miEscala,0)","v":0}]
[null,null,null,null,null,null,null,null,null,null,null,null,null,null,null,null,null,null,null,null,null,null,null,null,null,null,null,null,null,null,124,{"$f":"IFERROR(INDEX(misRayos,IF(MOD(TablaSeriesValores[[#This Row],[360º]],misPuntos)=0,NA(),INT(TablaSeriesValores[[#This Row],[360º]]/misPuntos)+1)),0)","v":1978.13},{"$f":"IF(miFila=INT(TablaSeriesValores[[#This Row],[360º]]/misPuntos)+1,TablaSeriesValores[[#This Row],[Valores]],0)","v":1978.13},{"$f":"IF(MOD(TablaSeriesValores[[#This Row],[360º]],misPuntos)=0,miEscala,0)","v":0}]
[null,null,null,null,null,null,null,null,null,null,null,null,null,null,null,null,null,null,null,null,null,null,null,null,null,null,null,null,null,null,125,{"$f":"IFERROR(INDEX(misRayos,IF(MOD(TablaSeriesValores[[#This Row],[360º]],misPuntos)=0,NA(),INT(TablaSeriesValores[[#This Row],[360º]]/misPuntos)+1)),0)","v":1978.13},{"$f":"IF(miFila=INT(TablaSeriesValores[[#This Row],[360º]]/misPuntos)+1,TablaSeriesValores[[#This Row],[Valores]],0)","v":1978.13},{"$f":"IF(MOD(TablaSeriesValores[[#This Row],[360º]],misPuntos)=0,miEscala,0)","v":0}]
[null,null,null,null,null,null,null,null,null,null,null,null,null,null,null,null,null,null,null,null,null,null,null,null,null,null,null,null,null,null,126,{"$f":"IFERROR(INDEX(misRayos,IF(MOD(TablaSeriesValores[[#This Row],[360º]],misPuntos)=0,NA(),INT(TablaSeriesValores[[#This Row],[360º]]/misPuntos)+1)),0)","v":1978.13},{"$f":"IF(miFila=INT(TablaSeriesValores[[#This Row],[360º]]/misPuntos)+1,TablaSeriesValores[[#This Row],[Valores]],0)","v":1978.13},{"$f":"IF(MOD(TablaSeriesValores[[#This Row],[360º]],misPuntos)=0,miEscala,0)","v":0}]
[null,null,null,null,null,null,null,null,null,null,null,null,null,null,null,null,null,null,null,null,null,null,null,null,null,null,null,null,null,null,127,{"$f":"IFERROR(INDEX(misRayos,IF(MOD(TablaSeriesValores[[#This Row],[360º]],misPuntos)=0,NA(),INT(TablaSeriesValores[[#This Row],[360º]]/misPuntos)+1)),0)","v":1978.13},{"$f":"IF(miFila=INT(TablaSeriesValores[[#This Row],[360º]]/misPuntos)+1,TablaSeriesValores[[#This Row],[Valores]],0)","v":1978.13},{"$f":"IF(MOD(TablaSeriesValores[[#This Row],[360º]],misPuntos)=0,miEscala,0)","v":0}]
[null,null,null,null,null,null,null,null,null,null,null,null,null,null,null,null,null,null,null,null,null,null,null,null,null,null,null,null,null,null,{"$f":"ROW(AE129)-ROW($AE$1)","v":128},{"$f":"IFERROR(INDEX(misRayos,IF(MOD(TablaSeriesValores[[#This Row],[360º]],misPuntos)=0,NA(),INT(TablaSeriesValores[[#This Row],[360º]]/misPuntos)+1)),0)","v":1978.13},{"$f":"IF(miFila=INT(TablaSeriesValores[[#This Row],[360º]]/misPuntos)+1,TablaSeriesValores[[#This Row],[Valores]],0)","v":1978.13},{"$f":"IF(MOD(TablaSeriesValores[[#This Row],[360º]],misPuntos)=0,miEscala,0)","v":0}]
[null,null,null,null,null,null,null,null,null,null,null,null,null,null,null,null,null,null,null,null,null,null,null,null,null,null,null,null,null,null,129,{"$f":"IFERROR(INDEX(misRayos,IF(MOD(TablaSeriesValores[[#This Row],[360º]],misPuntos)=0,NA(),INT(TablaSeriesValores[[#This Row],[360º]]/misPuntos)+1)),0)","v":1978.13},{"$f":"IF(miFila=INT(TablaSeriesValores[[#This Row],[360º]]/misPuntos)+1,TablaSeriesValores[[#This Row],[Valores]],0)","v":1978.13},{"$f":"IF(MOD(TablaSeriesValores[[#This Row],[360º]],misPuntos)=0,miEscala,0)","v":0}]
[null,null,null,null,null,null,null,null,null,null,null,null,null,null,null,null,null,null,null,null,null,null,null,null,null,null,null,null,null,null,130,{"$f":"IFERROR(INDEX(misRayos,IF(MOD(TablaSeriesValores[[#This Row],[360º]],misPuntos)=0,NA(),INT(TablaSeriesValores[[#This Row],[360º]]/misPuntos)+1)),0)","v":1978.13},{"$f":"IF(miFila=INT(TablaSeriesValores[[#This Row],[360º]]/misPuntos)+1,TablaSeriesValores[[#This Row],[Valores]],0)","v":1978.13},{"$f":"IF(MOD(TablaSeriesValores[[#This Row],[360º]],misPuntos)=0,miEscala,0)","v":0}]
[null,null,null,null,null,null,null,null,null,null,null,null,null,null,null,null,null,null,null,null,null,null,null,null,null,null,null,null,null,null,131,{"$f":"IFERROR(INDEX(misRayos,IF(MOD(TablaSeriesValores[[#This Row],[360º]],misPuntos)=0,NA(),INT(TablaSeriesValores[[#This Row],[360º]]/misPuntos)+1)),0)","v":1978.13},{"$f":"IF(miFila=INT(TablaSeriesValores[[#This Row],[360º]]/misPuntos)+1,TablaSeriesValores[[#This Row],[Valores]],0)","v":1978.13},{"$f":"IF(MOD(TablaSeriesValores[[#This Row],[360º]],misPuntos)=0,miEscala,0)","v":0}]
[null,null,null,null,null,null,null,null,null,null,null,null,null,null,null,null,null,null,null,null,null,null,null,null,null,null,null,null,null,null,132,{"$f":"IFERROR(INDEX(misRayos,IF(MOD(TablaSeriesValores[[#This Row],[360º]],misPuntos)=0,NA(),INT(TablaSeriesValores[[#This Row],[360º]]/misPuntos)+1)),0)","v":1978.13},{"$f":"IF(miFila=INT(TablaSeriesValores[[#This Row],[360º]]/misPuntos)+1,TablaSeriesValores[[#This Row],[Valores]],0)","v":1978.13},{"$f":"IF(MOD(TablaSeriesValores[[#This Row],[360º]],misPuntos)=0,miEscala,0)","v":0}]
[null,null,null,null,null,null,null,null,null,null,null,null,null,null,null,null,null,null,null,null,null,null,null,null,null,null,null,null,null,null,133,{"$f":"IFERROR(INDEX(misRayos,IF(MOD(TablaSeriesValores[[#This Row],[360º]],misPuntos)=0,NA(),INT(TablaSeriesValores[[#This Row],[360º]]/misPuntos)+1)),0)","v":1978.13},{"$f":"IF(miFila=INT(TablaSeriesValores[[#This Row],[360º]]/misPuntos)+1,TablaSeriesValores[[#This Row],[Valores]],0)","v":1978.13},{"$f":"IF(MOD(TablaSeriesValores[[#This Row],[360º]],misPuntos)=0,miEscala,0)","v":0}]
[null,null,null,null,null,null,null,null,null,null,null,null,null,null,null,null,null,null,null,null,null,null,null,null,null,null,null,null,null,null,134,{"$f":"IFERROR(INDEX(misRayos,IF(MOD(TablaSeriesValores[[#This Row],[360º]],misPuntos)=0,NA(),INT(TablaSeriesValores[[#This Row],[360º]]/misPuntos)+1)),0)","v":1978.13},{"$f":"IF(miFila=INT(TablaSeriesValores[[#This Row],[360º]]/misPuntos)+1,TablaSeriesValores[[#This Row],[Valores]],0)","v":1978.13},{"$f":"IF(MOD(TablaSeriesValores[[#This Row],[360º]],misPuntos)=0,miEscala,0)","v":0}]
[null,null,null,null,null,null,null,null,null,null,null,null,null,null,null,null,null,null,null,null,null,null,null,null,null,null,null,null,null,null,135,{"$f":"IFERROR(INDEX(misRayos,IF(MOD(TablaSeriesValores[[#This Row],[360º]],misPuntos)=0,NA(),INT(TablaSeriesValores[[#This Row],[360º]]/misPuntos)+1)),0)","v":1978.13},{"$f":"IF(miFila=INT(TablaSeriesValores[[#This Row],[360º]]/misPuntos)+1,TablaSeriesValores[[#This Row],[Valores]],0)","v":1978.13},{"$f":"IF(MOD(TablaSeriesValores[[#This Row],[360º]],misPuntos)=0,miEscala,0)","v":0}]
[null,null,null,null,null,null,null,null,null,null,null,null,null,null,null,null,null,null,null,null,null,null,null,null,null,null,null,null,null,null,136,{"$f":"IFERROR(INDEX(misRayos,IF(MOD(TablaSeriesValores[[#This Row],[360º]],misPuntos)=0,NA(),INT(TablaSeriesValores[[#This Row],[360º]]/misPuntos)+1)),0)","v":1978.13},{"$f":"IF(miFila=INT(TablaSeriesValores[[#This Row],[360º]]/misPuntos)+1,TablaSeriesValores[[#This Row],[Valores]],0)","v":1978.13},{"$f":"IF(MOD(TablaSeriesValores[[#This Row],[360º]],misPuntos)=0,miEscala,0)","v":0}]
[null,null,null,null,null,null,null,null,null,null,null,null,null,null,null,null,null,null,null,null,null,null,null,null,null,null,null,null,null,null,137,{"$f":"IFERROR(INDEX(misRayos,IF(MOD(TablaSeriesValores[[#This Row],[360º]],misPuntos)=0,NA(),INT(TablaSeriesValores[[#This Row],[360º]]/misPuntos)+1)),0)","v":1978.13},{"$f":"IF(miFila=INT(TablaSeriesValores[[#This Row],[360º]]/misPuntos)+1,TablaSeriesValores[[#This Row],[Valores]],0)","v":1978.13},{"$f":"IF(MOD(TablaSeriesValores[[#This Row],[360º]],misPuntos)=0,miEscala,0)","v":0}]
[null,null,null,null,null,null,null,null,null,null,null,null,null,null,null,null,null,null,null,null,null,null,null,null,null,null,null,null,null,null,138,{"$f":"IFERROR(INDEX(misRayos,IF(MOD(TablaSeriesValores[[#This Row],[360º]],misPuntos)=0,NA(),INT(TablaSeriesValores[[#This Row],[360º]]/misPuntos)+1)),0)","v":1978.13},{"$f":"IF(miFila=INT(TablaSeriesValores[[#This Row],[360º]]/misPuntos)+1,TablaSeriesValores[[#This Row],[Valores]],0)","v":1978.13},{"$f":"IF(MOD(TablaSeriesValores[[#This Row],[360º]],misPuntos)=0,miEscala,0)","v":0}]
[null,null,null,null,null,null,null,null,null,null,null,null,null,null,null,null,null,null,null,null,null,null,null,null,null,null,null,null,null,null,139,{"$f":"IFERROR(INDEX(misRayos,IF(MOD(TablaSeriesValores[[#This Row],[360º]],misPuntos)=0,NA(),INT(TablaSeriesValores[[#This Row],[360º]]/misPuntos)+1)),0)","v":1978.13},{"$f":"IF(miFila=INT(TablaSeriesValores[[#This Row],[360º]]/misPuntos)+1,TablaSeriesValores[[#This Row],[Valores]],0)","v":1978.13},{"$f":"IF(MOD(TablaSeriesValores[[#This Row],[360º]],misPuntos)=0,miEscala,0)","v":0}]
[null,null,null,null,null,null,null,null,null,null,null,null,null,null,null,null,null,null,null,null,null,null,null,null,null,null,null,null,null,null,140,{"$f":"IFERROR(INDEX(misRayos,IF(MOD(TablaSeriesValores[[#This Row],[360º]],misPuntos)=0,NA(),INT(TablaSeriesValores[[#This Row],[360º]]/misPuntos)+1)),0)","v":1978.13},{"$f":"IF(miFila=INT(TablaSeriesValores[[#This Row],[360º]]/misPuntos)+1,TablaSeriesValores[[#This Row],[Valores]],0)","v":1978.13},{"$f":"IF(MOD(TablaSeriesValores[[#This Row],[360º]],misPuntos)=0,miEscala,0)","v":0}]
[null,null,null,null,null,null,null,null,null,null,null,null,null,null,null,null,null,null,null,null,null,null,null,null,null,null,null,null,null,null,141,{"$f":"IFERROR(INDEX(misRayos,IF(MOD(TablaSeriesValores[[#This Row],[360º]],misPuntos)=0,NA(),INT(TablaSeriesValores[[#This Row],[360º]]/misPuntos)+1)),0)","v":1978.13},{"$f":"IF(miFila=INT(TablaSeriesValores[[#This Row],[360º]]/misPuntos)+1,TablaSeriesValores[[#This Row],[Valores]],0)","v":1978.13},{"$f":"IF(MOD(TablaSeriesValores[[#This Row],[360º]],misPuntos)=0,miEscala,0)","v":0}]
[null,null,null,null,null,null,null,null,null,null,null,null,null,null,null,null,null,null,null,null,null,null,null,null,null,null,null,null,null,null,142,{"$f":"IFERROR(INDEX(misRayos,IF(MOD(TablaSeriesValores[[#This Row],[360º]],misPuntos)=0,NA(),INT(TablaSeriesValores[[#This Row],[360º]]/misPuntos)+1)),0)","v":1978.13},{"$f":"IF(miFila=INT(TablaSeriesValores[[#This Row],[360º]]/misPuntos)+1,TablaSeriesValores[[#This Row],[Valores]],0)","v":1978.13},{"$f":"IF(MOD(TablaSeriesValores[[#This Row],[360º]],misPuntos)=0,miEscala,0)","v":0}]
[null,null,null,null,null,null,null,null,null,null,null,null,null,null,null,null,null,null,null,null,null,null,null,null,null,null,null,null,null,null,143,{"$f":"IFERROR(INDEX(misRayos,IF(MOD(TablaSeriesValores[[#This Row],[360º]],misPuntos)=0,NA(),INT(TablaSeriesValores[[#This Row],[360º]]/misPuntos)+1)),0)","v":1978.13},{"$f":"IF(miFila=INT(TablaSeriesValores[[#This Row],[360º]]/misPuntos)+1,TablaSeriesValores[[#This Row],[Valores]],0)","v":1978.13},{"$f":"IF(MOD(TablaSeriesValores[[#This Row],[360º]],misPuntos)=0,miEscala,0)","v":0}]
[null,null,null,null,null,null,null,null,null,null,null,null,null,null,null,null,null,null,null,null,null,null,null,null,null,null,null,null,null,null,144,{"$f":"IFERROR(INDEX(misRayos,IF(MOD(TablaSeriesValores[[#This Row],[360º]],misPuntos)=0,NA(),INT(TablaSeriesValores[[#This Row],[360º]]/misPuntos)+1)),0)","v":1978.13},{"$f":"IF(miFila=INT(TablaSeriesValores[[#This Row],[360º]]/misPuntos)+1,TablaSeriesValores[[#This Row],[Valores]],0)","v":1978.13},{"$f":"IF(MOD(TablaSeriesValores[[#This Row],[360º]],misPuntos)=0,miEscala,0)","v":0}]
[null,null,null,null,null,null,null,null,null,null,null,null,null,null,null,null,null,null,null,null,null,null,null,null,null,null,null,null,null,null,145,{"$f":"IFERROR(INDEX(misRayos,IF(MOD(TablaSeriesValores[[#This Row],[360º]],misPuntos)=0,NA(),INT(TablaSeriesValores[[#This Row],[360º]]/misPuntos)+1)),0)","v":1978.13},{"$f":"IF(miFila=INT(TablaSeriesValores[[#This Row],[360º]]/misPuntos)+1,TablaSeriesValores[[#This Row],[Valores]],0)","v":1978.13},{"$f":"IF(MOD(TablaSeriesValores[[#This Row],[360º]],misPuntos)=0,miEscala,0)","v":0}]
[null,null,null,null,null,null,null,null,null,null,null,null,null,null,null,null,null,null,null,null,null,null,null,null,null,null,null,null,null,null,146,{"$f":"IFERROR(INDEX(misRayos,IF(MOD(TablaSeriesValores[[#This Row],[360º]],misPuntos)=0,NA(),INT(TablaSeriesValores[[#This Row],[360º]]/misPuntos)+1)),0)","v":1978.13},{"$f":"IF(miFila=INT(TablaSeriesValores[[#This Row],[360º]]/misPuntos)+1,TablaSeriesValores[[#This Row],[Valores]],0)","v":1978.13},{"$f":"IF(MOD(TablaSeriesValores[[#This Row],[360º]],misPuntos)=0,miEscala,0)","v":0}]
[null,null,null,null,null,null,null,null,null,null,null,null,null,null,null,null,null,null,null,null,null,null,null,null,null,null,null,null,null,null,147,{"$f":"IFERROR(INDEX(misRayos,IF(MOD(TablaSeriesValores[[#This Row],[360º]],misPuntos)=0,NA(),INT(TablaSeriesValores[[#This Row],[360º]]/misPuntos)+1)),0)","v":1978.13},{"$f":"IF(miFila=INT(TablaSeriesValores[[#This Row],[360º]]/misPuntos)+1,TablaSeriesValores[[#This Row],[Valores]],0)","v":1978.13},{"$f":"IF(MOD(TablaSeriesValores[[#This Row],[360º]],misPuntos)=0,miEscala,0)","v":0}]
[null,null,null,null,null,null,null,null,null,null,null,null,null,null,null,null,null,null,null,null,null,null,null,null,null,null,null,null,null,null,148,{"$f":"IFERROR(INDEX(misRayos,IF(MOD(TablaSeriesValores[[#This Row],[360º]],misPuntos)=0,NA(),INT(TablaSeriesValores[[#This Row],[360º]]/misPuntos)+1)),0)","v":1978.13},{"$f":"IF(miFila=INT(TablaSeriesValores[[#This Row],[360º]]/misPuntos)+1,TablaSeriesValores[[#This Row],[Valores]],0)","v":1978.13},{"$f":"IF(MOD(TablaSeriesValores[[#This Row],[360º]],misPuntos)=0,miEscala,0)","v":0}]
[null,null,null,null,null,null,null,null,null,null,null,null,null,null,null,null,null,null,null,null,null,null,null,null,null,null,null,null,null,null,149,{"$f":"IFERROR(INDEX(misRayos,IF(MOD(TablaSeriesValores[[#This Row],[360º]],misPuntos)=0,NA(),INT(TablaSeriesValores[[#This Row],[360º]]/misPuntos)+1)),0)","v":1978.13},{"$f":"IF(miFila=INT(TablaSeriesValores[[#This Row],[360º]]/misPuntos)+1,TablaSeriesValores[[#This Row],[Valores]],0)","v":1978.13},{"$f":"IF(MOD(TablaSeriesValores[[#This Row],[360º]],misPuntos)=0,miEscala,0)","v":0}]
[null,null,null,null,null,null,null,null,null,null,null,null,null,null,null,null,null,null,null,null,null,null,null,null,null,null,null,null,null,null,150,{"$f":"IFERROR(INDEX(misRayos,IF(MOD(TablaSeriesValores[[#This Row],[360º]],misPuntos)=0,NA(),INT(TablaSeriesValores[[#This Row],[360º]]/misPuntos)+1)),0)","v":0},{"$f":"IF(miFila=INT(TablaSeriesValores[[#This Row],[360º]]/misPuntos)+1,TablaSeriesValores[[#This Row],[Valores]],0)","v":0},{"$f":"IF(MOD(TablaSeriesValores[[#This Row],[360º]],misPuntos)=0,miEscala,0)","v":2419}]
[null,null,null,null,null,null,null,null,null,null,null,null,null,null,null,null,null,null,null,null,null,null,null,null,null,null,null,null,null,null,151,{"$f":"IFERROR(INDEX(misRayos,IF(MOD(TablaSeriesValores[[#This Row],[360º]],misPuntos)=0,NA(),INT(TablaSeriesValores[[#This Row],[360º]]/misPuntos)+1)),0)","v":1321.26},{"$f":"IF(miFila=INT(TablaSeriesValores[[#This Row],[360º]]/misPuntos)+1,TablaSeriesValores[[#This Row],[Valores]],0)","v":0},{"$f":"IF(MOD(TablaSeriesValores[[#This Row],[360º]],misPuntos)=0,miEscala,0)","v":0}]
[null,null,null,null,null,null,null,null,null,null,null,null,null,null,null,null,null,null,null,null,null,null,null,null,null,null,null,null,null,null,152,{"$f":"IFERROR(INDEX(misRayos,IF(MOD(TablaSeriesValores[[#This Row],[360º]],misPuntos)=0,NA(),INT(TablaSeriesValores[[#This Row],[360º]]/misPuntos)+1)),0)","v":1321.26},{"$f":"IF(miFila=INT(TablaSeriesValores[[#This Row],[360º]]/misPuntos)+1,TablaSeriesValores[[#This Row],[Valores]],0)","v":0},{"$f":"IF(MOD(TablaSeriesValores[[#This Row],[360º]],misPuntos)=0,miEscala,0)","v":0}]
[null,null,null,null,null,null,null,null,null,null,null,null,null,null,null,null,null,null,null,null,null,null,null,null,null,null,null,null,null,null,153,{"$f":"IFERROR(INDEX(misRayos,IF(MOD(TablaSeriesValores[[#This Row],[360º]],misPuntos)=0,NA(),INT(TablaSeriesValores[[#This Row],[360º]]/misPuntos)+1)),0)","v":1321.26},{"$f":"IF(miFila=INT(TablaSeriesValores[[#This Row],[360º]]/misPuntos)+1,TablaSeriesValores[[#This Row],[Valores]],0)","v":0},{"$f":"IF(MOD(TablaSeriesValores[[#This Row],[360º]],misPuntos)=0,miEscala,0)","v":0}]
[null,null,null,null,null,null,null,null,null,null,null,null,null,null,null,null,null,null,null,null,null,null,null,null,null,null,null,null,null,null,154,{"$f":"IFERROR(INDEX(misRayos,IF(MOD(TablaSeriesValores[[#This Row],[360º]],misPuntos)=0,NA(),INT(TablaSeriesValores[[#This Row],[360º]]/misPuntos)+1)),0)","v":1321.26},{"$f":"IF(miFila=INT(TablaSeriesValores[[#This Row],[360º]]/misPuntos)+1,TablaSeriesValores[[#This Row],[Valores]],0)","v":0},{"$f":"IF(MOD(TablaSeriesValores[[#This Row],[360º]],misPuntos)=0,miEscala,0)","v":0}]
[null,null,null,null,null,null,null,null,null,null,null,null,null,null,null,null,null,null,null,null,null,null,null,null,null,null,null,null,null,null,155,{"$f":"IFERROR(INDEX(misRayos,IF(MOD(TablaSeriesValores[[#This Row],[360º]],misPuntos)=0,NA(),INT(TablaSeriesValores[[#This Row],[360º]]/misPuntos)+1)),0)","v":1321.26},{"$f":"IF(miFila=INT(TablaSeriesValores[[#This Row],[360º]]/misPuntos)+1,TablaSeriesValores[[#This Row],[Valores]],0)","v":0},{"$f":"IF(MOD(TablaSeriesValores[[#This Row],[360º]],misPuntos)=0,miEscala,0)","v":0}]
[null,null,null,null,null,null,null,null,null,null,null,null,null,null,null,null,null,null,null,null,null,null,null,null,null,null,null,null,null,null,156,{"$f":"IFERROR(INDEX(misRayos,IF(MOD(TablaSeriesValores[[#This Row],[360º]],misPuntos)=0,NA(),INT(TablaSeriesValores[[#This Row],[360º]]/misPuntos)+1)),0)","v":1321.26},{"$f":"IF(miFila=INT(TablaSeriesValores[[#This Row],[360º]]/misPuntos)+1,TablaSeriesValores[[#This Row],[Valores]],0)","v":0},{"$f":"IF(MOD(TablaSeriesValores[[#This Row],[360º]],misPuntos)=0,miEscala,0)","v":0}]
[null,null,null,null,null,null,null,null,null,null,null,null,null,null,null,null,null,null,null,null,null,null,null,null,null,null,null,null,null,null,157,{"$f":"IFERROR(INDEX(misRayos,IF(MOD(TablaSeriesValores[[#This Row],[360º]],misPuntos)=0,NA(),INT(TablaSeriesValores[[#This Row],[360º]]/misPuntos)+1)),0)","v":1321.26},{"$f":"IF(miFila=INT(TablaSeriesValores[[#This Row],[360º]]/misPuntos)+1,TablaSeriesValores[[#This Row],[Valores]],0)","v":0},{"$f":"IF(MOD(TablaSeriesValores[[#This Row],[360º]],misPuntos)=0,miEscala,0)","v":0}]
[null,null,null,null,null,null,null,null,null,null,null,null,null,null,null,null,null,null,null,null,null,null,null,null,null,null,null,null,null,null,158,{"$f":"IFERROR(INDEX(misRayos,IF(MOD(TablaSeriesValores[[#This Row],[360º]],misPuntos)=0,NA(),INT(TablaSeriesValores[[#This Row],[360º]]/misPuntos)+1)),0)","v":1321.26},{"$f":"IF(miFila=INT(TablaSeriesValores[[#This Row],[360º]]/misPuntos)+1,TablaSeriesValores[[#This Row],[Valores]],0)","v":0},{"$f":"IF(MOD(TablaSeriesValores[[#This Row],[360º]],misPuntos)=0,miEscala,0)","v":0}]
[null,null,null,null,null,null,null,null,null,null,null,null,null,null,null,null,null,null,null,null,null,null,null,null,null,null,null,null,null,null,159,{"$f":"IFERROR(INDEX(misRayos,IF(MOD(TablaSeriesValores[[#This Row],[360º]],misPuntos)=0,NA(),INT(TablaSeriesValores[[#This Row],[360º]]/misPuntos)+1)),0)","v":1321.26},{"$f":"IF(miFila=INT(TablaSeriesValores[[#This Row],[360º]]/misPuntos)+1,TablaSeriesValores[[#This Row],[Valores]],0)","v":0},{"$f":"IF(MOD(TablaSeriesValores[[#This Row],[360º]],misPuntos)=0,miEscala,0)","v":0}]
[null,null,null,null,null,null,null,null,null,null,null,null,null,null,null,null,null,null,null,null,null,null,null,null,null,null,null,null,null,null,160,{"$f":"IFERROR(INDEX(misRayos,IF(MOD(TablaSeriesValores[[#This Row],[360º]],misPuntos)=0,NA(),INT(TablaSeriesValores[[#This Row],[360º]]/misPuntos)+1)),0)","v":1321.26},{"$f":"IF(miFila=INT(TablaSeriesValores[[#This Row],[360º]]/misPuntos)+1,TablaSeriesValores[[#This Row],[Valores]],0)","v":0},{"$f":"IF(MOD(TablaSeriesValores[[#This Row],[360º]],misPuntos)=0,miEscala,0)","v":0}]
[null,null,null,null,null,null,null,null,null,null,null,null,null,null,null,null,null,null,null,null,null,null,null,null,null,null,null,null,null,null,161,{"$f":"IFERROR(INDEX(misRayos,IF(MOD(TablaSeriesValores[[#This Row],[360º]],misPuntos)=0,NA(),INT(TablaSeriesValores[[#This Row],[360º]]/misPuntos)+1)),0)","v":1321.26},{"$f":"IF(miFila=INT(TablaSeriesValores[[#This Row],[360º]]/misPuntos)+1,TablaSeriesValores[[#This Row],[Valores]],0)","v":0},{"$f":"IF(MOD(TablaSeriesValores[[#This Row],[360º]],misPuntos)=0,miEscala,0)","v":0}]
[null,null,null,null,null,null,null,null,null,null,null,null,null,null,null,null,null,null,null,null,null,null,null,null,null,null,null,null,null,null,162,{"$f":"IFERROR(INDEX(misRayos,IF(MOD(TablaSeriesValores[[#This Row],[360º]],misPuntos)=0,NA(),INT(TablaSeriesValores[[#This Row],[360º]]/misPuntos)+1)),0)","v":1321.26},{"$f":"IF(miFila=INT(TablaSeriesValores[[#This Row],[360º]]/misPuntos)+1,TablaSeriesValores[[#This Row],[Valores]],0)","v":0},{"$f":"IF(MOD(TablaSeriesValores[[#This Row],[360º]],misPuntos)=0,miEscala,0)","v":0}]
[null,null,null,null,null,null,null,null,null,null,null,null,null,null,null,null,null,null,null,null,null,null,null,null,null,null,null,null,null,null,163,{"$f":"IFERROR(INDEX(misRayos,IF(MOD(TablaSeriesValores[[#This Row],[360º]],misPuntos)=0,NA(),INT(TablaSeriesValores[[#This Row],[360º]]/misPuntos)+1)),0)","v":1321.26},{"$f":"IF(miFila=INT(TablaSeriesValores[[#This Row],[360º]]/misPuntos)+1,TablaSeriesValores[[#This Row],[Valores]],0)","v":0},{"$f":"IF(MOD(TablaSeriesValores[[#This Row],[360º]],misPuntos)=0,miEscala,0)","v":0}]
[null,null,null,null,null,null,null,null,null,null,null,null,null,null,null,null,null,null,null,null,null,null,null,null,null,null,null,null,null,null,164,{"$f":"IFERROR(INDEX(misRayos,IF(MOD(TablaSeriesValores[[#This Row],[360º]],misPuntos)=0,NA(),INT(TablaSeriesValores[[#This Row],[360º]]/misPuntos)+1)),0)","v":1321.26},{"$f":"IF(miFila=INT(TablaSeriesValores[[#This Row],[360º]]/misPuntos)+1,TablaSeriesValores[[#This Row],[Valores]],0)","v":0},{"$f":"IF(MOD(TablaSeriesValores[[#This Row],[360º]],misPuntos)=0,miEscala,0)","v":0}]
[null,null,null,null,null,null,null,null,null,null,null,null,null,null,null,null,null,null,null,null,null,null,null,null,null,null,null,null,null,null,165,{"$f":"IFERROR(INDEX(misRayos,IF(MOD(TablaSeriesValores[[#This Row],[360º]],misPuntos)=0,NA(),INT(TablaSeriesValores[[#This Row],[360º]]/misPuntos)+1)),0)","v":1321.26},{"$f":"IF(miFila=INT(TablaSeriesValores[[#This Row],[360º]]/misPuntos)+1,TablaSeriesValores[[#This Row],[Valores]],0)","v":0},{"$f":"IF(MOD(TablaSeriesValores[[#This Row],[360º]],misPuntos)=0,miEscala,0)","v":0}]
[null,null,null,null,null,null,null,null,null,null,null,null,null,null,null,null,null,null,null,null,null,null,null,null,null,null,null,null,null,null,166,{"$f":"IFERROR(INDEX(misRayos,IF(MOD(TablaSeriesValores[[#This Row],[360º]],misPuntos)=0,NA(),INT(TablaSeriesValores[[#This Row],[360º]]/misPuntos)+1)),0)","v":1321.26},{"$f":"IF(miFila=INT(TablaSeriesValores[[#This Row],[360º]]/misPuntos)+1,TablaSeriesValores[[#This Row],[Valores]],0)","v":0},{"$f":"IF(MOD(TablaSeriesValores[[#This Row],[360º]],misPuntos)=0,miEscala,0)","v":0}]
[null,null,null,null,null,null,null,null,null,null,null,null,null,null,null,null,null,null,null,null,null,null,null,null,null,null,null,null,null,null,167,{"$f":"IFERROR(INDEX(misRayos,IF(MOD(TablaSeriesValores[[#This Row],[360º]],misPuntos)=0,NA(),INT(TablaSeriesValores[[#This Row],[360º]]/misPuntos)+1)),0)","v":1321.26},{"$f":"IF(miFila=INT(TablaSeriesValores[[#This Row],[360º]]/misPuntos)+1,TablaSeriesValores[[#This Row],[Valores]],0)","v":0},{"$f":"IF(MOD(TablaSeriesValores[[#This Row],[360º]],misPuntos)=0,miEscala,0)","v":0}]
[null,null,null,null,null,null,null,null,null,null,null,null,null,null,null,null,null,null,null,null,null,null,null,null,null,null,null,null,null,null,168,{"$f":"IFERROR(INDEX(misRayos,IF(MOD(TablaSeriesValores[[#This Row],[360º]],misPuntos)=0,NA(),INT(TablaSeriesValores[[#This Row],[360º]]/misPuntos)+1)),0)","v":1321.26},{"$f":"IF(miFila=INT(TablaSeriesValores[[#This Row],[360º]]/misPuntos)+1,TablaSeriesValores[[#This Row],[Valores]],0)","v":0},{"$f":"IF(MOD(TablaSeriesValores[[#This Row],[360º]],misPuntos)=0,miEscala,0)","v":0}]
[null,null,null,null,null,null,null,null,null,null,null,null,null,null,null,null,null,null,null,null,null,null,null,null,null,null,null,null,null,null,169,{"$f":"IFERROR(INDEX(misRayos,IF(MOD(TablaSeriesValores[[#This Row],[360º]],misPuntos)=0,NA(),INT(TablaSeriesValores[[#This Row],[360º]]/misPuntos)+1)),0)","v":1321.26},{"$f":"IF(miFila=INT(TablaSeriesValores[[#This Row],[360º]]/misPuntos)+1,TablaSeriesValores[[#This Row],[Valores]],0)","v":0},{"$f":"IF(MOD(TablaSeriesValores[[#This Row],[360º]],misPuntos)=0,miEscala,0)","v":0}]
[null,null,null,null,null,null,null,null,null,null,null,null,null,null,null,null,null,null,null,null,null,null,null,null,null,null,null,null,null,null,170,{"$f":"IFERROR(INDEX(misRayos,IF(MOD(TablaSeriesValores[[#This Row],[360º]],misPuntos)=0,NA(),INT(TablaSeriesValores[[#This Row],[360º]]/misPuntos)+1)),0)","v":1321.26},{"$f":"IF(miFila=INT(TablaSeriesValores[[#This Row],[360º]]/misPuntos)+1,TablaSeriesValores[[#This Row],[Valores]],0)","v":0},{"$f":"IF(MOD(TablaSeriesValores[[#This Row],[360º]],misPuntos)=0,miEscala,0)","v":0}]
[null,null,null,null,null,null,null,null,null,null,null,null,null,null,null,null,null,null,null,null,null,null,null,null,null,null,null,null,null,null,171,{"$f":"IFERROR(INDEX(misRayos,IF(MOD(TablaSeriesValores[[#This Row],[360º]],misPuntos)=0,NA(),INT(TablaSeriesValores[[#This Row],[360º]]/misPuntos)+1)),0)","v":1321.26},{"$f":"IF(miFila=INT(TablaSeriesValores[[#This Row],[360º]]/misPuntos)+1,TablaSeriesValores[[#This Row],[Valores]],0)","v":0},{"$f":"IF(MOD(TablaSeriesValores[[#This Row],[360º]],misPuntos)=0,miEscala,0)","v":0}]
[null,null,null,null,null,null,null,null,null,null,null,null,null,null,null,null,null,null,null,null,null,null,null,null,null,null,null,null,null,null,172,{"$f":"IFERROR(INDEX(misRayos,IF(MOD(TablaSeriesValores[[#This Row],[360º]],misPuntos)=0,NA(),INT(TablaSeriesValores[[#This Row],[360º]]/misPuntos)+1)),0)","v":1321.26},{"$f":"IF(miFila=INT(TablaSeriesValores[[#This Row],[360º]]/misPuntos)+1,TablaSeriesValores[[#This Row],[Valores]],0)","v":0},{"$f":"IF(MOD(TablaSeriesValores[[#This Row],[360º]],misPuntos)=0,miEscala,0)","v":0}]
[null,null,null,null,null,null,null,null,null,null,null,null,null,null,null,null,null,null,null,null,null,null,null,null,null,null,null,null,null,null,173,{"$f":"IFERROR(INDEX(misRayos,IF(MOD(TablaSeriesValores[[#This Row],[360º]],misPuntos)=0,NA(),INT(TablaSeriesValores[[#This Row],[360º]]/misPuntos)+1)),0)","v":1321.26},{"$f":"IF(miFila=INT(TablaSeriesValores[[#This Row],[360º]]/misPuntos)+1,TablaSeriesValores[[#This Row],[Valores]],0)","v":0},{"$f":"IF(MOD(TablaSeriesValores[[#This Row],[360º]],misPuntos)=0,miEscala,0)","v":0}]
[null,null,null,null,null,null,null,null,null,null,null,null,null,null,null,null,null,null,null,null,null,null,null,null,null,null,null,null,null,null,174,{"$f":"IFERROR(INDEX(misRayos,IF(MOD(TablaSeriesValores[[#This Row],[360º]],misPuntos)=0,NA(),INT(TablaSeriesValores[[#This Row],[360º]]/misPuntos)+1)),0)","v":1321.26},{"$f":"IF(miFila=INT(TablaSeriesValores[[#This Row],[360º]]/misPuntos)+1,TablaSeriesValores[[#This Row],[Valores]],0)","v":0},{"$f":"IF(MOD(TablaSeriesValores[[#This Row],[360º]],misPuntos)=0,miEscala,0)","v":0}]
[null,null,null,null,null,null,null,null,null,null,null,null,null,null,null,null,null,null,null,null,null,null,null,null,null,null,null,null,null,null,175,{"$f":"IFERROR(INDEX(misRayos,IF(MOD(TablaSeriesValores[[#This Row],[360º]],misPuntos)=0,NA(),INT(TablaSeriesValores[[#This Row],[360º]]/misPuntos)+1)),0)","v":1321.26},{"$f":"IF(miFila=INT(TablaSeriesValores[[#This Row],[360º]]/misPuntos)+1,TablaSeriesValores[[#This Row],[Valores]],0)","v":0},{"$f":"IF(MOD(TablaSeriesValores[[#This Row],[360º]],misPuntos)=0,miEscala,0)","v":0}]
[null,null,null,null,null,null,null,null,null,null,null,null,null,null,null,null,null,null,null,null,null,null,null,null,null,null,null,null,null,null,176,{"$f":"IFERROR(INDEX(misRayos,IF(MOD(TablaSeriesValores[[#This Row],[360º]],misPuntos)=0,NA(),INT(TablaSeriesValores[[#This Row],[360º]]/misPuntos)+1)),0)","v":1321.26},{"$f":"IF(miFila=INT(TablaSeriesValores[[#This Row],[360º]]/misPuntos)+1,TablaSeriesValores[[#This Row],[Valores]],0)","v":0},{"$f":"IF(MOD(TablaSeriesValores[[#This Row],[360º]],misPuntos)=0,miEscala,0)","v":0}]
[null,null,null,null,null,null,null,null,null,null,null,null,null,null,null,null,null,null,null,null,null,null,null,null,null,null,null,null,null,null,177,{"$f":"IFERROR(INDEX(misRayos,IF(MOD(TablaSeriesValores[[#This Row],[360º]],misPuntos)=0,NA(),INT(TablaSeriesValores[[#This Row],[360º]]/misPuntos)+1)),0)","v":1321.26},{"$f":"IF(miFila=INT(TablaSeriesValores[[#This Row],[360º]]/misPuntos)+1,TablaSeriesValores[[#This Row],[Valores]],0)","v":0},{"$f":"IF(MOD(TablaSeriesValores[[#This Row],[360º]],misPuntos)=0,miEscala,0)","v":0}]
[null,null,null,null,null,null,null,null,null,null,null,null,null,null,null,null,null,null,null,null,null,null,null,null,null,null,null,null,null,null,178,{"$f":"IFERROR(INDEX(misRayos,IF(MOD(TablaSeriesValores[[#This Row],[360º]],misPuntos)=0,NA(),INT(TablaSeriesValores[[#This Row],[360º]]/misPuntos)+1)),0)","v":1321.26},{"$f":"IF(miFila=INT(TablaSeriesValores[[#This Row],[360º]]/misPuntos)+1,TablaSeriesValores[[#This Row],[Valores]],0)","v":0},{"$f":"IF(MOD(TablaSeriesValores[[#This Row],[360º]],misPuntos)=0,miEscala,0)","v":0}]
[null,null,null,null,null,null,null,null,null,null,null,null,null,null,null,null,null,null,null,null,null,null,null,null,null,null,null,null,null,null,179,{"$f":"IFERROR(INDEX(misRayos,IF(MOD(TablaSeriesValores[[#This Row],[360º]],misPuntos)=0,NA(),INT(TablaSeriesValores[[#This Row],[360º]]/misPuntos)+1)),0)","v":1321.26},{"$f":"IF(miFila=INT(TablaSeriesValores[[#This Row],[360º]]/misPuntos)+1,TablaSeriesValores[[#This Row],[Valores]],0)","v":0},{"$f":"IF(MOD(TablaSeriesValores[[#This Row],[360º]],misPuntos)=0,miEscala,0)","v":0}]
[null,null,null,null,null,null,null,null,null,null,null,null,null,null,null,null,null,null,null,null,null,null,null,null,null,null,null,null,null,null,180,{"$f":"IFERROR(INDEX(misRayos,IF(MOD(TablaSeriesValores[[#This Row],[360º]],misPuntos)=0,NA(),INT(TablaSeriesValores[[#This Row],[360º]]/misPuntos)+1)),0)","v":0},{"$f":"IF(miFila=INT(TablaSeriesValores[[#This Row],[360º]]/misPuntos)+1,TablaSeriesValores[[#This Row],[Valores]],0)","v":0},{"$f":"IF(MOD(TablaSeriesValores[[#This Row],[360º]],misPuntos)=0,miEscala,0)","v":2419}]
[null,null,null,null,null,null,null,null,null,null,null,null,null,null,null,null,null,null,null,null,null,null,null,null,null,null,null,null,null,null,181,{"$f":"IFERROR(INDEX(misRayos,IF(MOD(TablaSeriesValores[[#This Row],[360º]],misPuntos)=0,NA(),INT(TablaSeriesValores[[#This Row],[360º]]/misPuntos)+1)),0)","v":1635.96},{"$f":"IF(miFila=INT(TablaSeriesValores[[#This Row],[360º]]/misPuntos)+1,TablaSeriesValores[[#This Row],[Valores]],0)","v":0},{"$f":"IF(MOD(TablaSeriesValores[[#This Row],[360º]],misPuntos)=0,miEscala,0)","v":0}]
[null,null,null,null,null,null,null,null,null,null,null,null,null,null,null,null,null,null,null,null,null,null,null,null,null,null,null,null,null,null,182,{"$f":"IFERROR(INDEX(misRayos,IF(MOD(TablaSeriesValores[[#This Row],[360º]],misPuntos)=0,NA(),INT(TablaSeriesValores[[#This Row],[360º]]/misPuntos)+1)),0)","v":1635.96},{"$f":"IF(miFila=INT(TablaSeriesValores[[#This Row],[360º]]/misPuntos)+1,TablaSeriesValores[[#This Row],[Valores]],0)","v":0},{"$f":"IF(MOD(TablaSeriesValores[[#This Row],[360º]],misPuntos)=0,miEscala,0)","v":0}]
[null,null,null,null,null,null,null,null,null,null,null,null,null,null,null,null,null,null,null,null,null,null,null,null,null,null,null,null,null,null,183,{"$f":"IFERROR(INDEX(misRayos,IF(MOD(TablaSeriesValores[[#This Row],[360º]],misPuntos)=0,NA(),INT(TablaSeriesValores[[#This Row],[360º]]/misPuntos)+1)),0)","v":1635.96},{"$f":"IF(miFila=INT(TablaSeriesValores[[#This Row],[360º]]/misPuntos)+1,TablaSeriesValores[[#This Row],[Valores]],0)","v":0},{"$f":"IF(MOD(TablaSeriesValores[[#This Row],[360º]],misPuntos)=0,miEscala,0)","v":0}]
[null,null,null,null,null,null,null,null,null,null,null,null,null,null,null,null,null,null,null,null,null,null,null,null,null,null,null,null,null,null,184,{"$f":"IFERROR(INDEX(misRayos,IF(MOD(TablaSeriesValores[[#This Row],[360º]],misPuntos)=0,NA(),INT(TablaSeriesValores[[#This Row],[360º]]/misPuntos)+1)),0)","v":1635.96},{"$f":"IF(miFila=INT(TablaSeriesValores[[#This Row],[360º]]/misPuntos)+1,TablaSeriesValores[[#This Row],[Valores]],0)","v":0},{"$f":"IF(MOD(TablaSeriesValores[[#This Row],[360º]],misPuntos)=0,miEscala,0)","v":0}]
[null,null,null,null,null,null,null,null,null,null,null,null,null,null,null,null,null,null,null,null,null,null,null,null,null,null,null,null,null,null,185,{"$f":"IFERROR(INDEX(misRayos,IF(MOD(TablaSeriesValores[[#This Row],[360º]],misPuntos)=0,NA(),INT(TablaSeriesValores[[#This Row],[360º]]/misPuntos)+1)),0)","v":1635.96},{"$f":"IF(miFila=INT(TablaSeriesValores[[#This Row],[360º]]/misPuntos)+1,TablaSeriesValores[[#This Row],[Valores]],0)","v":0},{"$f":"IF(MOD(TablaSeriesValores[[#This Row],[360º]],misPuntos)=0,miEscala,0)","v":0}]
[null,null,null,null,null,null,null,null,null,null,null,null,null,null,null,null,null,null,null,null,null,null,null,null,null,null,null,null,null,null,186,{"$f":"IFERROR(INDEX(misRayos,IF(MOD(TablaSeriesValores[[#This Row],[360º]],misPuntos)=0,NA(),INT(TablaSeriesValores[[#This Row],[360º]]/misPuntos)+1)),0)","v":1635.96},{"$f":"IF(miFila=INT(TablaSeriesValores[[#This Row],[360º]]/misPuntos)+1,TablaSeriesValores[[#This Row],[Valores]],0)","v":0},{"$f":"IF(MOD(TablaSeriesValores[[#This Row],[360º]],misPuntos)=0,miEscala,0)","v":0}]
[null,null,null,null,null,null,null,null,null,null,null,null,null,null,null,null,null,null,null,null,null,null,null,null,null,null,null,null,null,null,187,{"$f":"IFERROR(INDEX(misRayos,IF(MOD(TablaSeriesValores[[#This Row],[360º]],misPuntos)=0,NA(),INT(TablaSeriesValores[[#This Row],[360º]]/misPuntos)+1)),0)","v":1635.96},{"$f":"IF(miFila=INT(TablaSeriesValores[[#This Row],[360º]]/misPuntos)+1,TablaSeriesValores[[#This Row],[Valores]],0)","v":0},{"$f":"IF(MOD(TablaSeriesValores[[#This Row],[360º]],misPuntos)=0,miEscala,0)","v":0}]
[null,null,null,null,null,null,null,null,null,null,null,null,null,null,null,null,null,null,null,null,null,null,null,null,null,null,null,null,null,null,188,{"$f":"IFERROR(INDEX(misRayos,IF(MOD(TablaSeriesValores[[#This Row],[360º]],misPuntos)=0,NA(),INT(TablaSeriesValores[[#This Row],[360º]]/misPuntos)+1)),0)","v":1635.96},{"$f":"IF(miFila=INT(TablaSeriesValores[[#This Row],[360º]]/misPuntos)+1,TablaSeriesValores[[#This Row],[Valores]],0)","v":0},{"$f":"IF(MOD(TablaSeriesValores[[#This Row],[360º]],misPuntos)=0,miEscala,0)","v":0}]
[null,null,null,null,null,null,null,null,null,null,null,null,null,null,null,null,null,null,null,null,null,null,null,null,null,null,null,null,null,null,189,{"$f":"IFERROR(INDEX(misRayos,IF(MOD(TablaSeriesValores[[#This Row],[360º]],misPuntos)=0,NA(),INT(TablaSeriesValores[[#This Row],[360º]]/misPuntos)+1)),0)","v":1635.96},{"$f":"IF(miFila=INT(TablaSeriesValores[[#This Row],[360º]]/misPuntos)+1,TablaSeriesValores[[#This Row],[Valores]],0)","v":0},{"$f":"IF(MOD(TablaSeriesValores[[#This Row],[360º]],misPuntos)=0,miEscala,0)","v":0}]
[null,null,null,null,null,null,null,null,null,null,null,null,null,null,null,null,null,null,null,null,null,null,null,null,null,null,null,null,null,null,190,{"$f":"IFERROR(INDEX(misRayos,IF(MOD(TablaSeriesValores[[#This Row],[360º]],misPuntos)=0,NA(),INT(TablaSeriesValores[[#This Row],[360º]]/misPuntos)+1)),0)","v":1635.96},{"$f":"IF(miFila=INT(TablaSeriesValores[[#This Row],[360º]]/misPuntos)+1,TablaSeriesValores[[#This Row],[Valores]],0)","v":0},{"$f":"IF(MOD(TablaSeriesValores[[#This Row],[360º]],misPuntos)=0,miEscala,0)","v":0}]
[null,null,null,null,null,null,null,null,null,null,null,null,null,null,null,null,null,null,null,null,null,null,null,null,null,null,null,null,null,null,191,{"$f":"IFERROR(INDEX(misRayos,IF(MOD(TablaSeriesValores[[#This Row],[360º]],misPuntos)=0,NA(),INT(TablaSeriesValores[[#This Row],[360º]]/misPuntos)+1)),0)","v":1635.96},{"$f":"IF(miFila=INT(TablaSeriesValores[[#This Row],[360º]]/misPuntos)+1,TablaSeriesValores[[#This Row],[Valores]],0)","v":0},{"$f":"IF(MOD(TablaSeriesValores[[#This Row],[360º]],misPuntos)=0,miEscala,0)","v":0}]
[null,null,null,null,null,null,null,null,null,null,null,null,null,null,null,null,null,null,null,null,null,null,null,null,null,null,null,null,null,null,{"$f":"ROW(AE193)-ROW($AE$1)","v":192},{"$f":"IFERROR(INDEX(misRayos,IF(MOD(TablaSeriesValores[[#This Row],[360º]],misPuntos)=0,NA(),INT(TablaSeriesValores[[#This Row],[360º]]/misPuntos)+1)),0)","v":1635.96},{"$f":"IF(miFila=INT(TablaSeriesValores[[#This Row],[360º]]/misPuntos)+1,TablaSeriesValores[[#This Row],[Valores]],0)","v":0},{"$f":"IF(MOD(TablaSeriesValores[[#This Row],[360º]],misPuntos)=0,miEscala,0)","v":0}]
[null,null,null,null,null,null,null,null,null,null,null,null,null,null,null,null,null,null,null,null,null,null,null,null,null,null,null,null,null,null,193,{"$f":"IFERROR(INDEX(misRayos,IF(MOD(TablaSeriesValores[[#This Row],[360º]],misPuntos)=0,NA(),INT(TablaSeriesValores[[#This Row],[360º]]/misPuntos)+1)),0)","v":1635.96},{"$f":"IF(miFila=INT(TablaSeriesValores[[#This Row],[360º]]/misPuntos)+1,TablaSeriesValores[[#This Row],[Valores]],0)","v":0},{"$f":"IF(MOD(TablaSeriesValores[[#This Row],[360º]],misPuntos)=0,miEscala,0)","v":0}]
[null,null,null,null,null,null,null,null,null,null,null,null,null,null,null,null,null,null,null,null,null,null,null,null,null,null,null,null,null,null,194,{"$f":"IFERROR(INDEX(misRayos,IF(MOD(TablaSeriesValores[[#This Row],[360º]],misPuntos)=0,NA(),INT(TablaSeriesValores[[#This Row],[360º]]/misPuntos)+1)),0)","v":1635.96},{"$f":"IF(miFila=INT(TablaSeriesValores[[#This Row],[360º]]/misPuntos)+1,TablaSeriesValores[[#This Row],[Valores]],0)","v":0},{"$f":"IF(MOD(TablaSeriesValores[[#This Row],[360º]],misPuntos)=0,miEscala,0)","v":0}]
[null,null,null,null,null,null,null,null,null,null,null,null,null,null,null,null,null,null,null,null,null,null,null,null,null,null,null,null,null,null,195,{"$f":"IFERROR(INDEX(misRayos,IF(MOD(TablaSeriesValores[[#This Row],[360º]],misPuntos)=0,NA(),INT(TablaSeriesValores[[#This Row],[360º]]/misPuntos)+1)),0)","v":1635.96},{"$f":"IF(miFila=INT(TablaSeriesValores[[#This Row],[360º]]/misPuntos)+1,TablaSeriesValores[[#This Row],[Valores]],0)","v":0},{"$f":"IF(MOD(TablaSeriesValores[[#This Row],[360º]],misPuntos)=0,miEscala,0)","v":0}]
[null,null,null,null,null,null,null,null,null,null,null,null,null,null,null,null,null,null,null,null,null,null,null,null,null,null,null,null,null,null,196,{"$f":"IFERROR(INDEX(misRayos,IF(MOD(TablaSeriesValores[[#This Row],[360º]],misPuntos)=0,NA(),INT(TablaSeriesValores[[#This Row],[360º]]/misPuntos)+1)),0)","v":1635.96},{"$f":"IF(miFila=INT(TablaSeriesValores[[#This Row],[360º]]/misPuntos)+1,TablaSeriesValores[[#This Row],[Valores]],0)","v":0},{"$f":"IF(MOD(TablaSeriesValores[[#This Row],[360º]],misPuntos)=0,miEscala,0)","v":0}]
[null,null,null,null,null,null,null,null,null,null,null,null,null,null,null,null,null,null,null,null,null,null,null,null,null,null,null,null,null,null,197,{"$f":"IFERROR(INDEX(misRayos,IF(MOD(TablaSeriesValores[[#This Row],[360º]],misPuntos)=0,NA(),INT(TablaSeriesValores[[#This Row],[360º]]/misPuntos)+1)),0)","v":1635.96},{"$f":"IF(miFila=INT(TablaSeriesValores[[#This Row],[360º]]/misPuntos)+1,TablaSeriesValores[[#This Row],[Valores]],0)","v":0},{"$f":"IF(MOD(TablaSeriesValores[[#This Row],[360º]],misPuntos)=0,miEscala,0)","v":0}]
[null,null,null,null,null,null,null,null,null,null,null,null,null,null,null,null,null,null,null,null,null,null,null,null,null,null,null,null,null,null,198,{"$f":"IFERROR(INDEX(misRayos,IF(MOD(TablaSeriesValores[[#This Row],[360º]],misPuntos)=0,NA(),INT(TablaSeriesValores[[#This Row],[360º]]/misPuntos)+1)),0)","v":1635.96},{"$f":"IF(miFila=INT(TablaSeriesValores[[#This Row],[360º]]/misPuntos)+1,TablaSeriesValores[[#This Row],[Valores]],0)","v":0},{"$f":"IF(MOD(TablaSeriesValores[[#This Row],[360º]],misPuntos)=0,miEscala,0)","v":0}]
[null,null,null,null,null,null,null,null,null,null,null,null,null,null,null,null,null,null,null,null,null,null,null,null,null,null,null,null,null,null,199,{"$f":"IFERROR(INDEX(misRayos,IF(MOD(TablaSeriesValores[[#This Row],[360º]],misPuntos)=0,NA(),INT(TablaSeriesValores[[#This Row],[360º]]/misPuntos)+1)),0)","v":1635.96},{"$f":"IF(miFila=INT(TablaSeriesValores[[#This Row],[360º]]/misPuntos)+1,TablaSeriesValores[[#This Row],[Valores]],0)","v":0},{"$f":"IF(MOD(TablaSeriesValores[[#This Row],[360º]],misPuntos)=0,miEscala,0)","v":0}]
[null,null,null,null,null,null,null,null,null,null,null,null,null,null,null,null,null,null,null,null,null,null,null,null,null,null,null,null,null,null,200,{"$f":"IFERROR(INDEX(misRayos,IF(MOD(TablaSeriesValores[[#This Row],[360º]],misPuntos)=0,NA(),INT(TablaSeriesValores[[#This Row],[360º]]/misPuntos)+1)),0)","v":1635.96},{"$f":"IF(miFila=INT(TablaSeriesValores[[#This Row],[360º]]/misPuntos)+1,TablaSeriesValores[[#This Row],[Valores]],0)","v":0},{"$f":"IF(MOD(TablaSeriesValores[[#This Row],[360º]],misPuntos)=0,miEscala,0)","v":0}]
[null,null,null,null,null,null,null,null,null,null,null,null,null,null,null,null,null,null,null,null,null,null,null,null,null,null,null,null,null,null,201,{"$f":"IFERROR(INDEX(misRayos,IF(MOD(TablaSeriesValores[[#This Row],[360º]],misPuntos)=0,NA(),INT(TablaSeriesValores[[#This Row],[360º]]/misPuntos)+1)),0)","v":1635.96},{"$f":"IF(miFila=INT(TablaSeriesValores[[#This Row],[360º]]/misPuntos)+1,TablaSeriesValores[[#This Row],[Valores]],0)","v":0},{"$f":"IF(MOD(TablaSeriesValores[[#This Row],[360º]],misPuntos)=0,miEscala,0)","v":0}]
[null,null,null,null,null,null,null,null,null,null,null,null,null,null,null,null,null,null,null,null,null,null,null,null,null,null,null,null,null,null,202,{"$f":"IFERROR(INDEX(misRayos,IF(MOD(TablaSeriesValores[[#This Row],[360º]],misPuntos)=0,NA(),INT(TablaSeriesValores[[#This Row],[360º]]/misPuntos)+1)),0)","v":1635.96},{"$f":"IF(miFila=INT(TablaSeriesValores[[#This Row],[360º]]/misPuntos)+1,TablaSeriesValores[[#This Row],[Valores]],0)","v":0},{"$f":"IF(MOD(TablaSeriesValores[[#This Row],[360º]],misPuntos)=0,miEscala,0)","v":0}]
[null,null,null,null,null,null,null,null,null,null,null,null,null,null,null,null,null,null,null,null,null,null,null,null,null,null,null,null,null,null,203,{"$f":"IFERROR(INDEX(misRayos,IF(MOD(TablaSeriesValores[[#This Row],[360º]],misPuntos)=0,NA(),INT(TablaSeriesValores[[#This Row],[360º]]/misPuntos)+1)),0)","v":1635.96},{"$f":"IF(miFila=INT(TablaSeriesValores[[#This Row],[360º]]/misPuntos)+1,TablaSeriesValores[[#This Row],[Valores]],0)","v":0},{"$f":"IF(MOD(TablaSeriesValores[[#This Row],[360º]],misPuntos)=0,miEscala,0)","v":0}]
[null,null,null,null,null,null,null,null,null,null,null,null,null,null,null,null,null,null,null,null,null,null,null,null,null,null,null,null,null,null,204,{"$f":"IFERROR(INDEX(misRayos,IF(MOD(TablaSeriesValores[[#This Row],[360º]],misPuntos)=0,NA(),INT(TablaSeriesValores[[#This Row],[360º]]/misPuntos)+1)),0)","v":1635.96},{"$f":"IF(miFila=INT(TablaSeriesValores[[#This Row],[360º]]/misPuntos)+1,TablaSeriesValores[[#This Row],[Valores]],0)","v":0},{"$f":"IF(MOD(TablaSeriesValores[[#This Row],[360º]],misPuntos)=0,miEscala,0)","v":0}]
[null,null,null,null,null,null,null,null,null,null,null,null,null,null,null,null,null,null,null,null,null,null,null,null,null,null,null,null,null,null,205,{"$f":"IFERROR(INDEX(misRayos,IF(MOD(TablaSeriesValores[[#This Row],[360º]],misPuntos)=0,NA(),INT(TablaSeriesValores[[#This Row],[360º]]/misPuntos)+1)),0)","v":1635.96},{"$f":"IF(miFila=INT(TablaSeriesValores[[#This Row],[360º]]/misPuntos)+1,TablaSeriesValores[[#This Row],[Valores]],0)","v":0},{"$f":"IF(MOD(TablaSeriesValores[[#This Row],[360º]],misPuntos)=0,miEscala,0)","v":0}]
[null,null,null,null,null,null,null,null,null,null,null,null,null,null,null,null,null,null,null,null,null,null,null,null,null,null,null,null,null,null,206,{"$f":"IFERROR(INDEX(misRayos,IF(MOD(TablaSeriesValores[[#This Row],[360º]],misPuntos)=0,NA(),INT(TablaSeriesValores[[#This Row],[360º]]/misPuntos)+1)),0)","v":1635.96},{"$f":"IF(miFila=INT(TablaSeriesValores[[#This Row],[360º]]/misPuntos)+1,TablaSeriesValores[[#This Row],[Valores]],0)","v":0},{"$f":"IF(MOD(TablaSeriesValores[[#This Row],[360º]],misPuntos)=0,miEscala,0)","v":0}]
[null,null,null,null,null,null,null,null,null,null,null,null,null,null,null,null,null,null,null,null,null,null,null,null,null,null,null,null,null,null,207,{"$f":"IFERROR(INDEX(misRayos,IF(MOD(TablaSeriesValores[[#This Row],[360º]],misPuntos)=0,NA(),INT(TablaSeriesValores[[#This Row],[360º]]/misPuntos)+1)),0)","v":1635.96},{"$f":"IF(miFila=INT(TablaSeriesValores[[#This Row],[360º]]/misPuntos)+1,TablaSeriesValores[[#This Row],[Valores]],0)","v":0},{"$f":"IF(MOD(TablaSeriesValores[[#This Row],[360º]],misPuntos)=0,miEscala,0)","v":0}]
[null,null,null,null,null,null,null,null,null,null,null,null,null,null,null,null,null,null,null,null,null,null,null,null,null,null,null,null,null,null,208,{"$f":"IFERROR(INDEX(misRayos,IF(MOD(TablaSeriesValores[[#This Row],[360º]],misPuntos)=0,NA(),INT(TablaSeriesValores[[#This Row],[360º]]/misPuntos)+1)),0)","v":1635.96},{"$f":"IF(miFila=INT(TablaSeriesValores[[#This Row],[360º]]/misPuntos)+1,TablaSeriesValores[[#This Row],[Valores]],0)","v":0},{"$f":"IF(MOD(TablaSeriesValores[[#This Row],[360º]],misPuntos)=0,miEscala,0)","v":0}]
[null,null,null,null,null,null,null,null,null,null,null,null,null,null,null,null,null,null,null,null,null,null,null,null,null,null,null,null,null,null,209,{"$f":"IFERROR(INDEX(misRayos,IF(MOD(TablaSeriesValores[[#This Row],[360º]],misPuntos)=0,NA(),INT(TablaSeriesValores[[#This Row],[360º]]/misPuntos)+1)),0)","v":1635.96},{"$f":"IF(miFila=INT(TablaSeriesValores[[#This Row],[360º]]/misPuntos)+1,TablaSeriesValores[[#This Row],[Valores]],0)","v":0},{"$f":"IF(MOD(TablaSeriesValores[[#This Row],[360º]],misPuntos)=0,miEscala,0)","v":0}]
[null,null,null,null,null,null,null,null,null,null,null,null,null,null,null,null,null,null,null,null,null,null,null,null,null,null,null,null,null,null,210,{"$f":"IFERROR(INDEX(misRayos,IF(MOD(TablaSeriesValores[[#This Row],[360º]],misPuntos)=0,NA(),INT(TablaSeriesValores[[#This Row],[360º]]/misPuntos)+1)),0)","v":0},{"$f":"IF(miFila=INT(TablaSeriesValores[[#This Row],[360º]]/misPuntos)+1,TablaSeriesValores[[#This Row],[Valores]],0)","v":0},{"$f":"IF(MOD(TablaSeriesValores[[#This Row],[360º]],misPuntos)=0,miEscala,0)","v":2419}]
[null,null,null,null,null,null,null,null,null,null,null,null,null,null,null,null,null,null,null,null,null,null,null,null,null,null,null,null,null,null,211,{"$f":"IFERROR(INDEX(misRayos,IF(MOD(TablaSeriesValores[[#This Row],[360º]],misPuntos)=0,NA(),INT(TablaSeriesValores[[#This Row],[360º]]/misPuntos)+1)),0)","v":1682.65},{"$f":"IF(miFila=INT(TablaSeriesValores[[#This Row],[360º]]/misPuntos)+1,TablaSeriesValores[[#This Row],[Valores]],0)","v":0},{"$f":"IF(MOD(TablaSeriesValores[[#This Row],[360º]],misPuntos)=0,miEscala,0)","v":0}]
[null,null,null,null,null,null,null,null,null,null,null,null,null,null,null,null,null,null,null,null,null,null,null,null,null,null,null,null,null,null,212,{"$f":"IFERROR(INDEX(misRayos,IF(MOD(TablaSeriesValores[[#This Row],[360º]],misPuntos)=0,NA(),INT(TablaSeriesValores[[#This Row],[360º]]/misPuntos)+1)),0)","v":1682.65},{"$f":"IF(miFila=INT(TablaSeriesValores[[#This Row],[360º]]/misPuntos)+1,TablaSeriesValores[[#This Row],[Valores]],0)","v":0},{"$f":"IF(MOD(TablaSeriesValores[[#This Row],[360º]],misPuntos)=0,miEscala,0)","v":0}]
[null,null,null,null,null,null,null,null,null,null,null,null,null,null,null,null,null,null,null,null,null,null,null,null,null,null,null,null,null,null,213,{"$f":"IFERROR(INDEX(misRayos,IF(MOD(TablaSeriesValores[[#This Row],[360º]],misPuntos)=0,NA(),INT(TablaSeriesValores[[#This Row],[360º]]/misPuntos)+1)),0)","v":1682.65},{"$f":"IF(miFila=INT(TablaSeriesValores[[#This Row],[360º]]/misPuntos)+1,TablaSeriesValores[[#This Row],[Valores]],0)","v":0},{"$f":"IF(MOD(TablaSeriesValores[[#This Row],[360º]],misPuntos)=0,miEscala,0)","v":0}]
[null,null,null,null,null,null,null,null,null,null,null,null,null,null,null,null,null,null,null,null,null,null,null,null,null,null,null,null,null,null,214,{"$f":"IFERROR(INDEX(misRayos,IF(MOD(TablaSeriesValores[[#This Row],[360º]],misPuntos)=0,NA(),INT(TablaSeriesValores[[#This Row],[360º]]/misPuntos)+1)),0)","v":1682.65},{"$f":"IF(miFila=INT(TablaSeriesValores[[#This Row],[360º]]/misPuntos)+1,TablaSeriesValores[[#This Row],[Valores]],0)","v":0},{"$f":"IF(MOD(TablaSeriesValores[[#This Row],[360º]],misPuntos)=0,miEscala,0)","v":0}]
[null,null,null,null,null,null,null,null,null,null,null,null,null,null,null,null,null,null,null,null,null,null,null,null,null,null,null,null,null,null,215,{"$f":"IFERROR(INDEX(misRayos,IF(MOD(TablaSeriesValores[[#This Row],[360º]],misPuntos)=0,NA(),INT(TablaSeriesValores[[#This Row],[360º]]/misPuntos)+1)),0)","v":1682.65},{"$f":"IF(miFila=INT(TablaSeriesValores[[#This Row],[360º]]/misPuntos)+1,TablaSeriesValores[[#This Row],[Valores]],0)","v":0},{"$f":"IF(MOD(TablaSeriesValores[[#This Row],[360º]],misPuntos)=0,miEscala,0)","v":0}]
[null,null,null,null,null,null,null,null,null,null,null,null,null,null,null,null,null,null,null,null,null,null,null,null,null,null,null,null,null,null,216,{"$f":"IFERROR(INDEX(misRayos,IF(MOD(TablaSeriesValores[[#This Row],[360º]],misPuntos)=0,NA(),INT(TablaSeriesValores[[#This Row],[360º]]/misPuntos)+1)),0)","v":1682.65},{"$f":"IF(miFila=INT(TablaSeriesValores[[#This Row],[360º]]/misPuntos)+1,TablaSeriesValores[[#This Row],[Valores]],0)","v":0},{"$f":"IF(MOD(TablaSeriesValores[[#This Row],[360º]],misPuntos)=0,miEscala,0)","v":0}]
[null,null,null,null,null,null,null,null,null,null,null,null,null,null,null,null,null,null,null,null,null,null,null,null,null,null,null,null,null,null,217,{"$f":"IFERROR(INDEX(misRayos,IF(MOD(TablaSeriesValores[[#This Row],[360º]],misPuntos)=0,NA(),INT(TablaSeriesValores[[#This Row],[360º]]/misPuntos)+1)),0)","v":1682.65},{"$f":"IF(miFila=INT(TablaSeriesValores[[#This Row],[360º]]/misPuntos)+1,TablaSeriesValores[[#This Row],[Valores]],0)","v":0},{"$f":"IF(MOD(TablaSeriesValores[[#This Row],[360º]],misPuntos)=0,miEscala,0)","v":0}]
[null,null,null,null,null,null,null,null,null,null,null,null,null,null,null,null,null,null,null,null,null,null,null,null,null,null,null,null,null,null,218,{"$f":"IFERROR(INDEX(misRayos,IF(MOD(TablaSeriesValores[[#This Row],[360º]],misPuntos)=0,NA(),INT(TablaSeriesValores[[#This Row],[360º]]/misPuntos)+1)),0)","v":1682.65},{"$f":"IF(miFila=INT(TablaSeriesValores[[#This Row],[360º]]/misPuntos)+1,TablaSeriesValores[[#This Row],[Valores]],0)","v":0},{"$f":"IF(MOD(TablaSeriesValores[[#This Row],[360º]],misPuntos)=0,miEscala,0)","v":0}]
[null,null,null,null,null,null,null,null,null,null,null,null,null,null,null,null,null,null,null,null,null,null,null,null,null,null,null,null,null,null,219,{"$f":"IFERROR(INDEX(misRayos,IF(MOD(TablaSeriesValores[[#This Row],[360º]],misPuntos)=0,NA(),INT(TablaSeriesValores[[#This Row],[360º]]/misPuntos)+1)),0)","v":1682.65},{"$f":"IF(miFila=INT(TablaSeriesValores[[#This Row],[360º]]/misPuntos)+1,TablaSeriesValores[[#This Row],[Valores]],0)","v":0},{"$f":"IF(MOD(TablaSeriesValores[[#This Row],[360º]],misPuntos)=0,miEscala,0)","v":0}]
[null,null,null,null,null,null,null,null,null,null,null,null,null,null,null,null,null,null,null,null,null,null,null,null,null,null,null,null,null,null,220,{"$f":"IFERROR(INDEX(misRayos,IF(MOD(TablaSeriesValores[[#This Row],[360º]],misPuntos)=0,NA(),INT(TablaSeriesValores[[#This Row],[360º]]/misPuntos)+1)),0)","v":1682.65},{"$f":"IF(miFila=INT(TablaSeriesValores[[#This Row],[360º]]/misPuntos)+1,TablaSeriesValores[[#This Row],[Valores]],0)","v":0},{"$f":"IF(MOD(TablaSeriesValores[[#This Row],[360º]],misPuntos)=0,miEscala,0)","v":0}]
[null,null,null,null,null,null,null,null,null,null,null,null,null,null,null,null,null,null,null,null,null,null,null,null,null,null,null,null,null,null,221,{"$f":"IFERROR(INDEX(misRayos,IF(MOD(TablaSeriesValores[[#This Row],[360º]],misPuntos)=0,NA(),INT(TablaSeriesValores[[#This Row],[360º]]/misPuntos)+1)),0)","v":1682.65},{"$f":"IF(miFila=INT(TablaSeriesValores[[#This Row],[360º]]/misPuntos)+1,TablaSeriesValores[[#This Row],[Valores]],0)","v":0},{"$f":"IF(MOD(TablaSeriesValores[[#This Row],[360º]],misPuntos)=0,miEscala,0)","v":0}]
[null,null,null,null,null,null,null,null,null,null,null,null,null,null,null,null,null,null,null,null,null,null,null,null,null,null,null,null,null,null,222,{"$f":"IFERROR(INDEX(misRayos,IF(MOD(TablaSeriesValores[[#This Row],[360º]],misPuntos)=0,NA(),INT(TablaSeriesValores[[#This Row],[360º]]/misPuntos)+1)),0)","v":1682.65},{"$f":"IF(miFila=INT(TablaSeriesValores[[#This Row],[360º]]/misPuntos)+1,TablaSeriesValores[[#This Row],[Valores]],0)","v":0},{"$f":"IF(MOD(TablaSeriesValores[[#This Row],[360º]],misPuntos)=0,miEscala,0)","v":0}]
[null,null,null,null,null,null,null,null,null,null,null,null,null,null,null,null,null,null,null,null,null,null,null,null,null,null,null,null,null,null,223,{"$f":"IFERROR(INDEX(misRayos,IF(MOD(TablaSeriesValores[[#This Row],[360º]],misPuntos)=0,NA(),INT(TablaSeriesValores[[#This Row],[360º]]/misPuntos)+1)),0)","v":1682.65},{"$f":"IF(miFila=INT(TablaSeriesValores[[#This Row],[360º]]/misPuntos)+1,TablaSeriesValores[[#This Row],[Valores]],0)","v":0},{"$f":"IF(MOD(TablaSeriesValores[[#This Row],[360º]],misPuntos)=0,miEscala,0)","v":0}]
[null,null,null,null,null,null,null,null,null,null,null,null,null,null,null,null,null,null,null,null,null,null,null,null,null,null,null,null,null,null,224,{"$f":"IFERROR(INDEX(misRayos,IF(MOD(TablaSeriesValores[[#This Row],[360º]],misPuntos)=0,NA(),INT(TablaSeriesValores[[#This Row],[360º]]/misPuntos)+1)),0)","v":1682.65},{"$f":"IF(miFila=INT(TablaSeriesValores[[#This Row],[360º]]/misPuntos)+1,TablaSeriesValores[[#This Row],[Valores]],0)","v":0},{"$f":"IF(MOD(TablaSeriesValores[[#This Row],[360º]],misPuntos)=0,miEscala,0)","v":0}]
[null,null,null,null,null,null,null,null,null,null,null,null,null,null,null,null,null,null,null,null,null,null,null,null,null,null,null,null,null,null,225,{"$f":"IFERROR(INDEX(misRayos,IF(MOD(TablaSeriesValores[[#This Row],[360º]],misPuntos)=0,NA(),INT(TablaSeriesValores[[#This Row],[360º]]/misPuntos)+1)),0)","v":1682.65},{"$f":"IF(miFila=INT(TablaSeriesValores[[#This Row],[360º]]/misPuntos)+1,TablaSeriesValores[[#This Row],[Valores]],0)","v":0},{"$f":"IF(MOD(TablaSeriesValores[[#This Row],[360º]],misPuntos)=0,miEscala,0)","v":0}]
[null,null,null,null,null,null,null,null,null,null,null,null,null,null,null,null,null,null,null,null,null,null,null,null,null,null,null,null,null,null,226,{"$f":"IFERROR(INDEX(misRayos,IF(MOD(TablaSeriesValores[[#This Row],[360º]],misPuntos)=0,NA(),INT(TablaSeriesValores[[#This Row],[360º]]/misPuntos)+1)),0)","v":1682.65},{"$f":"IF(miFila=INT(TablaSeriesValores[[#This Row],[360º]]/misPuntos)+1,TablaSeriesValores[[#This Row],[Valores]],0)","v":0},{"$f":"IF(MOD(TablaSeriesValores[[#This Row],[360º]],misPuntos)=0,miEscala,0)","v":0}]
[null,null,null,null,null,null,null,null,null,null,null,null,null,null,null,null,null,null,null,null,null,null,null,null,null,null,null,null,null,null,227,{"$f":"IFERROR(INDEX(misRayos,IF(MOD(TablaSeriesValores[[#This Row],[360º]],misPuntos)=0,NA(),INT(TablaSeriesValores[[#This Row],[360º]]/misPuntos)+1)),0)","v":1682.65},{"$f":"IF(miFila=INT(TablaSeriesValores[[#This Row],[360º]]/misPuntos)+1,TablaSeriesValores[[#This Row],[Valores]],0)","v":0},{"$f":"IF(MOD(TablaSeriesValores[[#This Row],[360º]],misPuntos)=0,miEscala,0)","v":0}]
[null,null,null,null,null,null,null,null,null,null,null,null,null,null,null,null,null,null,null,null,null,null,null,null,null,null,null,null,null,null,228,{"$f":"IFERROR(INDEX(misRayos,IF(MOD(TablaSeriesValores[[#This Row],[360º]],misPuntos)=0,NA(),INT(TablaSeriesValores[[#This Row],[360º]]/misPuntos)+1)),0)","v":1682.65},{"$f":"IF(miFila=INT(TablaSeriesValores[[#This Row],[360º]]/misPuntos)+1,TablaSeriesValores[[#This Row],[Valores]],0)","v":0},{"$f":"IF(MOD(TablaSeriesValores[[#This Row],[360º]],misPuntos)=0,miEscala,0)","v":0}]
[null,null,null,null,null,null,null,null,null,null,null,null,null,null,null,null,null,null,null,null,null,null,null,null,null,null,null,null,null,null,229,{"$f":"IFERROR(INDEX(misRayos,IF(MOD(TablaSeriesValores[[#This Row],[360º]],misPuntos)=0,NA(),INT(TablaSeriesValores[[#This Row],[360º]]/misPuntos)+1)),0)","v":1682.65},{"$f":"IF(miFila=INT(TablaSeriesValores[[#This Row],[360º]]/misPuntos)+1,TablaSeriesValores[[#This Row],[Valores]],0)","v":0},{"$f":"IF(MOD(TablaSeriesValores[[#This Row],[360º]],misPuntos)=0,miEscala,0)","v":0}]
[null,null,null,null,null,null,null,null,null,null,null,null,null,null,null,null,null,null,null,null,null,null,null,null,null,null,null,null,null,null,230,{"$f":"IFERROR(INDEX(misRayos,IF(MOD(TablaSeriesValores[[#This Row],[360º]],misPuntos)=0,NA(),INT(TablaSeriesValores[[#This Row],[360º]]/misPuntos)+1)),0)","v":1682.65},{"$f":"IF(miFila=INT(TablaSeriesValores[[#This Row],[360º]]/misPuntos)+1,TablaSeriesValores[[#This Row],[Valores]],0)","v":0},{"$f":"IF(MOD(TablaSeriesValores[[#This Row],[360º]],misPuntos)=0,miEscala,0)","v":0}]
[null,null,null,null,null,null,null,null,null,null,null,null,null,null,null,null,null,null,null,null,null,null,null,null,null,null,null,null,null,null,231,{"$f":"IFERROR(INDEX(misRayos,IF(MOD(TablaSeriesValores[[#This Row],[360º]],misPuntos)=0,NA(),INT(TablaSeriesValores[[#This Row],[360º]]/misPuntos)+1)),0)","v":1682.65},{"$f":"IF(miFila=INT(TablaSeriesValores[[#This Row],[360º]]/misPuntos)+1,TablaSeriesValores[[#This Row],[Valores]],0)","v":0},{"$f":"IF(MOD(TablaSeriesValores[[#This Row],[360º]],misPuntos)=0,miEscala,0)","v":0}]
[null,null,null,null,null,null,null,null,null,null,null,null,null,null,null,null,null,null,null,null,null,null,null,null,null,null,null,null,null,null,232,{"$f":"IFERROR(INDEX(misRayos,IF(MOD(TablaSeriesValores[[#This Row],[360º]],misPuntos)=0,NA(),INT(TablaSeriesValores[[#This Row],[360º]]/misPuntos)+1)),0)","v":1682.65},{"$f":"IF(miFila=INT(TablaSeriesValores[[#This Row],[360º]]/misPuntos)+1,TablaSeriesValores[[#This Row],[Valores]],0)","v":0},{"$f":"IF(MOD(TablaSeriesValores[[#This Row],[360º]],misPuntos)=0,miEscala,0)","v":0}]
[null,null,null,null,null,null,null,null,null,null,null,null,null,null,null,null,null,null,null,null,null,null,null,null,null,null,null,null,null,null,233,{"$f":"IFERROR(INDEX(misRayos,IF(MOD(TablaSeriesValores[[#This Row],[360º]],misPuntos)=0,NA(),INT(TablaSeriesValores[[#This Row],[360º]]/misPuntos)+1)),0)","v":1682.65},{"$f":"IF(miFila=INT(TablaSeriesValores[[#This Row],[360º]]/misPuntos)+1,TablaSeriesValores[[#This Row],[Valores]],0)","v":0},{"$f":"IF(MOD(TablaSeriesValores[[#This Row],[360º]],misPuntos)=0,miEscala,0)","v":0}]
[null,null,null,null,null,null,null,null,null,null,null,null,null,null,null,null,null,null,null,null,null,null,null,null,null,null,null,null,null,null,234,{"$f":"IFERROR(INDEX(misRayos,IF(MOD(TablaSeriesValores[[#This Row],[360º]],misPuntos)=0,NA(),INT(TablaSeriesValores[[#This Row],[360º]]/misPuntos)+1)),0)","v":1682.65},{"$f":"IF(miFila=INT(TablaSeriesValores[[#This Row],[360º]]/misPuntos)+1,TablaSeriesValores[[#This Row],[Valores]],0)","v":0},{"$f":"IF(MOD(TablaSeriesValores[[#This Row],[360º]],misPuntos)=0,miEscala,0)","v":0}]
[null,null,null,null,null,null,null,null,null,null,null,null,null,null,null,null,null,null,null,null,null,null,null,null,null,null,null,null,null,null,235,{"$f":"IFERROR(INDEX(misRayos,IF(MOD(TablaSeriesValores[[#This Row],[360º]],misPuntos)=0,NA(),INT(TablaSeriesValores[[#This Row],[360º]]/misPuntos)+1)),0)","v":1682.65},{"$f":"IF(miFila=INT(TablaSeriesValores[[#This Row],[360º]]/misPuntos)+1,TablaSeriesValores[[#This Row],[Valores]],0)","v":0},{"$f":"IF(MOD(TablaSeriesValores[[#This Row],[360º]],misPuntos)=0,miEscala,0)","v":0}]
[null,null,null,null,null,null,null,null,null,null,null,null,null,null,null,null,null,null,null,null,null,null,null,null,null,null,null,null,null,null,236,{"$f":"IFERROR(INDEX(misRayos,IF(MOD(TablaSeriesValores[[#This Row],[360º]],misPuntos)=0,NA(),INT(TablaSeriesValores[[#This Row],[360º]]/misPuntos)+1)),0)","v":1682.65},{"$f":"IF(miFila=INT(TablaSeriesValores[[#This Row],[360º]]/misPuntos)+1,TablaSeriesValores[[#This Row],[Valores]],0)","v":0},{"$f":"IF(MOD(TablaSeriesValores[[#This Row],[360º]],misPuntos)=0,miEscala,0)","v":0}]
[null,null,null,null,null,null,null,null,null,null,null,null,null,null,null,null,null,null,null,null,null,null,null,null,null,null,null,null,null,null,237,{"$f":"IFERROR(INDEX(misRayos,IF(MOD(TablaSeriesValores[[#This Row],[360º]],misPuntos)=0,NA(),INT(TablaSeriesValores[[#This Row],[360º]]/misPuntos)+1)),0)","v":1682.65},{"$f":"IF(miFila=INT(TablaSeriesValores[[#This Row],[360º]]/misPuntos)+1,TablaSeriesValores[[#This Row],[Valores]],0)","v":0},{"$f":"IF(MOD(TablaSeriesValores[[#This Row],[360º]],misPuntos)=0,miEscala,0)","v":0}]
[null,null,null,null,null,null,null,null,null,null,null,null,null,null,null,null,null,null,null,null,null,null,null,null,null,null,null,null,null,null,238,{"$f":"IFERROR(INDEX(misRayos,IF(MOD(TablaSeriesValores[[#This Row],[360º]],misPuntos)=0,NA(),INT(TablaSeriesValores[[#This Row],[360º]]/misPuntos)+1)),0)","v":1682.65},{"$f":"IF(miFila=INT(TablaSeriesValores[[#This Row],[360º]]/misPuntos)+1,TablaSeriesValores[[#This Row],[Valores]],0)","v":0},{"$f":"IF(MOD(TablaSeriesValores[[#This Row],[360º]],misPuntos)=0,miEscala,0)","v":0}]
[null,null,null,null,null,null,null,null,null,null,null,null,null,null,null,null,null,null,null,null,null,null,null,null,null,null,null,null,null,null,239,{"$f":"IFERROR(INDEX(misRayos,IF(MOD(TablaSeriesValores[[#This Row],[360º]],misPuntos)=0,NA(),INT(TablaSeriesValores[[#This Row],[360º]]/misPuntos)+1)),0)","v":1682.65},{"$f":"IF(miFila=INT(TablaSeriesValores[[#This Row],[360º]]/misPuntos)+1,TablaSeriesValores[[#This Row],[Valores]],0)","v":0},{"$f":"IF(MOD(TablaSeriesValores[[#This Row],[360º]],misPuntos)=0,miEscala,0)","v":0}]
[null,null,null,null,null,null,null,null,null,null,null,null,null,null,null,null,null,null,null,null,null,null,null,null,null,null,null,null,null,null,240,{"$f":"IFERROR(INDEX(misRayos,IF(MOD(TablaSeriesValores[[#This Row],[360º]],misPuntos)=0,NA(),INT(TablaSeriesValores[[#This Row],[360º]]/misPuntos)+1)),0)","v":0},{"$f":"IF(miFila=INT(TablaSeriesValores[[#This Row],[360º]]/misPuntos)+1,TablaSeriesValores[[#This Row],[Valores]],0)","v":0},{"$f":"IF(MOD(TablaSeriesValores[[#This Row],[360º]],misPuntos)=0,miEscala,0)","v":2419}]
[null,null,null,null,null,null,null,null,null,null,null,null,null,null,null,null,null,null,null,null,null,null,null,null,null,null,null,null,null,null,241,{"$f":"IFERROR(INDEX(misRayos,IF(MOD(TablaSeriesValores[[#This Row],[360º]],misPuntos)=0,NA(),INT(TablaSeriesValores[[#This Row],[360º]]/misPuntos)+1)),0)","v":1154.75},{"$f":"IF(miFila=INT(TablaSeriesValores[[#This Row],[360º]]/misPuntos)+1,TablaSeriesValores[[#This Row],[Valores]],0)","v":0},{"$f":"IF(MOD(TablaSeriesValores[[#This Row],[360º]],misPuntos)=0,miEscala,0)","v":0}]
[null,null,null,null,null,null,null,null,null,null,null,null,null,null,null,null,null,null,null,null,null,null,null,null,null,null,null,null,null,null,242,{"$f":"IFERROR(INDEX(misRayos,IF(MOD(TablaSeriesValores[[#This Row],[360º]],misPuntos)=0,NA(),INT(TablaSeriesValores[[#This Row],[360º]]/misPuntos)+1)),0)","v":1154.75},{"$f":"IF(miFila=INT(TablaSeriesValores[[#This Row],[360º]]/misPuntos)+1,TablaSeriesValores[[#This Row],[Valores]],0)","v":0},{"$f":"IF(MOD(TablaSeriesValores[[#This Row],[360º]],misPuntos)=0,miEscala,0)","v":0}]
[null,null,null,null,null,null,null,null,null,null,null,null,null,null,null,null,null,null,null,null,null,null,null,null,null,null,null,null,null,null,243,{"$f":"IFERROR(INDEX(misRayos,IF(MOD(TablaSeriesValores[[#This Row],[360º]],misPuntos)=0,NA(),INT(TablaSeriesValores[[#This Row],[360º]]/misPuntos)+1)),0)","v":1154.75},{"$f":"IF(miFila=INT(TablaSeriesValores[[#This Row],[360º]]/misPuntos)+1,TablaSeriesValores[[#This Row],[Valores]],0)","v":0},{"$f":"IF(MOD(TablaSeriesValores[[#This Row],[360º]],misPuntos)=0,miEscala,0)","v":0}]
[null,null,null,null,null,null,null,null,null,null,null,null,null,null,null,null,null,null,null,null,null,null,null,null,null,null,null,null,null,null,244,{"$f":"IFERROR(INDEX(misRayos,IF(MOD(TablaSeriesValores[[#This Row],[360º]],misPuntos)=0,NA(),INT(TablaSeriesValores[[#This Row],[360º]]/misPuntos)+1)),0)","v":1154.75},{"$f":"IF(miFila=INT(TablaSeriesValores[[#This Row],[360º]]/misPuntos)+1,TablaSeriesValores[[#This Row],[Valores]],0)","v":0},{"$f":"IF(MOD(TablaSeriesValores[[#This Row],[360º]],misPuntos)=0,miEscala,0)","v":0}]
[null,null,null,null,null,null,null,null,null,null,null,null,null,null,null,null,null,null,null,null,null,null,null,null,null,null,null,null,null,null,245,{"$f":"IFERROR(INDEX(misRayos,IF(MOD(TablaSeriesValores[[#This Row],[360º]],misPuntos)=0,NA(),INT(TablaSeriesValores[[#This Row],[360º]]/misPuntos)+1)),0)","v":1154.75},{"$f":"IF(miFila=INT(TablaSeriesValores[[#This Row],[360º]]/misPuntos)+1,TablaSeriesValores[[#This Row],[Valores]],0)","v":0},{"$f":"IF(MOD(TablaSeriesValores[[#This Row],[360º]],misPuntos)=0,miEscala,0)","v":0}]
[null,null,null,null,null,null,null,null,null,null,null,null,null,null,null,null,null,null,null,null,null,null,null,null,null,null,null,null,null,null,246,{"$f":"IFERROR(INDEX(misRayos,IF(MOD(TablaSeriesValores[[#This Row],[360º]],misPuntos)=0,NA(),INT(TablaSeriesValores[[#This Row],[360º]]/misPuntos)+1)),0)","v":1154.75},{"$f":"IF(miFila=INT(TablaSeriesValores[[#This Row],[360º]]/misPuntos)+1,TablaSeriesValores[[#This Row],[Valores]],0)","v":0},{"$f":"IF(MOD(TablaSeriesValores[[#This Row],[360º]],misPuntos)=0,miEscala,0)","v":0}]
[null,null,null,null,null,null,null,null,null,null,null,null,null,null,null,null,null,null,null,null,null,null,null,null,null,null,null,null,null,null,247,{"$f":"IFERROR(INDEX(misRayos,IF(MOD(TablaSeriesValores[[#This Row],[360º]],misPuntos)=0,NA(),INT(TablaSeriesValores[[#This Row],[360º]]/misPuntos)+1)),0)","v":1154.75},{"$f":"IF(miFila=INT(TablaSeriesValores[[#This Row],[360º]]/misPuntos)+1,TablaSeriesValores[[#This Row],[Valores]],0)","v":0},{"$f":"IF(MOD(TablaSeriesValores[[#This Row],[360º]],misPuntos)=0,miEscala,0)","v":0}]
[null,null,null,null,null,null,null,null,null,null,null,null,null,null,null,null,null,null,null,null,null,null,null,null,null,null,null,null,null,null,248,{"$f":"IFERROR(INDEX(misRayos,IF(MOD(TablaSeriesValores[[#This Row],[360º]],misPuntos)=0,NA(),INT(TablaSeriesValores[[#This Row],[360º]]/misPuntos)+1)),0)","v":1154.75},{"$f":"IF(miFila=INT(TablaSeriesValores[[#This Row],[360º]]/misPuntos)+1,TablaSeriesValores[[#This Row],[Valores]],0)","v":0},{"$f":"IF(MOD(TablaSeriesValores[[#This Row],[360º]],misPuntos)=0,miEscala,0)","v":0}]
[null,null,null,null,null,null,null,null,null,null,null,null,null,null,null,null,null,null,null,null,null,null,null,null,null,null,null,null,null,null,249,{"$f":"IFERROR(INDEX(misRayos,IF(MOD(TablaSeriesValores[[#This Row],[360º]],misPuntos)=0,NA(),INT(TablaSeriesValores[[#This Row],[360º]]/misPuntos)+1)),0)","v":1154.75},{"$f":"IF(miFila=INT(TablaSeriesValores[[#This Row],[360º]]/misPuntos)+1,TablaSeriesValores[[#This Row],[Valores]],0)","v":0},{"$f":"IF(MOD(TablaSeriesValores[[#This Row],[360º]],misPuntos)=0,miEscala,0)","v":0}]
[null,null,null,null,null,null,null,null,null,null,null,null,null,null,null,null,null,null,null,null,null,null,null,null,null,null,null,null,null,null,250,{"$f":"IFERROR(INDEX(misRayos,IF(MOD(TablaSeriesValores[[#This Row],[360º]],misPuntos)=0,NA(),INT(TablaSeriesValores[[#This Row],[360º]]/misPuntos)+1)),0)","v":1154.75},{"$f":"IF(miFila=INT(TablaSeriesValores[[#This Row],[360º]]/misPuntos)+1,TablaSeriesValores[[#This Row],[Valores]],0)","v":0},{"$f":"IF(MOD(TablaSeriesValores[[#This Row],[360º]],misPuntos)=0,miEscala,0)","v":0}]
[null,null,null,null,null,null,null,null,null,null,null,null,null,null,null,null,null,null,null,null,null,null,null,null,null,null,null,null,null,null,251,{"$f":"IFERROR(INDEX(misRayos,IF(MOD(TablaSeriesValores[[#This Row],[360º]],misPuntos)=0,NA(),INT(TablaSeriesValores[[#This Row],[360º]]/misPuntos)+1)),0)","v":1154.75},{"$f":"IF(miFila=INT(TablaSeriesValores[[#This Row],[360º]]/misPuntos)+1,TablaSeriesValores[[#This Row],[Valores]],0)","v":0},{"$f":"IF(MOD(TablaSeriesValores[[#This Row],[360º]],misPuntos)=0,miEscala,0)","v":0}]
[null,null,null,null,null,null,null,null,null,null,null,null,null,null,null,null,null,null,null,null,null,null,null,null,null,null,null,null,null,null,252,{"$f":"IFERROR(INDEX(misRayos,IF(MOD(TablaSeriesValores[[#This Row],[360º]],misPuntos)=0,NA(),INT(TablaSeriesValores[[#This Row],[360º]]/misPuntos)+1)),0)","v":1154.75},{"$f":"IF(miFila=INT(TablaSeriesValores[[#This Row],[360º]]/misPuntos)+1,TablaSeriesValores[[#This Row],[Valores]],0)","v":0},{"$f":"IF(MOD(TablaSeriesValores[[#This Row],[360º]],misPuntos)=0,miEscala,0)","v":0}]
[null,null,null,null,null,null,null,null,null,null,null,null,null,null,null,null,null,null,null,null,null,null,null,null,null,null,null,null,null,null,253,{"$f":"IFERROR(INDEX(misRayos,IF(MOD(TablaSeriesValores[[#This Row],[360º]],misPuntos)=0,NA(),INT(TablaSeriesValores[[#This Row],[360º]]/misPuntos)+1)),0)","v":1154.75},{"$f":"IF(miFila=INT(TablaSeriesValores[[#This Row],[360º]]/misPuntos)+1,TablaSeriesValores[[#This Row],[Valores]],0)","v":0},{"$f":"IF(MOD(TablaSeriesValores[[#This Row],[360º]],misPuntos)=0,miEscala,0)","v":0}]
[null,null,null,null,null,null,null,null,null,null,null,null,null,null,null,null,null,null,null,null,null,null,null,null,null,null,null,null,null,null,254,{"$f":"IFERROR(INDEX(misRayos,IF(MOD(TablaSeriesValores[[#This Row],[360º]],misPuntos)=0,NA(),INT(TablaSeriesValores[[#This Row],[360º]]/misPuntos)+1)),0)","v":1154.75},{"$f":"IF(miFila=INT(TablaSeriesValores[[#This Row],[360º]]/misPuntos)+1,TablaSeriesValores[[#This Row],[Valores]],0)","v":0},{"$f":"IF(MOD(TablaSeriesValores[[#This Row],[360º]],misPuntos)=0,miEscala,0)","v":0}]
[null,null,null,null,null,null,null,null,null,null,null,null,null,null,null,null,null,null,null,null,null,null,null,null,null,null,null,null,null,null,255,{"$f":"IFERROR(INDEX(misRayos,IF(MOD(TablaSeriesValores[[#This Row],[360º]],misPuntos)=0,NA(),INT(TablaSeriesValores[[#This Row],[360º]]/misPuntos)+1)),0)","v":1154.75},{"$f":"IF(miFila=INT(TablaSeriesValores[[#This Row],[360º]]/misPuntos)+1,TablaSeriesValores[[#This Row],[Valores]],0)","v":0},{"$f":"IF(MOD(TablaSeriesValores[[#This Row],[360º]],misPuntos)=0,miEscala,0)","v":0}]
[null,null,null,null,null,null,null,null,null,null,null,null,null,null,null,null,null,null,null,null,null,null,null,null,null,null,null,null,null,null,{"$f":"ROW(AE257)-ROW($AE$1)","v":256},{"$f":"IFERROR(INDEX(misRayos,IF(MOD(TablaSeriesValores[[#This Row],[360º]],misPuntos)=0,NA(),INT(TablaSeriesValores[[#This Row],[360º]]/misPuntos)+1)),0)","v":1154.75},{"$f":"IF(miFila=INT(TablaSeriesValores[[#This Row],[360º]]/misPuntos)+1,TablaSeriesValores[[#This Row],[Valores]],0)","v":0},{"$f":"IF(MOD(TablaSeriesValores[[#This Row],[360º]],misPuntos)=0,miEscala,0)","v":0}]
[null,null,null,null,null,null,null,null,null,null,null,null,null,null,null,null,null,null,null,null,null,null,null,null,null,null,null,null,null,null,257,{"$f":"IFERROR(INDEX(misRayos,IF(MOD(TablaSeriesValores[[#This Row],[360º]],misPuntos)=0,NA(),INT(TablaSeriesValores[[#This Row],[360º]]/misPuntos)+1)),0)","v":1154.75},{"$f":"IF(miFila=INT(TablaSeriesValores[[#This Row],[360º]]/misPuntos)+1,TablaSeriesValores[[#This Row],[Valores]],0)","v":0},{"$f":"IF(MOD(TablaSeriesValores[[#This Row],[360º]],misPuntos)=0,miEscala,0)","v":0}]
[null,null,null,null,null,null,null,null,null,null,null,null,null,null,null,null,null,null,null,null,null,null,null,null,null,null,null,null,null,null,258,{"$f":"IFERROR(INDEX(misRayos,IF(MOD(TablaSeriesValores[[#This Row],[360º]],misPuntos)=0,NA(),INT(TablaSeriesValores[[#This Row],[360º]]/misPuntos)+1)),0)","v":1154.75},{"$f":"IF(miFila=INT(TablaSeriesValores[[#This Row],[360º]]/misPuntos)+1,TablaSeriesValores[[#This Row],[Valores]],0)","v":0},{"$f":"IF(MOD(TablaSeriesValores[[#This Row],[360º]],misPuntos)=0,miEscala,0)","v":0}]
[null,null,null,null,null,null,null,null,null,null,null,null,null,null,null,null,null,null,null,null,null,null,null,null,null,null,null,null,null,null,259,{"$f":"IFERROR(INDEX(misRayos,IF(MOD(TablaSeriesValores[[#This Row],[360º]],misPuntos)=0,NA(),INT(TablaSeriesValores[[#This Row],[360º]]/misPuntos)+1)),0)","v":1154.75},{"$f":"IF(miFila=INT(TablaSeriesValores[[#This Row],[360º]]/misPuntos)+1,TablaSeriesValores[[#This Row],[Valores]],0)","v":0},{"$f":"IF(MOD(TablaSeriesValores[[#This Row],[360º]],misPuntos)=0,miEscala,0)","v":0}]
[null,null,null,null,null,null,null,null,null,null,null,null,null,null,null,null,null,null,null,null,null,null,null,null,null,null,null,null,null,null,260,{"$f":"IFERROR(INDEX(misRayos,IF(MOD(TablaSeriesValores[[#This Row],[360º]],misPuntos)=0,NA(),INT(TablaSeriesValores[[#This Row],[360º]]/misPuntos)+1)),0)","v":1154.75},{"$f":"IF(miFila=INT(TablaSeriesValores[[#This Row],[360º]]/misPuntos)+1,TablaSeriesValores[[#This Row],[Valores]],0)","v":0},{"$f":"IF(MOD(TablaSeriesValores[[#This Row],[360º]],misPuntos)=0,miEscala,0)","v":0}]
[null,null,null,null,null,null,null,null,null,null,null,null,null,null,null,null,null,null,null,null,null,null,null,null,null,null,null,null,null,null,261,{"$f":"IFERROR(INDEX(misRayos,IF(MOD(TablaSeriesValores[[#This Row],[360º]],misPuntos)=0,NA(),INT(TablaSeriesValores[[#This Row],[360º]]/misPuntos)+1)),0)","v":1154.75},{"$f":"IF(miFila=INT(TablaSeriesValores[[#This Row],[360º]]/misPuntos)+1,TablaSeriesValores[[#This Row],[Valores]],0)","v":0},{"$f":"IF(MOD(TablaSeriesValores[[#This Row],[360º]],misPuntos)=0,miEscala,0)","v":0}]
[null,null,null,null,null,null,null,null,null,null,null,null,null,null,null,null,null,null,null,null,null,null,null,null,null,null,null,null,null,null,262,{"$f":"IFERROR(INDEX(misRayos,IF(MOD(TablaSeriesValores[[#This Row],[360º]],misPuntos)=0,NA(),INT(TablaSeriesValores[[#This Row],[360º]]/misPuntos)+1)),0)","v":1154.75},{"$f":"IF(miFila=INT(TablaSeriesValores[[#This Row],[360º]]/misPuntos)+1,TablaSeriesValores[[#This Row],[Valores]],0)","v":0},{"$f":"IF(MOD(TablaSeriesValores[[#This Row],[360º]],misPuntos)=0,miEscala,0)","v":0}]
[null,null,null,null,null,null,null,null,null,null,null,null,null,null,null,null,null,null,null,null,null,null,null,null,null,null,null,null,null,null,263,{"$f":"IFERROR(INDEX(misRayos,IF(MOD(TablaSeriesValores[[#This Row],[360º]],misPuntos)=0,NA(),INT(TablaSeriesValores[[#This Row],[360º]]/misPuntos)+1)),0)","v":1154.75},{"$f":"IF(miFila=INT(TablaSeriesValores[[#This Row],[360º]]/misPuntos)+1,TablaSeriesValores[[#This Row],[Valores]],0)","v":0},{"$f":"IF(MOD(TablaSeriesValores[[#This Row],[360º]],misPuntos)=0,miEscala,0)","v":0}]
[null,null,null,null,null,null,null,null,null,null,null,null,null,null,null,null,null,null,null,null,null,null,null,null,null,null,null,null,null,null,264,{"$f":"IFERROR(INDEX(misRayos,IF(MOD(TablaSeriesValores[[#This Row],[360º]],misPuntos)=0,NA(),INT(TablaSeriesValores[[#This Row],[360º]]/misPuntos)+1)),0)","v":1154.75},{"$f":"IF(miFila=INT(TablaSeriesValores[[#This Row],[360º]]/misPuntos)+1,TablaSeriesValores[[#This Row],[Valores]],0)","v":0},{"$f":"IF(MOD(TablaSeriesValores[[#This Row],[360º]],misPuntos)=0,miEscala,0)","v":0}]
[null,null,null,null,null,null,null,null,null,null,null,null,null,null,null,null,null,null,null,null,null,null,null,null,null,null,null,null,null,null,265,{"$f":"IFERROR(INDEX(misRayos,IF(MOD(TablaSeriesValores[[#This Row],[360º]],misPuntos)=0,NA(),INT(TablaSeriesValores[[#This Row],[360º]]/misPuntos)+1)),0)","v":1154.75},{"$f":"IF(miFila=INT(TablaSeriesValores[[#This Row],[360º]]/misPuntos)+1,TablaSeriesValores[[#This Row],[Valores]],0)","v":0},{"$f":"IF(MOD(TablaSeriesValores[[#This Row],[360º]],misPuntos)=0,miEscala,0)","v":0}]
[null,null,null,null,null,null,null,null,null,null,null,null,null,null,null,null,null,null,null,null,null,null,null,null,null,null,null,null,null,null,266,{"$f":"IFERROR(INDEX(misRayos,IF(MOD(TablaSeriesValores[[#This Row],[360º]],misPuntos)=0,NA(),INT(TablaSeriesValores[[#This Row],[360º]]/misPuntos)+1)),0)","v":1154.75},{"$f":"IF(miFila=INT(TablaSeriesValores[[#This Row],[360º]]/misPuntos)+1,TablaSeriesValores[[#This Row],[Valores]],0)","v":0},{"$f":"IF(MOD(TablaSeriesValores[[#This Row],[360º]],misPuntos)=0,miEscala,0)","v":0}]
[null,null,null,null,null,null,null,null,null,null,null,null,null,null,null,null,null,null,null,null,null,null,null,null,null,null,null,null,null,null,267,{"$f":"IFERROR(INDEX(misRayos,IF(MOD(TablaSeriesValores[[#This Row],[360º]],misPuntos)=0,NA(),INT(TablaSeriesValores[[#This Row],[360º]]/misPuntos)+1)),0)","v":1154.75},{"$f":"IF(miFila=INT(TablaSeriesValores[[#This Row],[360º]]/misPuntos)+1,TablaSeriesValores[[#This Row],[Valores]],0)","v":0},{"$f":"IF(MOD(TablaSeriesValores[[#This Row],[360º]],misPuntos)=0,miEscala,0)","v":0}]
[null,null,null,null,null,null,null,null,null,null,null,null,null,null,null,null,null,null,null,null,null,null,null,null,null,null,null,null,null,null,268,{"$f":"IFERROR(INDEX(misRayos,IF(MOD(TablaSeriesValores[[#This Row],[360º]],misPuntos)=0,NA(),INT(TablaSeriesValores[[#This Row],[360º]]/misPuntos)+1)),0)","v":1154.75},{"$f":"IF(miFila=INT(TablaSeriesValores[[#This Row],[360º]]/misPuntos)+1,TablaSeriesValores[[#This Row],[Valores]],0)","v":0},{"$f":"IF(MOD(TablaSeriesValores[[#This Row],[360º]],misPuntos)=0,miEscala,0)","v":0}]
[null,null,null,null,null,null,null,null,null,null,null,null,null,null,null,null,null,null,null,null,null,null,null,null,null,null,null,null,null,null,269,{"$f":"IFERROR(INDEX(misRayos,IF(MOD(TablaSeriesValores[[#This Row],[360º]],misPuntos)=0,NA(),INT(TablaSeriesValores[[#This Row],[360º]]/misPuntos)+1)),0)","v":1154.75},{"$f":"IF(miFila=INT(TablaSeriesValores[[#This Row],[360º]]/misPuntos)+1,TablaSeriesValores[[#This Row],[Valores]],0)","v":0},{"$f":"IF(MOD(TablaSeriesValores[[#This Row],[360º]],misPuntos)=0,miEscala,0)","v":0}]
[null,null,null,null,null,null,null,null,null,null,null,null,null,null,null,null,null,null,null,null,null,null,null,null,null,null,null,null,null,null,270,{"$f":"IFERROR(INDEX(misRayos,IF(MOD(TablaSeriesValores[[#This Row],[360º]],misPuntos)=0,NA(),INT(TablaSeriesValores[[#This Row],[360º]]/misPuntos)+1)),0)","v":0},{"$f":"IF(miFila=INT(TablaSeriesValores[[#This Row],[360º]]/misPuntos)+1,TablaSeriesValores[[#This Row],[Valores]],0)","v":0},{"$f":"IF(MOD(TablaSeriesValores[[#This Row],[360º]],misPuntos)=0,miEscala,0)","v":2419}]
[null,null,null,null,null,null,null,null,null,null,null,null,null,null,null,null,null,null,null,null,null,null,null,null,null,null,null,null,null,null,271,{"$f":"IFERROR(INDEX(misRayos,IF(MOD(TablaSeriesValores[[#This Row],[360º]],misPuntos)=0,NA(),INT(TablaSeriesValores[[#This Row],[360º]]/misPuntos)+1)),0)","v":1259.19},{"$f":"IF(miFila=INT(TablaSeriesValores[[#This Row],[360º]]/misPuntos)+1,TablaSeriesValores[[#This Row],[Valores]],0)","v":0},{"$f":"IF(MOD(TablaSeriesValores[[#This Row],[360º]],misPuntos)=0,miEscala,0)","v":0}]
[null,null,null,null,null,null,null,null,null,null,null,null,null,null,null,null,null,null,null,null,null,null,null,null,null,null,null,null,null,null,272,{"$f":"IFERROR(INDEX(misRayos,IF(MOD(TablaSeriesValores[[#This Row],[360º]],misPuntos)=0,NA(),INT(TablaSeriesValores[[#This Row],[360º]]/misPuntos)+1)),0)","v":1259.19},{"$f":"IF(miFila=INT(TablaSeriesValores[[#This Row],[360º]]/misPuntos)+1,TablaSeriesValores[[#This Row],[Valores]],0)","v":0},{"$f":"IF(MOD(TablaSeriesValores[[#This Row],[360º]],misPuntos)=0,miEscala,0)","v":0}]
[null,null,null,null,null,null,null,null,null,null,null,null,null,null,null,null,null,null,null,null,null,null,null,null,null,null,null,null,null,null,273,{"$f":"IFERROR(INDEX(misRayos,IF(MOD(TablaSeriesValores[[#This Row],[360º]],misPuntos)=0,NA(),INT(TablaSeriesValores[[#This Row],[360º]]/misPuntos)+1)),0)","v":1259.19},{"$f":"IF(miFila=INT(TablaSeriesValores[[#This Row],[360º]]/misPuntos)+1,TablaSeriesValores[[#This Row],[Valores]],0)","v":0},{"$f":"IF(MOD(TablaSeriesValores[[#This Row],[360º]],misPuntos)=0,miEscala,0)","v":0}]
[null,null,null,null,null,null,null,null,null,null,null,null,null,null,null,null,null,null,null,null,null,null,null,null,null,null,null,null,null,null,274,{"$f":"IFERROR(INDEX(misRayos,IF(MOD(TablaSeriesValores[[#This Row],[360º]],misPuntos)=0,NA(),INT(TablaSeriesValores[[#This Row],[360º]]/misPuntos)+1)),0)","v":1259.19},{"$f":"IF(miFila=INT(TablaSeriesValores[[#This Row],[360º]]/misPuntos)+1,TablaSeriesValores[[#This Row],[Valores]],0)","v":0},{"$f":"IF(MOD(TablaSeriesValores[[#This Row],[360º]],misPuntos)=0,miEscala,0)","v":0}]
[null,null,null,null,null,null,null,null,null,null,null,null,null,null,null,null,null,null,null,null,null,null,null,null,null,null,null,null,null,null,275,{"$f":"IFERROR(INDEX(misRayos,IF(MOD(TablaSeriesValores[[#This Row],[360º]],misPuntos)=0,NA(),INT(TablaSeriesValores[[#This Row],[360º]]/misPuntos)+1)),0)","v":1259.19},{"$f":"IF(miFila=INT(TablaSeriesValores[[#This Row],[360º]]/misPuntos)+1,TablaSeriesValores[[#This Row],[Valores]],0)","v":0},{"$f":"IF(MOD(TablaSeriesValores[[#This Row],[360º]],misPuntos)=0,miEscala,0)","v":0}]
[null,null,null,null,null,null,null,null,null,null,null,null,null,null,null,null,null,null,null,null,null,null,null,null,null,null,null,null,null,null,276,{"$f":"IFERROR(INDEX(misRayos,IF(MOD(TablaSeriesValores[[#This Row],[360º]],misPuntos)=0,NA(),INT(TablaSeriesValores[[#This Row],[360º]]/misPuntos)+1)),0)","v":1259.19},{"$f":"IF(miFila=INT(TablaSeriesValores[[#This Row],[360º]]/misPuntos)+1,TablaSeriesValores[[#This Row],[Valores]],0)","v":0},{"$f":"IF(MOD(TablaSeriesValores[[#This Row],[360º]],misPuntos)=0,miEscala,0)","v":0}]
[null,null,null,null,null,null,null,null,null,null,null,null,null,null,null,null,null,null,null,null,null,null,null,null,null,null,null,null,null,null,277,{"$f":"IFERROR(INDEX(misRayos,IF(MOD(TablaSeriesValores[[#This Row],[360º]],misPuntos)=0,NA(),INT(TablaSeriesValores[[#This Row],[360º]]/misPuntos)+1)),0)","v":1259.19},{"$f":"IF(miFila=INT(TablaSeriesValores[[#This Row],[360º]]/misPuntos)+1,TablaSeriesValores[[#This Row],[Valores]],0)","v":0},{"$f":"IF(MOD(TablaSeriesValores[[#This Row],[360º]],misPuntos)=0,miEscala,0)","v":0}]
[null,null,null,null,null,null,null,null,null,null,null,null,null,null,null,null,null,null,null,null,null,null,null,null,null,null,null,null,null,null,278,{"$f":"IFERROR(INDEX(misRayos,IF(MOD(TablaSeriesValores[[#This Row],[360º]],misPuntos)=0,NA(),INT(TablaSeriesValores[[#This Row],[360º]]/misPuntos)+1)),0)","v":1259.19},{"$f":"IF(miFila=INT(TablaSeriesValores[[#This Row],[360º]]/misPuntos)+1,TablaSeriesValores[[#This Row],[Valores]],0)","v":0},{"$f":"IF(MOD(TablaSeriesValores[[#This Row],[360º]],misPuntos)=0,miEscala,0)","v":0}]
[null,null,null,null,null,null,null,null,null,null,null,null,null,null,null,null,null,null,null,null,null,null,null,null,null,null,null,null,null,null,279,{"$f":"IFERROR(INDEX(misRayos,IF(MOD(TablaSeriesValores[[#This Row],[360º]],misPuntos)=0,NA(),INT(TablaSeriesValores[[#This Row],[360º]]/misPuntos)+1)),0)","v":1259.19},{"$f":"IF(miFila=INT(TablaSeriesValores[[#This Row],[360º]]/misPuntos)+1,TablaSeriesValores[[#This Row],[Valores]],0)","v":0},{"$f":"IF(MOD(TablaSeriesValores[[#This Row],[360º]],misPuntos)=0,miEscala,0)","v":0}]
[null,null,null,null,null,null,null,null,null,null,null,null,null,null,null,null,null,null,null,null,null,null,null,null,null,null,null,null,null,null,280,{"$f":"IFERROR(INDEX(misRayos,IF(MOD(TablaSeriesValores[[#This Row],[360º]],misPuntos)=0,NA(),INT(TablaSeriesValores[[#This Row],[360º]]/misPuntos)+1)),0)","v":1259.19},{"$f":"IF(miFila=INT(TablaSeriesValores[[#This Row],[360º]]/misPuntos)+1,TablaSeriesValores[[#This Row],[Valores]],0)","v":0},{"$f":"IF(MOD(TablaSeriesValores[[#This Row],[360º]],misPuntos)=0,miEscala,0)","v":0}]
[null,null,null,null,null,null,null,null,null,null,null,null,null,null,null,null,null,null,null,null,null,null,null,null,null,null,null,null,null,null,281,{"$f":"IFERROR(INDEX(misRayos,IF(MOD(TablaSeriesValores[[#This Row],[360º]],misPuntos)=0,NA(),INT(TablaSeriesValores[[#This Row],[360º]]/misPuntos)+1)),0)","v":1259.19},{"$f":"IF(miFila=INT(TablaSeriesValores[[#This Row],[360º]]/misPuntos)+1,TablaSeriesValores[[#This Row],[Valores]],0)","v":0},{"$f":"IF(MOD(TablaSeriesValores[[#This Row],[360º]],misPuntos)=0,miEscala,0)","v":0}]
[null,null,null,null,null,null,null,null,null,null,null,null,null,null,null,null,null,null,null,null,null,null,null,null,null,null,null,null,null,null,282,{"$f":"IFERROR(INDEX(misRayos,IF(MOD(TablaSeriesValores[[#This Row],[360º]],misPuntos)=0,NA(),INT(TablaSeriesValores[[#This Row],[360º]]/misPuntos)+1)),0)","v":1259.19},{"$f":"IF(miFila=INT(TablaSeriesValores[[#This Row],[360º]]/misPuntos)+1,TablaSeriesValores[[#This Row],[Valores]],0)","v":0},{"$f":"IF(MOD(TablaSeriesValores[[#This Row],[360º]],misPuntos)=0,miEscala,0)","v":0}]
[null,null,null,null,null,null,null,null,null,null,null,null,null,null,null,null,null,null,null,null,null,null,null,null,null,null,null,null,null,null,283,{"$f":"IFERROR(INDEX(misRayos,IF(MOD(TablaSeriesValores[[#This Row],[360º]],misPuntos)=0,NA(),INT(TablaSeriesValores[[#This Row],[360º]]/misPuntos)+1)),0)","v":1259.19},{"$f":"IF(miFila=INT(TablaSeriesValores[[#This Row],[360º]]/misPuntos)+1,TablaSeriesValores[[#This Row],[Valores]],0)","v":0},{"$f":"IF(MOD(TablaSeriesValores[[#This Row],[360º]],misPuntos)=0,miEscala,0)","v":0}]
[null,null,null,null,null,null,null,null,null,null,null,null,null,null,null,null,null,null,null,null,null,null,null,null,null,null,null,null,null,null,284,{"$f":"IFERROR(INDEX(misRayos,IF(MOD(TablaSeriesValores[[#This Row],[360º]],misPuntos)=0,NA(),INT(TablaSeriesValores[[#This Row],[360º]]/misPuntos)+1)),0)","v":1259.19},{"$f":"IF(miFila=INT(TablaSeriesValores[[#This Row],[360º]]/misPuntos)+1,TablaSeriesValores[[#This Row],[Valores]],0)","v":0},{"$f":"IF(MOD(TablaSeriesValores[[#This Row],[360º]],misPuntos)=0,miEscala,0)","v":0}]
[null,null,null,null,null,null,null,null,null,null,null,null,null,null,null,null,null,null,null,null,null,null,null,null,null,null,null,null,null,null,285,{"$f":"IFERROR(INDEX(misRayos,IF(MOD(TablaSeriesValores[[#This Row],[360º]],misPuntos)=0,NA(),INT(TablaSeriesValores[[#This Row],[360º]]/misPuntos)+1)),0)","v":1259.19},{"$f":"IF(miFila=INT(TablaSeriesValores[[#This Row],[360º]]/misPuntos)+1,TablaSeriesValores[[#This Row],[Valores]],0)","v":0},{"$f":"IF(MOD(TablaSeriesValores[[#This Row],[360º]],misPuntos)=0,miEscala,0)","v":0}]
[null,null,null,null,null,null,null,null,null,null,null,null,null,null,null,null,null,null,null,null,null,null,null,null,null,null,null,null,null,null,286,{"$f":"IFERROR(INDEX(misRayos,IF(MOD(TablaSeriesValores[[#This Row],[360º]],misPuntos)=0,NA(),INT(TablaSeriesValores[[#This Row],[360º]]/misPuntos)+1)),0)","v":1259.19},{"$f":"IF(miFila=INT(TablaSeriesValores[[#This Row],[360º]]/misPuntos)+1,TablaSeriesValores[[#This Row],[Valores]],0)","v":0},{"$f":"IF(MOD(TablaSeriesValores[[#This Row],[360º]],misPuntos)=0,miEscala,0)","v":0}]
[null,null,null,null,null,null,null,null,null,null,null,null,null,null,null,null,null,null,null,null,null,null,null,null,null,null,null,null,null,null,287,{"$f":"IFERROR(INDEX(misRayos,IF(MOD(TablaSeriesValores[[#This Row],[360º]],misPuntos)=0,NA(),INT(TablaSeriesValores[[#This Row],[360º]]/misPuntos)+1)),0)","v":1259.19},{"$f":"IF(miFila=INT(TablaSeriesValores[[#This Row],[360º]]/misPuntos)+1,TablaSeriesValores[[#This Row],[Valores]],0)","v":0},{"$f":"IF(MOD(TablaSeriesValores[[#This Row],[360º]],misPuntos)=0,miEscala,0)","v":0}]
[null,null,null,null,null,null,null,null,null,null,null,null,null,null,null,null,null,null,null,null,null,null,null,null,null,null,null,null,null,null,288,{"$f":"IFERROR(INDEX(misRayos,IF(MOD(TablaSeriesValores[[#This Row],[360º]],misPuntos)=0,NA(),INT(TablaSeriesValores[[#This Row],[360º]]/misPuntos)+1)),0)","v":1259.19},{"$f":"IF(miFila=INT(TablaSeriesValores[[#This Row],[360º]]/misPuntos)+1,TablaSeriesValores[[#This Row],[Valores]],0)","v":0},{"$f":"IF(MOD(TablaSeriesValores[[#This Row],[360º]],misPuntos)=0,miEscala,0)","v":0}]
[null,null,null,null,null,null,null,null,null,null,null,null,null,null,null,null,null,null,null,null,null,null,null,null,null,null,null,null,null,null,289,{"$f":"IFERROR(INDEX(misRayos,IF(MOD(TablaSeriesValores[[#This Row],[360º]],misPuntos)=0,NA(),INT(TablaSeriesValores[[#This Row],[360º]]/misPuntos)+1)),0)","v":1259.19},{"$f":"IF(miFila=INT(TablaSeriesValores[[#This Row],[360º]]/misPuntos)+1,TablaSeriesValores[[#This Row],[Valores]],0)","v":0},{"$f":"IF(MOD(TablaSeriesValores[[#This Row],[360º]],misPuntos)=0,miEscala,0)","v":0}]
[null,null,null,null,null,null,null,null,null,null,null,null,null,null,null,null,null,null,null,null,null,null,null,null,null,null,null,null,null,null,290,{"$f":"IFERROR(INDEX(misRayos,IF(MOD(TablaSeriesValores[[#This Row],[360º]],misPuntos)=0,NA(),INT(TablaSeriesValores[[#This Row],[360º]]/misPuntos)+1)),0)","v":1259.19},{"$f":"IF(miFila=INT(TablaSeriesValores[[#This Row],[360º]]/misPuntos)+1,TablaSeriesValores[[#This Row],[Valores]],0)","v":0},{"$f":"IF(MOD(TablaSeriesValores[[#This Row],[360º]],misPuntos)=0,miEscala,0)","v":0}]
[null,null,null,null,null,null,null,null,null,null,null,null,null,null,null,null,null,null,null,null,null,null,null,null,null,null,null,null,null,null,291,{"$f":"IFERROR(INDEX(misRayos,IF(MOD(TablaSeriesValores[[#This Row],[360º]],misPuntos)=0,NA(),INT(TablaSeriesValores[[#This Row],[360º]]/misPuntos)+1)),0)","v":1259.19},{"$f":"IF(miFila=INT(TablaSeriesValores[[#This Row],[360º]]/misPuntos)+1,TablaSeriesValores[[#This Row],[Valores]],0)","v":0},{"$f":"IF(MOD(TablaSeriesValores[[#This Row],[360º]],misPuntos)=0,miEscala,0)","v":0}]
[null,null,null,null,null,null,null,null,null,null,null,null,null,null,null,null,null,null,null,null,null,null,null,null,null,null,null,null,null,null,292,{"$f":"IFERROR(INDEX(misRayos,IF(MOD(TablaSeriesValores[[#This Row],[360º]],misPuntos)=0,NA(),INT(TablaSeriesValores[[#This Row],[360º]]/misPuntos)+1)),0)","v":1259.19},{"$f":"IF(miFila=INT(TablaSeriesValores[[#This Row],[360º]]/misPuntos)+1,TablaSeriesValores[[#This Row],[Valores]],0)","v":0},{"$f":"IF(MOD(TablaSeriesValores[[#This Row],[360º]],misPuntos)=0,miEscala,0)","v":0}]
[null,null,null,null,null,null,null,null,null,null,null,null,null,null,null,null,null,null,null,null,null,null,null,null,null,null,null,null,null,null,293,{"$f":"IFERROR(INDEX(misRayos,IF(MOD(TablaSeriesValores[[#This Row],[360º]],misPuntos)=0,NA(),INT(TablaSeriesValores[[#This Row],[360º]]/misPuntos)+1)),0)","v":1259.19},{"$f":"IF(miFila=INT(TablaSeriesValores[[#This Row],[360º]]/misPuntos)+1,TablaSeriesValores[[#This Row],[Valores]],0)","v":0},{"$f":"IF(MOD(TablaSeriesValores[[#This Row],[360º]],misPuntos)=0,miEscala,0)","v":0}]
[null,null,null,null,null,null,null,null,null,null,null,null,null,null,null,null,null,null,null,null,null,null,null,null,null,null,null,null,null,null,294,{"$f":"IFERROR(INDEX(misRayos,IF(MOD(TablaSeriesValores[[#This Row],[360º]],misPuntos)=0,NA(),INT(TablaSeriesValores[[#This Row],[360º]]/misPuntos)+1)),0)","v":1259.19},{"$f":"IF(miFila=INT(TablaSeriesValores[[#This Row],[360º]]/misPuntos)+1,TablaSeriesValores[[#This Row],[Valores]],0)","v":0},{"$f":"IF(MOD(TablaSeriesValores[[#This Row],[360º]],misPuntos)=0,miEscala,0)","v":0}]
[null,null,null,null,null,null,null,null,null,null,null,null,null,null,null,null,null,null,null,null,null,null,null,null,null,null,null,null,null,null,295,{"$f":"IFERROR(INDEX(misRayos,IF(MOD(TablaSeriesValores[[#This Row],[360º]],misPuntos)=0,NA(),INT(TablaSeriesValores[[#This Row],[360º]]/misPuntos)+1)),0)","v":1259.19},{"$f":"IF(miFila=INT(TablaSeriesValores[[#This Row],[360º]]/misPuntos)+1,TablaSeriesValores[[#This Row],[Valores]],0)","v":0},{"$f":"IF(MOD(TablaSeriesValores[[#This Row],[360º]],misPuntos)=0,miEscala,0)","v":0}]
[null,null,null,null,null,null,null,null,null,null,null,null,null,null,null,null,null,null,null,null,null,null,null,null,null,null,null,null,null,null,296,{"$f":"IFERROR(INDEX(misRayos,IF(MOD(TablaSeriesValores[[#This Row],[360º]],misPuntos)=0,NA(),INT(TablaSeriesValores[[#This Row],[360º]]/misPuntos)+1)),0)","v":1259.19},{"$f":"IF(miFila=INT(TablaSeriesValores[[#This Row],[360º]]/misPuntos)+1,TablaSeriesValores[[#This Row],[Valores]],0)","v":0},{"$f":"IF(MOD(TablaSeriesValores[[#This Row],[360º]],misPuntos)=0,miEscala,0)","v":0}]
[null,null,null,null,null,null,null,null,null,null,null,null,null,null,null,null,null,null,null,null,null,null,null,null,null,null,null,null,null,null,297,{"$f":"IFERROR(INDEX(misRayos,IF(MOD(TablaSeriesValores[[#This Row],[360º]],misPuntos)=0,NA(),INT(TablaSeriesValores[[#This Row],[360º]]/misPuntos)+1)),0)","v":1259.19},{"$f":"IF(miFila=INT(TablaSeriesValores[[#This Row],[360º]]/misPuntos)+1,TablaSeriesValores[[#This Row],[Valores]],0)","v":0},{"$f":"IF(MOD(TablaSeriesValores[[#This Row],[360º]],misPuntos)=0,miEscala,0)","v":0}]
[null,null,null,null,null,null,null,null,null,null,null,null,null,null,null,null,null,null,null,null,null,null,null,null,null,null,null,null,null,null,298,{"$f":"IFERROR(INDEX(misRayos,IF(MOD(TablaSeriesValores[[#This Row],[360º]],misPuntos)=0,NA(),INT(TablaSeriesValores[[#This Row],[360º]]/misPuntos)+1)),0)","v":1259.19},{"$f":"IF(miFila=INT(TablaSeriesValores[[#This Row],[360º]]/misPuntos)+1,TablaSeriesValores[[#This Row],[Valores]],0)","v":0},{"$f":"IF(MOD(TablaSeriesValores[[#This Row],[360º]],misPuntos)=0,miEscala,0)","v":0}]
[null,null,null,null,null,null,null,null,null,null,null,null,null,null,null,null,null,null,null,null,null,null,null,null,null,null,null,null,null,null,299,{"$f":"IFERROR(INDEX(misRayos,IF(MOD(TablaSeriesValores[[#This Row],[360º]],misPuntos)=0,NA(),INT(TablaSeriesValores[[#This Row],[360º]]/misPuntos)+1)),0)","v":1259.19},{"$f":"IF(miFila=INT(TablaSeriesValores[[#This Row],[360º]]/misPuntos)+1,TablaSeriesValores[[#This Row],[Valores]],0)","v":0},{"$f":"IF(MOD(TablaSeriesValores[[#This Row],[360º]],misPuntos)=0,miEscala,0)","v":0}]
[null,null,null,null,null,null,null,null,null,null,null,null,null,null,null,null,null,null,null,null,null,null,null,null,null,null,null,null,null,null,300,{"$f":"IFERROR(INDEX(misRayos,IF(MOD(TablaSeriesValores[[#This Row],[360º]],misPuntos)=0,NA(),INT(TablaSeriesValores[[#This Row],[360º]]/misPuntos)+1)),0)","v":0},{"$f":"IF(miFila=INT(TablaSeriesValores[[#This Row],[360º]]/misPuntos)+1,TablaSeriesValores[[#This Row],[Valores]],0)","v":0},{"$f":"IF(MOD(TablaSeriesValores[[#This Row],[360º]],misPuntos)=0,miEscala,0)","v":2419}]
[null,null,null,null,null,null,null,null,null,null,null,null,null,null,null,null,null,null,null,null,null,null,null,null,null,null,null,null,null,null,301,{"$f":"IFERROR(INDEX(misRayos,IF(MOD(TablaSeriesValores[[#This Row],[360º]],misPuntos)=0,NA(),INT(TablaSeriesValores[[#This Row],[360º]]/misPuntos)+1)),0)","v":1145.73},{"$f":"IF(miFila=INT(TablaSeriesValores[[#This Row],[360º]]/misPuntos)+1,TablaSeriesValores[[#This Row],[Valores]],0)","v":0},{"$f":"IF(MOD(TablaSeriesValores[[#This Row],[360º]],misPuntos)=0,miEscala,0)","v":0}]
[null,null,null,null,null,null,null,null,null,null,null,null,null,null,null,null,null,null,null,null,null,null,null,null,null,null,null,null,null,null,302,{"$f":"IFERROR(INDEX(misRayos,IF(MOD(TablaSeriesValores[[#This Row],[360º]],misPuntos)=0,NA(),INT(TablaSeriesValores[[#This Row],[360º]]/misPuntos)+1)),0)","v":1145.73},{"$f":"IF(miFila=INT(TablaSeriesValores[[#This Row],[360º]]/misPuntos)+1,TablaSeriesValores[[#This Row],[Valores]],0)","v":0},{"$f":"IF(MOD(TablaSeriesValores[[#This Row],[360º]],misPuntos)=0,miEscala,0)","v":0}]
[null,null,null,null,null,null,null,null,null,null,null,null,null,null,null,null,null,null,null,null,null,null,null,null,null,null,null,null,null,null,303,{"$f":"IFERROR(INDEX(misRayos,IF(MOD(TablaSeriesValores[[#This Row],[360º]],misPuntos)=0,NA(),INT(TablaSeriesValores[[#This Row],[360º]]/misPuntos)+1)),0)","v":1145.73},{"$f":"IF(miFila=INT(TablaSeriesValores[[#This Row],[360º]]/misPuntos)+1,TablaSeriesValores[[#This Row],[Valores]],0)","v":0},{"$f":"IF(MOD(TablaSeriesValores[[#This Row],[360º]],misPuntos)=0,miEscala,0)","v":0}]
[null,null,null,null,null,null,null,null,null,null,null,null,null,null,null,null,null,null,null,null,null,null,null,null,null,null,null,null,null,null,304,{"$f":"IFERROR(INDEX(misRayos,IF(MOD(TablaSeriesValores[[#This Row],[360º]],misPuntos)=0,NA(),INT(TablaSeriesValores[[#This Row],[360º]]/misPuntos)+1)),0)","v":1145.73},{"$f":"IF(miFila=INT(TablaSeriesValores[[#This Row],[360º]]/misPuntos)+1,TablaSeriesValores[[#This Row],[Valores]],0)","v":0},{"$f":"IF(MOD(TablaSeriesValores[[#This Row],[360º]],misPuntos)=0,miEscala,0)","v":0}]
[null,null,null,null,null,null,null,null,null,null,null,null,null,null,null,null,null,null,null,null,null,null,null,null,null,null,null,null,null,null,305,{"$f":"IFERROR(INDEX(misRayos,IF(MOD(TablaSeriesValores[[#This Row],[360º]],misPuntos)=0,NA(),INT(TablaSeriesValores[[#This Row],[360º]]/misPuntos)+1)),0)","v":1145.73},{"$f":"IF(miFila=INT(TablaSeriesValores[[#This Row],[360º]]/misPuntos)+1,TablaSeriesValores[[#This Row],[Valores]],0)","v":0},{"$f":"IF(MOD(TablaSeriesValores[[#This Row],[360º]],misPuntos)=0,miEscala,0)","v":0}]
[null,null,null,null,null,null,null,null,null,null,null,null,null,null,null,null,null,null,null,null,null,null,null,null,null,null,null,null,null,null,306,{"$f":"IFERROR(INDEX(misRayos,IF(MOD(TablaSeriesValores[[#This Row],[360º]],misPuntos)=0,NA(),INT(TablaSeriesValores[[#This Row],[360º]]/misPuntos)+1)),0)","v":1145.73},{"$f":"IF(miFila=INT(TablaSeriesValores[[#This Row],[360º]]/misPuntos)+1,TablaSeriesValores[[#This Row],[Valores]],0)","v":0},{"$f":"IF(MOD(TablaSeriesValores[[#This Row],[360º]],misPuntos)=0,miEscala,0)","v":0}]
[null,null,null,null,null,null,null,null,null,null,null,null,null,null,null,null,null,null,null,null,null,null,null,null,null,null,null,null,null,null,307,{"$f":"IFERROR(INDEX(misRayos,IF(MOD(TablaSeriesValores[[#This Row],[360º]],misPuntos)=0,NA(),INT(TablaSeriesValores[[#This Row],[360º]]/misPuntos)+1)),0)","v":1145.73},{"$f":"IF(miFila=INT(TablaSeriesValores[[#This Row],[360º]]/misPuntos)+1,TablaSeriesValores[[#This Row],[Valores]],0)","v":0},{"$f":"IF(MOD(TablaSeriesValores[[#This Row],[360º]],misPuntos)=0,miEscala,0)","v":0}]
[null,null,null,null,null,null,null,null,null,null,null,null,null,null,null,null,null,null,null,null,null,null,null,null,null,null,null,null,null,null,308,{"$f":"IFERROR(INDEX(misRayos,IF(MOD(TablaSeriesValores[[#This Row],[360º]],misPuntos)=0,NA(),INT(TablaSeriesValores[[#This Row],[360º]]/misPuntos)+1)),0)","v":1145.73},{"$f":"IF(miFila=INT(TablaSeriesValores[[#This Row],[360º]]/misPuntos)+1,TablaSeriesValores[[#This Row],[Valores]],0)","v":0},{"$f":"IF(MOD(TablaSeriesValores[[#This Row],[360º]],misPuntos)=0,miEscala,0)","v":0}]
[null,null,null,null,null,null,null,null,null,null,null,null,null,null,null,null,null,null,null,null,null,null,null,null,null,null,null,null,null,null,309,{"$f":"IFERROR(INDEX(misRayos,IF(MOD(TablaSeriesValores[[#This Row],[360º]],misPuntos)=0,NA(),INT(TablaSeriesValores[[#This Row],[360º]]/misPuntos)+1)),0)","v":1145.73},{"$f":"IF(miFila=INT(TablaSeriesValores[[#This Row],[360º]]/misPuntos)+1,TablaSeriesValores[[#This Row],[Valores]],0)","v":0},{"$f":"IF(MOD(TablaSeriesValores[[#This Row],[360º]],misPuntos)=0,miEscala,0)","v":0}]
[null,null,null,null,null,null,null,null,null,null,null,null,null,null,null,null,null,null,null,null,null,null,null,null,null,null,null,null,null,null,310,{"$f":"IFERROR(INDEX(misRayos,IF(MOD(TablaSeriesValores[[#This Row],[360º]],misPuntos)=0,NA(),INT(TablaSeriesValores[[#This Row],[360º]]/misPuntos)+1)),0)","v":1145.73},{"$f":"IF(miFila=INT(TablaSeriesValores[[#This Row],[360º]]/misPuntos)+1,TablaSeriesValores[[#This Row],[Valores]],0)","v":0},{"$f":"IF(MOD(TablaSeriesValores[[#This Row],[360º]],misPuntos)=0,miEscala,0)","v":0}]
[null,null,null,null,null,null,null,null,null,null,null,null,null,null,null,null,null,null,null,null,null,null,null,null,null,null,null,null,null,null,311,{"$f":"IFERROR(INDEX(misRayos,IF(MOD(TablaSeriesValores[[#This Row],[360º]],misPuntos)=0,NA(),INT(TablaSeriesValores[[#This Row],[360º]]/misPuntos)+1)),0)","v":1145.73},{"$f":"IF(miFila=INT(TablaSeriesValores[[#This Row],[360º]]/misPuntos)+1,TablaSeriesValores[[#This Row],[Valores]],0)","v":0},{"$f":"IF(MOD(TablaSeriesValores[[#This Row],[360º]],misPuntos)=0,miEscala,0)","v":0}]
[null,null,null,null,null,null,null,null,null,null,null,null,null,null,null,null,null,null,null,null,null,null,null,null,null,null,null,null,null,null,312,{"$f":"IFERROR(INDEX(misRayos,IF(MOD(TablaSeriesValores[[#This Row],[360º]],misPuntos)=0,NA(),INT(TablaSeriesValores[[#This Row],[360º]]/misPuntos)+1)),0)","v":1145.73},{"$f":"IF(miFila=INT(TablaSeriesValores[[#This Row],[360º]]/misPuntos)+1,TablaSeriesValores[[#This Row],[Valores]],0)","v":0},{"$f":"IF(MOD(TablaSeriesValores[[#This Row],[360º]],misPuntos)=0,miEscala,0)","v":0}]
[null,null,null,null,null,null,null,null,null,null,null,null,null,null,null,null,null,null,null,null,null,null,null,null,null,null,null,null,null,null,313,{"$f":"IFERROR(INDEX(misRayos,IF(MOD(TablaSeriesValores[[#This Row],[360º]],misPuntos)=0,NA(),INT(TablaSeriesValores[[#This Row],[360º]]/misPuntos)+1)),0)","v":1145.73},{"$f":"IF(miFila=INT(TablaSeriesValores[[#This Row],[360º]]/misPuntos)+1,TablaSeriesValores[[#This Row],[Valores]],0)","v":0},{"$f":"IF(MOD(TablaSeriesValores[[#This Row],[360º]],misPuntos)=0,miEscala,0)","v":0}]
[null,null,null,null,null,null,null,null,null,null,null,null,null,null,null,null,null,null,null,null,null,null,null,null,null,null,null,null,null,null,314,{"$f":"IFERROR(INDEX(misRayos,IF(MOD(TablaSeriesValores[[#This Row],[360º]],misPuntos)=0,NA(),INT(TablaSeriesValores[[#This Row],[360º]]/misPuntos)+1)),0)","v":1145.73},{"$f":"IF(miFila=INT(TablaSeriesValores[[#This Row],[360º]]/misPuntos)+1,TablaSeriesValores[[#This Row],[Valores]],0)","v":0},{"$f":"IF(MOD(TablaSeriesValores[[#This Row],[360º]],misPuntos)=0,miEscala,0)","v":0}]
[null,null,null,null,null,null,null,null,null,null,null,null,null,null,null,null,null,null,null,null,null,null,null,null,null,null,null,null,null,null,315,{"$f":"IFERROR(INDEX(misRayos,IF(MOD(TablaSeriesValores[[#This Row],[360º]],misPuntos)=0,NA(),INT(TablaSeriesValores[[#This Row],[360º]]/misPuntos)+1)),0)","v":1145.73},{"$f":"IF(miFila=INT(TablaSeriesValores[[#This Row],[360º]]/misPuntos)+1,TablaSeriesValores[[#This Row],[Valores]],0)","v":0},{"$f":"IF(MOD(TablaSeriesValores[[#This Row],[360º]],misPuntos)=0,miEscala,0)","v":0}]
[null,null,null,null,null,null,null,null,null,null,null,null,null,null,null,null,null,null,null,null,null,null,null,null,null,null,null,null,null,null,316,{"$f":"IFERROR(INDEX(misRayos,IF(MOD(TablaSeriesValores[[#This Row],[360º]],misPuntos)=0,NA(),INT(TablaSeriesValores[[#This Row],[360º]]/misPuntos)+1)),0)","v":1145.73},{"$f":"IF(miFila=INT(TablaSeriesValores[[#This Row],[360º]]/misPuntos)+1,TablaSeriesValores[[#This Row],[Valores]],0)","v":0},{"$f":"IF(MOD(TablaSeriesValores[[#This Row],[360º]],misPuntos)=0,miEscala,0)","v":0}]
[null,null,null,null,null,null,null,null,null,null,null,null,null,null,null,null,null,null,null,null,null,null,null,null,null,null,null,null,null,null,317,{"$f":"IFERROR(INDEX(misRayos,IF(MOD(TablaSeriesValores[[#This Row],[360º]],misPuntos)=0,NA(),INT(TablaSeriesValores[[#This Row],[360º]]/misPuntos)+1)),0)","v":1145.73},{"$f":"IF(miFila=INT(TablaSeriesValores[[#This Row],[360º]]/misPuntos)+1,TablaSeriesValores[[#This Row],[Valores]],0)","v":0},{"$f":"IF(MOD(TablaSeriesValores[[#This Row],[360º]],misPuntos)=0,miEscala,0)","v":0}]
[null,null,null,null,null,null,null,null,null,null,null,null,null,null,null,null,null,null,null,null,null,null,null,null,null,null,null,null,null,null,318,{"$f":"IFERROR(INDEX(misRayos,IF(MOD(TablaSeriesValores[[#This Row],[360º]],misPuntos)=0,NA(),INT(TablaSeriesValores[[#This Row],[360º]]/misPuntos)+1)),0)","v":1145.73},{"$f":"IF(miFila=INT(TablaSeriesValores[[#This Row],[360º]]/misPuntos)+1,TablaSeriesValores[[#This Row],[Valores]],0)","v":0},{"$f":"IF(MOD(TablaSeriesValores[[#This Row],[360º]],misPuntos)=0,miEscala,0)","v":0}]
[null,null,null,null,null,null,null,null,null,null,null,null,null,null,null,null,null,null,null,null,null,null,null,null,null,null,null,null,null,null,319,{"$f":"IFERROR(INDEX(misRayos,IF(MOD(TablaSeriesValores[[#This Row],[360º]],misPuntos)=0,NA(),INT(TablaSeriesValores[[#This Row],[360º]]/misPuntos)+1)),0)","v":1145.73},{"$f":"IF(miFila=INT(TablaSeriesValores[[#This Row],[360º]]/misPuntos)+1,TablaSeriesValores[[#This Row],[Valores]],0)","v":0},{"$f":"IF(MOD(TablaSeriesValores[[#This Row],[360º]],misPuntos)=0,miEscala,0)","v":0}]
[null,null,null,null,null,null,null,null,null,null,null,null,null,null,null,null,null,null,null,null,null,null,null,null,null,null,null,null,null,null,{"$f":"ROW(AE321)-ROW($AE$1)","v":320},{"$f":"IFERROR(INDEX(misRayos,IF(MOD(TablaSeriesValores[[#This Row],[360º]],misPuntos)=0,NA(),INT(TablaSeriesValores[[#This Row],[360º]]/misPuntos)+1)),0)","v":1145.73},{"$f":"IF(miFila=INT(TablaSeriesValores[[#This Row],[360º]]/misPuntos)+1,TablaSeriesValores[[#This Row],[Valores]],0)","v":0},{"$f":"IF(MOD(TablaSeriesValores[[#This Row],[360º]],misPuntos)=0,miEscala,0)","v":0}]
[null,null,null,null,null,null,null,null,null,null,null,null,null,null,null,null,null,null,null,null,null,null,null,null,null,null,null,null,null,null,321,{"$f":"IFERROR(INDEX(misRayos,IF(MOD(TablaSeriesValores[[#This Row],[360º]],misPuntos)=0,NA(),INT(TablaSeriesValores[[#This Row],[360º]]/misPuntos)+1)),0)","v":1145.73},{"$f":"IF(miFila=INT(TablaSeriesValores[[#This Row],[360º]]/misPuntos)+1,TablaSeriesValores[[#This Row],[Valores]],0)","v":0},{"$f":"IF(MOD(TablaSeriesValores[[#This Row],[360º]],misPuntos)=0,miEscala,0)","v":0}]
[null,null,null,null,null,null,null,null,null,null,null,null,null,null,null,null,null,null,null,null,null,null,null,null,null,null,null,null,null,null,322,{"$f":"IFERROR(INDEX(misRayos,IF(MOD(TablaSeriesValores[[#This Row],[360º]],misPuntos)=0,NA(),INT(TablaSeriesValores[[#This Row],[360º]]/misPuntos)+1)),0)","v":1145.73},{"$f":"IF(miFila=INT(TablaSeriesValores[[#This Row],[360º]]/misPuntos)+1,TablaSeriesValores[[#This Row],[Valores]],0)","v":0},{"$f":"IF(MOD(TablaSeriesValores[[#This Row],[360º]],misPuntos)=0,miEscala,0)","v":0}]
[null,null,null,null,null,null,null,null,null,null,null,null,null,null,null,null,null,null,null,null,null,null,null,null,null,null,null,null,null,null,323,{"$f":"IFERROR(INDEX(misRayos,IF(MOD(TablaSeriesValores[[#This Row],[360º]],misPuntos)=0,NA(),INT(TablaSeriesValores[[#This Row],[360º]]/misPuntos)+1)),0)","v":1145.73},{"$f":"IF(miFila=INT(TablaSeriesValores[[#This Row],[360º]]/misPuntos)+1,TablaSeriesValores[[#This Row],[Valores]],0)","v":0},{"$f":"IF(MOD(TablaSeriesValores[[#This Row],[360º]],misPuntos)=0,miEscala,0)","v":0}]
[null,null,null,null,null,null,null,null,null,null,null,null,null,null,null,null,null,null,null,null,null,null,null,null,null,null,null,null,null,null,324,{"$f":"IFERROR(INDEX(misRayos,IF(MOD(TablaSeriesValores[[#This Row],[360º]],misPuntos)=0,NA(),INT(TablaSeriesValores[[#This Row],[360º]]/misPuntos)+1)),0)","v":1145.73},{"$f":"IF(miFila=INT(TablaSeriesValores[[#This Row],[360º]]/misPuntos)+1,TablaSeriesValores[[#This Row],[Valores]],0)","v":0},{"$f":"IF(MOD(TablaSeriesValores[[#This Row],[360º]],misPuntos)=0,miEscala,0)","v":0}]
[null,null,null,null,null,null,null,null,null,null,null,null,null,null,null,null,null,null,null,null,null,null,null,null,null,null,null,null,null,null,325,{"$f":"IFERROR(INDEX(misRayos,IF(MOD(TablaSeriesValores[[#This Row],[360º]],misPuntos)=0,NA(),INT(TablaSeriesValores[[#This Row],[360º]]/misPuntos)+1)),0)","v":1145.73},{"$f":"IF(miFila=INT(TablaSeriesValores[[#This Row],[360º]]/misPuntos)+1,TablaSeriesValores[[#This Row],[Valores]],0)","v":0},{"$f":"IF(MOD(TablaSeriesValores[[#This Row],[360º]],misPuntos)=0,miEscala,0)","v":0}]
[null,null,null,null,null,null,null,null,null,null,null,null,null,null,null,null,null,null,null,null,null,null,null,null,null,null,null,null,null,null,326,{"$f":"IFERROR(INDEX(misRayos,IF(MOD(TablaSeriesValores[[#This Row],[360º]],misPuntos)=0,NA(),INT(TablaSeriesValores[[#This Row],[360º]]/misPuntos)+1)),0)","v":1145.73},{"$f":"IF(miFila=INT(TablaSeriesValores[[#This Row],[360º]]/misPuntos)+1,TablaSeriesValores[[#This Row],[Valores]],0)","v":0},{"$f":"IF(MOD(TablaSeriesValores[[#This Row],[360º]],misPuntos)=0,miEscala,0)","v":0}]
[null,null,null,null,null,null,null,null,null,null,null,null,null,null,null,null,null,null,null,null,null,null,null,null,null,null,null,null,null,null,327,{"$f":"IFERROR(INDEX(misRayos,IF(MOD(TablaSeriesValores[[#This Row],[360º]],misPuntos)=0,NA(),INT(TablaSeriesValores[[#This Row],[360º]]/misPuntos)+1)),0)","v":1145.73},{"$f":"IF(miFila=INT(TablaSeriesValores[[#This Row],[360º]]/misPuntos)+1,TablaSeriesValores[[#This Row],[Valores]],0)","v":0},{"$f":"IF(MOD(TablaSeriesValores[[#This Row],[360º]],misPuntos)=0,miEscala,0)","v":0}]
[null,null,null,null,null,null,null,null,null,null,null,null,null,null,null,null,null,null,null,null,null,null,null,null,null,null,null,null,null,null,328,{"$f":"IFERROR(INDEX(misRayos,IF(MOD(TablaSeriesValores[[#This Row],[360º]],misPuntos)=0,NA(),INT(TablaSeriesValores[[#This Row],[360º]]/misPuntos)+1)),0)","v":1145.73},{"$f":"IF(miFila=INT(TablaSeriesValores[[#This Row],[360º]]/misPuntos)+1,TablaSeriesValores[[#This Row],[Valores]],0)","v":0},{"$f":"IF(MOD(TablaSeriesValores[[#This Row],[360º]],misPuntos)=0,miEscala,0)","v":0}]
[null,null,null,null,null,null,null,null,null,null,null,null,null,null,null,null,null,null,null,null,null,null,null,null,null,null,null,null,null,null,329,{"$f":"IFERROR(INDEX(misRayos,IF(MOD(TablaSeriesValores[[#This Row],[360º]],misPuntos)=0,NA(),INT(TablaSeriesValores[[#This Row],[360º]]/misPuntos)+1)),0)","v":1145.73},{"$f":"IF(miFila=INT(TablaSeriesValores[[#This Row],[360º]]/misPuntos)+1,TablaSeriesValores[[#This Row],[Valores]],0)","v":0},{"$f":"IF(MOD(TablaSeriesValores[[#This Row],[360º]],misPuntos)=0,miEscala,0)","v":0}]
[null,null,null,null,null,null,null,null,null,null,null,null,null,null,null,null,null,null,null,null,null,null,null,null,null,null,null,null,null,null,330,{"$f":"IFERROR(INDEX(misRayos,IF(MOD(TablaSeriesValores[[#This Row],[360º]],misPuntos)=0,NA(),INT(TablaSeriesValores[[#This Row],[360º]]/misPuntos)+1)),0)","v":0},{"$f":"IF(miFila=INT(TablaSeriesValores[[#This Row],[360º]]/misPuntos)+1,TablaSeriesValores[[#This Row],[Valores]],0)","v":0},{"$f":"IF(MOD(TablaSeriesValores[[#This Row],[360º]],misPuntos)=0,miEscala,0)","v":2419}]
[null,null,null,null,null,null,null,null,null,null,null,null,null,null,null,null,null,null,null,null,null,null,null,null,null,null,null,null,null,null,331,{"$f":"IFERROR(INDEX(misRayos,IF(MOD(TablaSeriesValores[[#This Row],[360º]],misPuntos)=0,NA(),INT(TablaSeriesValores[[#This Row],[360º]]/misPuntos)+1)),0)","v":1404.21},{"$f":"IF(miFila=INT(TablaSeriesValores[[#This Row],[360º]]/misPuntos)+1,TablaSeriesValores[[#This Row],[Valores]],0)","v":0},{"$f":"IF(MOD(TablaSeriesValores[[#This Row],[360º]],misPuntos)=0,miEscala,0)","v":0}]
[null,null,null,null,null,null,null,null,null,null,null,null,null,null,null,null,null,null,null,null,null,null,null,null,null,null,null,null,null,null,332,{"$f":"IFERROR(INDEX(misRayos,IF(MOD(TablaSeriesValores[[#This Row],[360º]],misPuntos)=0,NA(),INT(TablaSeriesValores[[#This Row],[360º]]/misPuntos)+1)),0)","v":1404.21},{"$f":"IF(miFila=INT(TablaSeriesValores[[#This Row],[360º]]/misPuntos)+1,TablaSeriesValores[[#This Row],[Valores]],0)","v":0},{"$f":"IF(MOD(TablaSeriesValores[[#This Row],[360º]],misPuntos)=0,miEscala,0)","v":0}]
[null,null,null,null,null,null,null,null,null,null,null,null,null,null,null,null,null,null,null,null,null,null,null,null,null,null,null,null,null,null,333,{"$f":"IFERROR(INDEX(misRayos,IF(MOD(TablaSeriesValores[[#This Row],[360º]],misPuntos)=0,NA(),INT(TablaSeriesValores[[#This Row],[360º]]/misPuntos)+1)),0)","v":1404.21},{"$f":"IF(miFila=INT(TablaSeriesValores[[#This Row],[360º]]/misPuntos)+1,TablaSeriesValores[[#This Row],[Valores]],0)","v":0},{"$f":"IF(MOD(TablaSeriesValores[[#This Row],[360º]],misPuntos)=0,miEscala,0)","v":0}]
[null,null,null,null,null,null,null,null,null,null,null,null,null,null,null,null,null,null,null,null,null,null,null,null,null,null,null,null,null,null,334,{"$f":"IFERROR(INDEX(misRayos,IF(MOD(TablaSeriesValores[[#This Row],[360º]],misPuntos)=0,NA(),INT(TablaSeriesValores[[#This Row],[360º]]/misPuntos)+1)),0)","v":1404.21},{"$f":"IF(miFila=INT(TablaSeriesValores[[#This Row],[360º]]/misPuntos)+1,TablaSeriesValores[[#This Row],[Valores]],0)","v":0},{"$f":"IF(MOD(TablaSeriesValores[[#This Row],[360º]],misPuntos)=0,miEscala,0)","v":0}]
[null,null,null,null,null,null,null,null,null,null,null,null,null,null,null,null,null,null,null,null,null,null,null,null,null,null,null,null,null,null,335,{"$f":"IFERROR(INDEX(misRayos,IF(MOD(TablaSeriesValores[[#This Row],[360º]],misPuntos)=0,NA(),INT(TablaSeriesValores[[#This Row],[360º]]/misPuntos)+1)),0)","v":1404.21},{"$f":"IF(miFila=INT(TablaSeriesValores[[#This Row],[360º]]/misPuntos)+1,TablaSeriesValores[[#This Row],[Valores]],0)","v":0},{"$f":"IF(MOD(TablaSeriesValores[[#This Row],[360º]],misPuntos)=0,miEscala,0)","v":0}]
[null,null,null,null,null,null,null,null,null,null,null,null,null,null,null,null,null,null,null,null,null,null,null,null,null,null,null,null,null,null,336,{"$f":"IFERROR(INDEX(misRayos,IF(MOD(TablaSeriesValores[[#This Row],[360º]],misPuntos)=0,NA(),INT(TablaSeriesValores[[#This Row],[360º]]/misPuntos)+1)),0)","v":1404.21},{"$f":"IF(miFila=INT(TablaSeriesValores[[#This Row],[360º]]/misPuntos)+1,TablaSeriesValores[[#This Row],[Valores]],0)","v":0},{"$f":"IF(MOD(TablaSeriesValores[[#This Row],[360º]],misPuntos)=0,miEscala,0)","v":0}]
[null,null,null,null,null,null,null,null,null,null,null,null,null,null,null,null,null,null,null,null,null,null,null,null,null,null,null,null,null,null,337,{"$f":"IFERROR(INDEX(misRayos,IF(MOD(TablaSeriesValores[[#This Row],[360º]],misPuntos)=0,NA(),INT(TablaSeriesValores[[#This Row],[360º]]/misPuntos)+1)),0)","v":1404.21},{"$f":"IF(miFila=INT(TablaSeriesValores[[#This Row],[360º]]/misPuntos)+1,TablaSeriesValores[[#This Row],[Valores]],0)","v":0},{"$f":"IF(MOD(TablaSeriesValores[[#This Row],[360º]],misPuntos)=0,miEscala,0)","v":0}]
[null,null,null,null,null,null,null,null,null,null,null,null,null,null,null,null,null,null,null,null,null,null,null,null,null,null,null,null,null,null,338,{"$f":"IFERROR(INDEX(misRayos,IF(MOD(TablaSeriesValores[[#This Row],[360º]],misPuntos)=0,NA(),INT(TablaSeriesValores[[#This Row],[360º]]/misPuntos)+1)),0)","v":1404.21},{"$f":"IF(miFila=INT(TablaSeriesValores[[#This Row],[360º]]/misPuntos)+1,TablaSeriesValores[[#This Row],[Valores]],0)","v":0},{"$f":"IF(MOD(TablaSeriesValores[[#This Row],[360º]],misPuntos)=0,miEscala,0)","v":0}]
[null,null,null,null,null,null,null,null,null,null,null,null,null,null,null,null,null,null,null,null,null,null,null,null,null,null,null,null,null,null,339,{"$f":"IFERROR(INDEX(misRayos,IF(MOD(TablaSeriesValores[[#This Row],[360º]],misPuntos)=0,NA(),INT(TablaSeriesValores[[#This Row],[360º]]/misPuntos)+1)),0)","v":1404.21},{"$f":"IF(miFila=INT(TablaSeriesValores[[#This Row],[360º]]/misPuntos)+1,TablaSeriesValores[[#This Row],[Valores]],0)","v":0},{"$f":"IF(MOD(TablaSeriesValores[[#This Row],[360º]],misPuntos)=0,miEscala,0)","v":0}]
[null,null,null,null,null,null,null,null,null,null,null,null,null,null,null,null,null,null,null,null,null,null,null,null,null,null,null,null,null,null,340,{"$f":"IFERROR(INDEX(misRayos,IF(MOD(TablaSeriesValores[[#This Row],[360º]],misPuntos)=0,NA(),INT(TablaSeriesValores[[#This Row],[360º]]/misPuntos)+1)),0)","v":1404.21},{"$f":"IF(miFila=INT(TablaSeriesValores[[#This Row],[360º]]/misPuntos)+1,TablaSeriesValores[[#This Row],[Valores]],0)","v":0},{"$f":"IF(MOD(TablaSeriesValores[[#This Row],[360º]],misPuntos)=0,miEscala,0)","v":0}]
[null,null,null,null,null,null,null,null,null,null,null,null,null,null,null,null,null,null,null,null,null,null,null,null,null,null,null,null,null,null,341,{"$f":"IFERROR(INDEX(misRayos,IF(MOD(TablaSeriesValores[[#This Row],[360º]],misPuntos)=0,NA(),INT(TablaSeriesValores[[#This Row],[360º]]/misPuntos)+1)),0)","v":1404.21},{"$f":"IF(miFila=INT(TablaSeriesValores[[#This Row],[360º]]/misPuntos)+1,TablaSeriesValores[[#This Row],[Valores]],0)","v":0},{"$f":"IF(MOD(TablaSeriesValores[[#This Row],[360º]],misPuntos)=0,miEscala,0)","v":0}]
[null,null,null,null,null,null,null,null,null,null,null,null,null,null,null,null,null,null,null,null,null,null,null,null,null,null,null,null,null,null,342,{"$f":"IFERROR(INDEX(misRayos,IF(MOD(TablaSeriesValores[[#This Row],[360º]],misPuntos)=0,NA(),INT(TablaSeriesValores[[#This Row],[360º]]/misPuntos)+1)),0)","v":1404.21},{"$f":"IF(miFila=INT(TablaSeriesValores[[#This Row],[360º]]/misPuntos)+1,TablaSeriesValores[[#This Row],[Valores]],0)","v":0},{"$f":"IF(MOD(TablaSeriesValores[[#This Row],[360º]],misPuntos)=0,miEscala,0)","v":0}]
[null,null,null,null,null,null,null,null,null,null,null,null,null,null,null,null,null,null,null,null,null,null,null,null,null,null,null,null,null,null,343,{"$f":"IFERROR(INDEX(misRayos,IF(MOD(TablaSeriesValores[[#This Row],[360º]],misPuntos)=0,NA(),INT(TablaSeriesValores[[#This Row],[360º]]/misPuntos)+1)),0)","v":1404.21},{"$f":"IF(miFila=INT(TablaSeriesValores[[#This Row],[360º]]/misPuntos)+1,TablaSeriesValores[[#This Row],[Valores]],0)","v":0},{"$f":"IF(MOD(TablaSeriesValores[[#This Row],[360º]],misPuntos)=0,miEscala,0)","v":0}]
[null,null,null,null,null,null,null,null,null,null,null,null,null,null,null,null,null,null,null,null,null,null,null,null,null,null,null,null,null,null,344,{"$f":"IFERROR(INDEX(misRayos,IF(MOD(TablaSeriesValores[[#This Row],[360º]],misPuntos)=0,NA(),INT(TablaSeriesValores[[#This Row],[360º]]/misPuntos)+1)),0)","v":1404.21},{"$f":"IF(miFila=INT(TablaSeriesValores[[#This Row],[360º]]/misPuntos)+1,TablaSeriesValores[[#This Row],[Valores]],0)","v":0},{"$f":"IF(MOD(TablaSeriesValores[[#This Row],[360º]],misPuntos)=0,miEscala,0)","v":0}]
[null,null,null,null,null,null,null,null,null,null,null,null,null,null,null,null,null,null,null,null,null,null,null,null,null,null,null,null,null,null,345,{"$f":"IFERROR(INDEX(misRayos,IF(MOD(TablaSeriesValores[[#This Row],[360º]],misPuntos)=0,NA(),INT(TablaSeriesValores[[#This Row],[360º]]/misPuntos)+1)),0)","v":1404.21},{"$f":"IF(miFila=INT(TablaSeriesValores[[#This Row],[360º]]/misPuntos)+1,TablaSeriesValores[[#This Row],[Valores]],0)","v":0},{"$f":"IF(MOD(TablaSeriesValores[[#This Row],[360º]],misPuntos)=0,miEscala,0)","v":0}]
[null,null,null,null,null,null,null,null,null,null,null,null,null,null,null,null,null,null,null,null,null,null,null,null,null,null,null,null,null,null,346,{"$f":"IFERROR(INDEX(misRayos,IF(MOD(TablaSeriesValores[[#This Row],[360º]],misPuntos)=0,NA(),INT(TablaSeriesValores[[#This Row],[360º]]/misPuntos)+1)),0)","v":1404.21},{"$f":"IF(miFila=INT(TablaSeriesValores[[#This Row],[360º]]/misPuntos)+1,TablaSeriesValores[[#This Row],[Valores]],0)","v":0},{"$f":"IF(MOD(TablaSeriesValores[[#This Row],[360º]],misPuntos)=0,miEscala,0)","v":0}]
[null,null,null,null,null,null,null,null,null,null,null,null,null,null,null,null,null,null,null,null,null,null,null,null,null,null,null,null,null,null,347,{"$f":"IFERROR(INDEX(misRayos,IF(MOD(TablaSeriesValores[[#This Row],[360º]],misPuntos)=0,NA(),INT(TablaSeriesValores[[#This Row],[360º]]/misPuntos)+1)),0)","v":1404.21},{"$f":"IF(miFila=INT(TablaSeriesValores[[#This Row],[360º]]/misPuntos)+1,TablaSeriesValores[[#This Row],[Valores]],0)","v":0},{"$f":"IF(MOD(TablaSeriesValores[[#This Row],[360º]],misPuntos)=0,miEscala,0)","v":0}]
[null,null,null,null,null,null,null,null,null,null,null,null,null,null,null,null,null,null,null,null,null,null,null,null,null,null,null,null,null,null,348,{"$f":"IFERROR(INDEX(misRayos,IF(MOD(TablaSeriesValores[[#This Row],[360º]],misPuntos)=0,NA(),INT(TablaSeriesValores[[#This Row],[360º]]/misPuntos)+1)),0)","v":1404.21},{"$f":"IF(miFila=INT(TablaSeriesValores[[#This Row],[360º]]/misPuntos)+1,TablaSeriesValores[[#This Row],[Valores]],0)","v":0},{"$f":"IF(MOD(TablaSeriesValores[[#This Row],[360º]],misPuntos)=0,miEscala,0)","v":0}]
[null,null,null,null,null,null,null,null,null,null,null,null,null,null,null,null,null,null,null,null,null,null,null,null,null,null,null,null,null,null,349,{"$f":"IFERROR(INDEX(misRayos,IF(MOD(TablaSeriesValores[[#This Row],[360º]],misPuntos)=0,NA(),INT(TablaSeriesValores[[#This Row],[360º]]/misPuntos)+1)),0)","v":1404.21},{"$f":"IF(miFila=INT(TablaSeriesValores[[#This Row],[360º]]/misPuntos)+1,TablaSeriesValores[[#This Row],[Valores]],0)","v":0},{"$f":"IF(MOD(TablaSeriesValores[[#This Row],[360º]],misPuntos)=0,miEscala,0)","v":0}]
[null,null,null,null,null,null,null,null,null,null,null,null,null,null,null,null,null,null,null,null,null,null,null,null,null,null,null,null,null,null,350,{"$f":"IFERROR(INDEX(misRayos,IF(MOD(TablaSeriesValores[[#This Row],[360º]],misPuntos)=0,NA(),INT(TablaSeriesValores[[#This Row],[360º]]/misPuntos)+1)),0)","v":1404.21},{"$f":"IF(miFila=INT(TablaSeriesValores[[#This Row],[360º]]/misPuntos)+1,TablaSeriesValores[[#This Row],[Valores]],0)","v":0},{"$f":"IF(MOD(TablaSeriesValores[[#This Row],[360º]],misPuntos)=0,miEscala,0)","v":0}]
[null,null,null,null,null,null,null,null,null,null,null,null,null,null,null,null,null,null,null,null,null,null,null,null,null,null,null,null,null,null,351,{"$f":"IFERROR(INDEX(misRayos,IF(MOD(TablaSeriesValores[[#This Row],[360º]],misPuntos)=0,NA(),INT(TablaSeriesValores[[#This Row],[360º]]/misPuntos)+1)),0)","v":1404.21},{"$f":"IF(miFila=INT(TablaSeriesValores[[#This Row],[360º]]/misPuntos)+1,TablaSeriesValores[[#This Row],[Valores]],0)","v":0},{"$f":"IF(MOD(TablaSeriesValores[[#This Row],[360º]],misPuntos)=0,miEscala,0)","v":0}]
[null,null,null,null,null,null,null,null,null,null,null,null,null,null,null,null,null,null,null,null,null,null,null,null,null,null,null,null,null,null,352,{"$f":"IFERROR(INDEX(misRayos,IF(MOD(TablaSeriesValores[[#This Row],[360º]],misPuntos)=0,NA(),INT(TablaSeriesValores[[#This Row],[360º]]/misPuntos)+1)),0)","v":1404.21},{"$f":"IF(miFila=INT(TablaSeriesValores[[#This Row],[360º]]/misPuntos)+1,TablaSeriesValores[[#This Row],[Valores]],0)","v":0},{"$f":"IF(MOD(TablaSeriesValores[[#This Row],[360º]],misPuntos)=0,miEscala,0)","v":0}]
[null,null,null,null,null,null,null,null,null,null,null,null,null,null,null,null,null,null,null,null,null,null,null,null,null,null,null,null,null,null,353,{"$f":"IFERROR(INDEX(misRayos,IF(MOD(TablaSeriesValores[[#This Row],[360º]],misPuntos)=0,NA(),INT(TablaSeriesValores[[#This Row],[360º]]/misPuntos)+1)),0)","v":1404.21},{"$f":"IF(miFila=INT(TablaSeriesValores[[#This Row],[360º]]/misPuntos)+1,TablaSeriesValores[[#This Row],[Valores]],0)","v":0},{"$f":"IF(MOD(TablaSeriesValores[[#This Row],[360º]],misPuntos)=0,miEscala,0)","v":0}]
[null,null,null,null,null,null,null,null,null,null,null,null,null,null,null,null,null,null,null,null,null,null,null,null,null,null,null,null,null,null,354,{"$f":"IFERROR(INDEX(misRayos,IF(MOD(TablaSeriesValores[[#This Row],[360º]],misPuntos)=0,NA(),INT(TablaSeriesValores[[#This Row],[360º]]/misPuntos)+1)),0)","v":1404.21},{"$f":"IF(miFila=INT(TablaSeriesValores[[#This Row],[360º]]/misPuntos)+1,TablaSeriesValores[[#This Row],[Valores]],0)","v":0},{"$f":"IF(MOD(TablaSeriesValores[[#This Row],[360º]],misPuntos)=0,miEscala,0)","v":0}]
[null,null,null,null,null,null,null,null,null,null,null,null,null,null,null,null,null,null,null,null,null,null,null,null,null,null,null,null,null,null,355,{"$f":"IFERROR(INDEX(misRayos,IF(MOD(TablaSeriesValores[[#This Row],[360º]],misPuntos)=0,NA(),INT(TablaSeriesValores[[#This Row],[360º]]/misPuntos)+1)),0)","v":1404.21},{"$f":"IF(miFila=INT(TablaSeriesValores[[#This Row],[360º]]/misPuntos)+1,TablaSeriesValores[[#This Row],[Valores]],0)","v":0},{"$f":"IF(MOD(TablaSeriesValores[[#This Row],[360º]],misPuntos)=0,miEscala,0)","v":0}]
[null,null,null,null,null,null,null,null,null,null,null,null,null,null,null,null,null,null,null,null,null,null,null,null,null,null,null,null,null,null,356,{"$f":"IFERROR(INDEX(misRayos,IF(MOD(TablaSeriesValores[[#This Row],[360º]],misPuntos)=0,NA(),INT(TablaSeriesValores[[#This Row],[360º]]/misPuntos)+1)),0)","v":1404.21},{"$f":"IF(miFila=INT(TablaSeriesValores[[#This Row],[360º]]/misPuntos)+1,TablaSeriesValores[[#This Row],[Valores]],0)","v":0},{"$f":"IF(MOD(TablaSeriesValores[[#This Row],[360º]],misPuntos)=0,miEscala,0)","v":0}]
[null,null,null,null,null,null,null,null,null,null,null,null,null,null,null,null,null,null,null,null,null,null,null,null,null,null,null,null,null,null,357,{"$f":"IFERROR(INDEX(misRayos,IF(MOD(TablaSeriesValores[[#This Row],[360º]],misPuntos)=0,NA(),INT(TablaSeriesValores[[#This Row],[360º]]/misPuntos)+1)),0)","v":1404.21},{"$f":"IF(miFila=INT(TablaSeriesValores[[#This Row],[360º]]/misPuntos)+1,TablaSeriesValores[[#This Row],[Valores]],0)","v":0},{"$f":"IF(MOD(TablaSeriesValores[[#This Row],[360º]],misPuntos)=0,miEscala,0)","v":0}]
[null,null,null,null,null,null,null,null,null,null,null,null,null,null,null,null,null,null,null,null,null,null,null,null,null,null,null,null,null,null,358,{"$f":"IFERROR(INDEX(misRayos,IF(MOD(TablaSeriesValores[[#This Row],[360º]],misPuntos)=0,NA(),INT(TablaSeriesValores[[#This Row],[360º]]/misPuntos)+1)),0)","v":1404.21},{"$f":"IF(miFila=INT(TablaSeriesValores[[#This Row],[360º]]/misPuntos)+1,TablaSeriesValores[[#This Row],[Valores]],0)","v":0},{"$f":"IF(MOD(TablaSeriesValores[[#This Row],[360º]],misPuntos)=0,miEscala,0)","v":0}]
[null,null,null,null,null,null,null,null,null,null,null,null,null,null,null,null,null,null,null,null,null,null,null,null,null,null,null,null,null,null,359,{"$f":"IFERROR(INDEX(misRayos,IF(MOD(TablaSeriesValores[[#This Row],[360º]],misPuntos)=0,NA(),INT(TablaSeriesValores[[#This Row],[360º]]/misPuntos)+1)),0)","v":1404.21},{"$f":"IF(miFila=INT(TablaSeriesValores[[#This Row],[360º]]/misPuntos)+1,TablaSeriesValores[[#This Row],[Valores]],0)","v":0},{"$f":"IF(MOD(TablaSeriesValores[[#This Row],[360º]],misPuntos)=0,miEscala,0)","v":0}]